Workbook

Sheet START
C34: Disclaimer
C35: FAO declines all responsibility for errors or deficiencies in the database or software or in the documentation accompanying it, for program maintenance and upgrading as well as for any damage that may arise from them. FAO also declines any responsibility for updating the data and assumes no responsibility for errors and omissions in the data provided. Users are, however, kindly asked to report any errors or deficiencies in this product to FAO. The choices of calculation made in this tool are those of the author(s) and do not necessarily reflect the views and choices of the Food and Agriculture Organization of the United Nations.
C39: © FAO, 2020

Sheet Description
C3: DESCRIPTION, BIOMASS COLLECTION AND MOBILIZATION

Sheet Data Entry Needs
C3: DATA ENTRY FOR BIOMASS SUPPLY & MOBILIZATION
C6: Use white cells to input data | D6: Grey cells are used for calculations
C8: Biomass Availability | G8: Collection centres & aggregation centres land coverage
C10: Biomass type | E10: Please select | G10: Collection centre radius (km)
C11: Residue type | G11: Share of land covered with targeted feedstock (%)
C12: Biomass potential (t/year) | G12: Aggregation centre influence radius (km)
C13: Biomass yield (t/ha, wet) | G13: =IF(N260, "The influence radius of the aggregation centre needs to be larger than that of the collection centre","The number of collection & aggregation centres required will be estimated based on the inputs provided above") -> The influence radius of the aggregation centre needs to be larger than that of the collection centre
C14: Biomass bulk density (kg/m3)
C15: Biomass moisture content (wt%)
C17: Operations at the collection centre level | G17: Operations at the aggregation centre level
C24: Step 1. | E24: Please select | G24: Step 1. | I24: No operation
C25: Step 2. | E25: Please select | G25: Step 2. | I25: No operation
C26: Step 3. | E26: Please select | G26: Step 3. | I26: No operation
C27: Step 4. | E27: No operation | G27: Step 4. | I27: No operation
C28: Step 5. | E28: No operation
C29: Step 6. | E29: No operation
C30: Step 7. | E30: No operation
C31: Step 8. | E31: No operation
C33: Technology levels
C35: At collection centre level
C58: At aggregation centre level
C71: Operational data inputs
C73: Working days per year (day/year) | G73: Mechanized operation per day (h/day)
C74: Manual operation per day (h/day)
C76: Financial data inputs
C78: Labour cost unskilled worker (USD/person-h) | G78: Diesel price (USD/L)
C79: Labour cost skilled worker (USD/person-h) | G79: Electricity price (USD/kWh)
C81: Biomass collection
C83: Machinery rental cost (USD/h) | G83: Access fee to collection centre (USD/t (wet))
C84: Diesel consumption (L/h)
C86: Biomass Drying
C88: Output moisture content (wt%) | G88: Fuel emission factor (gCO2-eq/MJ) | I88: =AA339 -> 0
C89: Fuel used for drying | E89: Please select | G89: =+('Data Entry Needs'!$E$89&" price (USD/GJ)") -> Please select price (USD/GJ)
C91: Primary size reduction
C93: Average input particle size (mm) | G93: Machinery rental (USD/h)
C94: Average ouput particle size (mm)
C96: Baling
C98: Machinery rental (USD/h)
C100: Milling/grinding
C102: Average input particle size (mm) | E102: =E94 -> 0 | G102: Average ouput particle size (mm)
C104: Transport
C106: Road type fuel cons. (L/100km) | D106: Please select | E106: =IFERROR(TRANSPORT_C!AK126, "") ->  | G106: Transport average speed (km/h)
C107: Road altimetry fuel cons. (L/100km) | D107: Please select | E107: =IFERROR(TRANSPORT_C!AK127, "") ->  | G107: Truck rental cost (USD/h)
C108: Average fuel consumption (L/100km) | E108: =IFERROR(TRANSPORT_C!AK128, "") -> 
C110: Densification & Storage
C112: Safety storage rate | G112: Machinery rental (USD/h)
C113: Bulding rental cost (USD/month.m2)
C115: Electricity source and emission factor
C117: Electricity source | E117: Please select | G117: Electricity emission factor (gCO2-eq/kWh) | I117: =X357 -> 0
C119: Other Cost
C121: Maintenance costs (% of machinery rental) | G121: General and administrative (%)
C122: Maintenance costs (% of capital investment) | G122: Miscellaneous costs (%)
C123: Overhead (%)
C125: Financial Parameters
C127: Discount rate | G127: Loan interest rate
C128: Loan ratio | G128: Loan term (years)
C129: Maximum biomass selling price (USD/t)
N220: Operators for data entry needs
S221: Plant cost index ,
N223: List for biomass needs
N225: Please select | R225: List1 | S225: List2 | T225: List 3
N226: Agricultural residues | R226: Agricultural residues | S226: Agricultural residues | T226: Woody residues | X226: =+$R$226&Q227 -> Agricultural residues1 | Y226: =S227 -> Barley straw
N227: Woody residues | Q227: 1 | R227: Woody residues | S227: Barley straw | T227: Wood forest residues | X227: Agricultural residues2 | Y227: =S228 -> Maize stover
Q228: 2 | S228: Maize stover | T228: Wood processing residues | X228: Agricultural residues3 | Y228: Oat straw
Q229: 3 | S229: Oat straw | X229: Agricultural residues4 | Y229: Rice straw
Q230: 4 | S230: Rice straw | X230: Agricultural residues5 | Y230: Sorghum straw
Q231: 5 | S231: Sorghum straw | X231: Agricultural residues6 | Y231: Wheat straw
Q232: 6 | S232: Wheat straw | X232: Agricultural residues7 | Y232: Sugarcane bagasse
Q233: 7 | S233: Sugarcane bagasse | X233: Agricultural residues8 | Y233: Oil palm empty fruit bunch
Q234: 8 | S234: Oil palm empty fruit bunch | X234: Agricultural residues9 | Y234: Pruining
Q235: 9 | S235: Pruining | X235: =+$R$227&Q227 -> Woody residues1 | Y235: =T227 -> Wood forest residues
X236: =+$R$227&Q228 -> Woody residues2 | Y236: =T228 -> Wood processing residues
N239: Feedstock 1 | O239: Feedstock type | P239: Feedstock
O240: =E10 -> Please select
N241: 1 | P241: =+IFERROR(VLOOKUP($O$240&N241,$X$226:$Y$236,2,FALSE),"") -> 
N242: 2
N243: 3
N244: 4
N245: 5
N246: 6
N247: 7
N248: 8
N249: 9
N250: 10
W252: Selection of sequences for collection sites | AL252: Selected sequence in collection site section
N253: Conditional formatting when no feedstock is selected | AA253: Step 1 | AB253: Step 2 | AC253: Step 3 | AD253: Step 4 | AE253: Step 5 | AF253: Step 6 | AG253: Step 7 | AH253: Step 8 | AM253: Step | AN253: No selection | AO253: Binary
AA254: Please select | AB254: Please select | AC254: Please select | AD254: Please select | AE254: Please select | AF254: Please select | AG254: Please select | AH254: Please select | AL254: 1 | AM254: =E24 -> Please select | AN254: =OR(AM254="Please select",AM254="",AM254="No operation") -> TRUE | AO254: =IF(AN254,0,1) -> 0
N255: Feedstock 1 | AA255: Collection | AB255: =IFERROR(INDEX($Y$260:$Y$268,SMALL(IF($Y$260:$Y$268<>"",ROW($Y$260:$Y$268)-ROW($Y$260)+1),ROWS(AB$255:AB255))),"") -> Primary size reduction | AC255: =IFERROR(INDEX($Y$272:$Y$279,SMALL(IF($Y$272:$Y$279<>"",ROW($Y$272:$Y$279)-ROW($Y$272)+1),ROWS(AC$255:AC255))),"") -> Primary size reduction | AD255: =IFERROR(INDEX($Y$284:$Y$291,SMALL(IF($Y$284:$Y$291<>"",ROW($Y$284:$Y$291)-ROW($Y$284)+1),ROWS(AD$255:AD255))),"") -> Primary size reduction | AE255: =IFERROR(INDEX($Y$296:$Y$303,SMALL(IF($Y$296:$Y$303<>"",ROW($Y$296:$Y$303)-ROW($Y$296)+1),ROWS(AE$255:AE255))),"") -> Primary size reduction | AF255: =IFERROR(INDEX($AE$272:$AE$279,SMALL(IF($AE$272:$AE$279<>"",ROW($AE$272:$AE$279)-ROW($AE$272)+1),ROWS(AF$255:AF255))),"") -> Primary size reduction | AG255: =IFERROR(INDEX($AE$284:$AE$291,SMALL(IF($AE$284:$AE$291<>"",ROW($AE$284:$AE$291)-ROW($AE$284)+1),ROWS(AG$255:AG255))),"") -> Primary size reduction | AH255: =IFERROR(INDEX($AE$296:$AE$303,SMALL(IF($AE$296:$AE$303<>"",ROW($AE$296:$AE$303)-ROW($AE$296)+1),ROWS(AH$255:AH255))),"") -> Primary size reduction | AL255: 2 | AM255: Please select | AN255: =OR(AM255="Please select",AM255="",AM255="No operation") -> TRUE | AO255: =IF(AN255,0,1) -> 0
N256: =IF(E10="Please Select",TRUE,FALSE) -> TRUE | AB256: =IFERROR(INDEX($Y$260:$Y$268,SMALL(IF($Y$260:$Y$268<>"",ROW($Y$260:$Y$268)-ROW($Y$260)+1),ROWS(AB$255:AB256))),"") -> Drying | AC256: =IFERROR(INDEX($Y$272:$Y$279,SMALL(IF($Y$272:$Y$279<>"",ROW($Y$272:$Y$279)-ROW($Y$272)+1),ROWS(AC$255:AC256))),"") -> Drying | AD256: =IFERROR(INDEX($Y$284:$Y$291,SMALL(IF($Y$284:$Y$291<>"",ROW($Y$284:$Y$291)-ROW($Y$284)+1),ROWS(AD$255:AD256))),"") -> Drying | AE256: =IFERROR(INDEX($Y$296:$Y$303,SMALL(IF($Y$296:$Y$303<>"",ROW($Y$296:$Y$303)-ROW($Y$296)+1),ROWS(AE$255:AE256))),"") -> Drying | AF256: =IFERROR(INDEX($AE$272:$AE$279,SMALL(IF($AE$272:$AE$279<>"",ROW($AE$272:$AE$279)-ROW($AE$272)+1),ROWS(AF$255:AF256))),"") -> Drying | AG256: =IFERROR(INDEX($AE$284:$AE$291,SMALL(IF($AE$284:$AE$291<>"",ROW($AE$284:$AE$291)-ROW($AE$284)+1),ROWS(AG$255:AG256))),"") -> Drying | AH256: =IFERROR(INDEX($AE$296:$AE$304,SMALL(IF($AE$296:$AE$304<>"",ROW($AE$296:$AE$304)-ROW($AE$296)+1),ROWS(AH$255:AH256))),"") -> Drying | AL256: 3 | AM256: Please select | AN256: TRUE | AO256: 0
S257: Hide-unhide | W257: Check boxes technologys | AB257: =IFERROR(INDEX($Y$260:$Y$268,SMALL(IF($Y$260:$Y$268<>"",ROW($Y$260:$Y$268)-ROW($Y$260)+1),ROWS(AB$255:AB257))),"") -> Milling/Grinding | AC257: =IFERROR(INDEX($Y$272:$Y$279,SMALL(IF($Y$272:$Y$279<>"",ROW($Y$272:$Y$279)-ROW($Y$272)+1),ROWS(AC$255:AC257))),"") -> Milling/Grinding | AD257: =IFERROR(INDEX($Y$284:$Y$291,SMALL(IF($Y$284:$Y$291<>"",ROW($Y$284:$Y$291)-ROW($Y$284)+1),ROWS(AD$255:AD257))),"") -> Milling/Grinding | AE257: =IFERROR(INDEX($Y$296:$Y$303,SMALL(IF($Y$296:$Y$303<>"",ROW($Y$296:$Y$303)-ROW($Y$296)+1),ROWS(AE$255:AE257))),"") -> Milling/Grinding | AF257: =IFERROR(INDEX($AE$272:$AE$279,SMALL(IF($AE$272:$AE$279<>"",ROW($AE$272:$AE$279)-ROW($AE$272)+1),ROWS(AF$255:AF257))),"") -> Milling/Grinding | AG257: =IFERROR(INDEX($AE$284:$AE$291,SMALL(IF($AE$284:$AE$291<>"",ROW($AE$284:$AE$291)-ROW($AE$284)+1),ROWS(AG$255:AG257))),"") -> Milling/Grinding | AH257: =IFERROR(INDEX($AE$296:$AE$304,SMALL(IF($AE$296:$AE$304<>"",ROW($AE$296:$AE$304)-ROW($AE$296)+1),ROWS(AH$255:AH257))),"") -> Milling/Grinding | AI257: =IFERROR(INDEX($AJ$272:$AJ$280,SMALL(IF($AJ$272:$AJ$280<>"",ROW($AJ$272:$AJ$280)-ROW($AJ$272)+1),ROWS(AI$255:AI257))),"") ->  | AL257: 4 | AM257: No operation | AN257: TRUE | AO257: 0
N258: Conditional formatting aggregation centres | R258: Primary size reduction | S258: =IF(W261,1,0) -> 1 | W258: Step 1 and Step 2 | AB258: =IFERROR(INDEX($Y$260:$Y$268,SMALL(IF($Y$260:$Y$268<>"",ROW($Y$260:$Y$268)-ROW($Y$260)+1),ROWS(AB$255:AB258))),"") -> Densification | AC258: =IFERROR(INDEX($Y$272:$Y$279,SMALL(IF($Y$272:$Y$279<>"",ROW($Y$272:$Y$279)-ROW($Y$272)+1),ROWS(AC$255:AC258))),"") -> Densification | AD258: =IFERROR(INDEX($Y$284:$Y$291,SMALL(IF($Y$284:$Y$291<>"",ROW($Y$284:$Y$291)-ROW($Y$284)+1),ROWS(AD$255:AD258))),"") -> Densification | AE258: =IFERROR(INDEX($Y$296:$Y$303,SMALL(IF($Y$296:$Y$303<>"",ROW($Y$296:$Y$303)-ROW($Y$296)+1),ROWS(AE$255:AE258))),"") -> Densification | AF258: =IFERROR(INDEX($AE$272:$AE$279,SMALL(IF($AE$272:$AE$279<>"",ROW($AE$272:$AE$279)-ROW($AE$272)+1),ROWS(AF$255:AF258))),"") -> Densification | AG258: =IFERROR(INDEX($AE$284:$AE$291,SMALL(IF($AE$284:$AE$291<>"",ROW($AE$284:$AE$291)-ROW($AE$284)+1),ROWS(AG$255:AG258))),"") -> Densification | AH258: =IFERROR(INDEX($AE$296:$AE$304,SMALL(IF($AE$296:$AE$304<>"",ROW($AE$296:$AE$304)-ROW($AE$296)+1),ROWS(AH$255:AH258))),"") -> Densification | AI258: =IFERROR(INDEX($AJ$272:$AJ$280,SMALL(IF($AJ$272:$AJ$280<>"",ROW($AJ$272:$AJ$280)-ROW($AJ$272)+1),ROWS(AI$255:AI258))),"") ->  | AL258: 5 | AM258: No operation | AN258: TRUE | AO258: 0
N259: Feedstock 1 | Q259: both | R259: Drying | S259: =IF(AND(W312,W262),1,0) -> 1 | W259: Collection | AB259: =IFERROR(INDEX($Y$260:$Y$268,SMALL(IF($Y$260:$Y$268<>"",ROW($Y$260:$Y$268)-ROW($Y$260)+1),ROWS(AB$255:AB259))),"") -> Storage | AC259: =IFERROR(INDEX($Y$272:$Y$279,SMALL(IF($Y$272:$Y$279<>"",ROW($Y$272:$Y$279)-ROW($Y$272)+1),ROWS(AC$255:AC259))),"") -> Storage | AD259: =IFERROR(INDEX($Y$284:$Y$291,SMALL(IF($Y$284:$Y$291<>"",ROW($Y$284:$Y$291)-ROW($Y$284)+1),ROWS(AD$255:AD259))),"") -> Storage | AE259: =IFERROR(INDEX($Y$296:$Y$303,SMALL(IF($Y$296:$Y$303<>"",ROW($Y$296:$Y$303)-ROW($Y$296)+1),ROWS(AE$255:AE259))),"") -> Storage | AF259: =IFERROR(INDEX($AE$272:$AE$279,SMALL(IF($AE$272:$AE$279<>"",ROW($AE$272:$AE$279)-ROW($AE$272)+1),ROWS(AF$255:AF259))),"") -> Storage | AG259: =IFERROR(INDEX($AE$284:$AE$291,SMALL(IF($AE$284:$AE$291<>"",ROW($AE$284:$AE$291)-ROW($AE$284)+1),ROWS(AG$255:AG259))),"") -> Storage | AH259: =IFERROR(INDEX($AE$296:$AE$304,SMALL(IF($AE$296:$AE$304<>"",ROW($AE$296:$AE$304)-ROW($AE$296)+1),ROWS(AH$255:AH259))),"") -> Storage | AI259: =IFERROR(INDEX($AJ$272:$AJ$280,SMALL(IF($AJ$272:$AJ$280<>"",ROW($AJ$272:$AJ$280)-ROW($AJ$272)+1),ROWS(AI$255:AI259))),"") ->  | AL259: 6 | AM259: No operation | AN259: TRUE | AO259: 0
N260: =I12<=I10 -> TRUE | R260: Baling | S260: =IF(W263,1,0) -> 0 | V260: 1 | W260: FALSE | X260: Collection | Y260: =+IF(W260,"","") ->  | AB260: =IFERROR(INDEX($Y$260:$Y$268,SMALL(IF($Y$260:$Y$268<>"",ROW($Y$260:$Y$268)-ROW($Y$260)+1),ROWS(AB$255:AB260))),"") -> No operation | AC260: =IFERROR(INDEX($Y$272:$Y$279,SMALL(IF($Y$272:$Y$279<>"",ROW($Y$272:$Y$279)-ROW($Y$272)+1),ROWS(AC$255:AC260))),"") -> No operation | AD260: =IFERROR(INDEX($Y$284:$Y$291,SMALL(IF($Y$284:$Y$291<>"",ROW($Y$284:$Y$291)-ROW($Y$284)+1),ROWS(AD$255:AD260))),"") -> No operation | AE260: =IFERROR(INDEX($Y$296:$Y$303,SMALL(IF($Y$296:$Y$303<>"",ROW($Y$296:$Y$303)-ROW($Y$296)+1),ROWS(AE$255:AE260))),"") -> No operation | AF260: =IFERROR(INDEX($AE$272:$AE$279,SMALL(IF($AE$272:$AE$279<>"",ROW($AE$272:$AE$279)-ROW($AE$272)+1),ROWS(AF$255:AF260))),"") -> No operation | AG260: =IFERROR(INDEX($AE$284:$AE$291,SMALL(IF($AE$284:$AE$291<>"",ROW($AE$284:$AE$291)-ROW($AE$284)+1),ROWS(AG$255:AG260))),"") -> No operation | AH260: =IFERROR(INDEX($AE$296:$AE$304,SMALL(IF($AE$296:$AE$304<>"",ROW($AE$296:$AE$304)-ROW($AE$296)+1),ROWS(AH$255:AH260))),"") -> No operation | AI260: =IFERROR(INDEX($AJ$272:$AJ$280,SMALL(IF($AJ$272:$AJ$280<>"",ROW($AJ$272:$AJ$280)-ROW($AJ$272)+1),ROWS(AI$255:AI260))),"") ->  | AL260: 7 | AM260: No operation | AN260: TRUE | AO260: 0
N261: =IF(N260,FALSE,TRUE) -> FALSE | R261: Milling/Grinding | S261: =IF(AND(W313,W264),1,0) -> 1 | V261: 2 | W261: TRUE | X261: Primary size reduction | Y261: =+IF(W261,X261,"") -> Primary size reduction | AB261: =IFERROR(INDEX($Y$260:$Y$268,SMALL(IF($Y$260:$Y$268<>"",ROW($Y$260:$Y$268)-ROW($Y$260)+1),ROWS(AB$255:AB261))),"") ->  | AC261: =IFERROR(INDEX($Y$272:$Y$279,SMALL(IF($Y$272:$Y$279<>"",ROW($Y$272:$Y$279)-ROW($Y$272)+1),ROWS(AC$255:AC261))),"") ->  | AD261: =IFERROR(INDEX($Y$284:$Y$291,SMALL(IF($Y$284:$Y$291<>"",ROW($Y$284:$Y$291)-ROW($Y$284)+1),ROWS(AD$255:AD261))),"") ->  | AE261: =IFERROR(INDEX($Y$296:$Y$303,SMALL(IF($Y$296:$Y$303<>"",ROW($Y$296:$Y$303)-ROW($Y$296)+1),ROWS(AE$255:AE261))),"") ->  | AF261: =IFERROR(INDEX($AE$272:$AE$279,SMALL(IF($AE$272:$AE$279<>"",ROW($AE$272:$AE$279)-ROW($AE$272)+1),ROWS(AF$255:AF261))),"") ->  | AG261: =IFERROR(INDEX($AE$284:$AE$291,SMALL(IF($AE$284:$AE$291<>"",ROW($AE$284:$AE$291)-ROW($AE$284)+1),ROWS(AG$255:AG261))),"") ->  | AH261: =IFERROR(INDEX($AE$296:$AE$304,SMALL(IF($AE$296:$AE$304<>"",ROW($AE$296:$AE$304)-ROW($AE$296)+1),ROWS(AH$255:AH261))),"") ->  | AI261: =IFERROR(INDEX($AJ$272:$AJ$280,SMALL(IF($AJ$272:$AJ$280<>"",ROW($AJ$272:$AJ$280)-ROW($AJ$272)+1),ROWS(AI$255:AI261))),"") ->  | AL261: 8 | AM261: No operation | AN261: TRUE | AO261: 0
R262: Densification and storage | S262: =IF(AND(W314,W265,W266,W315),1,0) -> 0 | V262: 3 | W262: TRUE | X262: Drying | Y262: Drying | AB262: =IFERROR(INDEX($Y$260:$Y$268,SMALL(IF($Y$260:$Y$268<>"",ROW($Y$260:$Y$268)-ROW($Y$260)+1),ROWS(AB$255:AB262))),"") ->  | AC262: =IFERROR(INDEX($Y$272:$Y$279,SMALL(IF($Y$272:$Y$279<>"",ROW($Y$272:$Y$279)-ROW($Y$272)+1),ROWS(AC$255:AC262))),"") ->  | AD262: =IFERROR(INDEX($Y$284:$Y$291,SMALL(IF($Y$284:$Y$291<>"",ROW($Y$284:$Y$291)-ROW($Y$284)+1),ROWS(AD$255:AD262))),"") ->  | AE262: =IFERROR(INDEX($Y$296:$Y$303,SMALL(IF($Y$296:$Y$303<>"",ROW($Y$296:$Y$303)-ROW($Y$296)+1),ROWS(AE$255:AE262))),"") ->  | AF262: =IFERROR(INDEX($AE$272:$AE$279,SMALL(IF($AE$272:$AE$279<>"",ROW($AE$272:$AE$279)-ROW($AE$272)+1),ROWS(AF$255:AF262))),"") ->  | AG262: =IFERROR(INDEX($AE$284:$AE$291,SMALL(IF($AE$284:$AE$291<>"",ROW($AE$284:$AE$291)-ROW($AE$284)+1),ROWS(AG$255:AG262))),"") ->  | AH262: =IFERROR(INDEX($AE$296:$AE$304,SMALL(IF($AE$296:$AE$304<>"",ROW($AE$296:$AE$304)-ROW($AE$296)+1),ROWS(AH$255:AH262))),"") ->  | AI262: =IFERROR(INDEX($AJ$272:$AJ$280,SMALL(IF($AJ$272:$AJ$280<>"",ROW($AJ$272:$AJ$280)-ROW($AJ$272)+1),ROWS(AI$255:AI262))),"") ->  | AL262: 9 | AN262: TRUE | AO262: 0
R263: Transport | S263: =IF(W267,1,0) -> 0 | V263: 4 | W263: FALSE | X263: Baling | AB263: =IFERROR(INDEX($Y$260:$Y$268,SMALL(IF($Y$260:$Y$268<>"",ROW($Y$260:$Y$268)-ROW($Y$260)+1),ROWS(AB$255:AB263))),"") ->  | AC263: =IFERROR(INDEX($Y$272:$Y$280,SMALL(IF($Y$272:$Y$280<>"",ROW($Y$272:$Y$280)-ROW($Y$272)+1),ROWS(AC$255:AC263))),"") ->  | AD263: =IFERROR(INDEX($Y$284:$Y$292,SMALL(IF($Y$284:$Y$292<>"",ROW($Y$284:$Y$292)-ROW($Y$284)+1),ROWS(AD$255:AD263))),"") ->  | AE263: =IFERROR(INDEX($Y$296:$Y$304,SMALL(IF($Y$296:$Y$304<>"",ROW($Y$296:$Y$304)-ROW($Y$296)+1),ROWS(AE$255:AE263))),"") ->  | AF263: =IFERROR(INDEX($AE$272:$AE$280,SMALL(IF($AE$272:$AE$280<>"",ROW($AE$272:$AE$280)-ROW($AE$272)+1),ROWS(AF$255:AF263))),"") ->  | AG263: =IFERROR(INDEX($AE$284:$AE$292,SMALL(IF($AE$284:$AE$292<>"",ROW($AE$284:$AE$292)-ROW($AE$284)+1),ROWS(AG$255:AG263))),"") ->  | AH263: =IFERROR(INDEX($AE$296:$AE$304,SMALL(IF($AE$296:$AE$304<>"",ROW($AE$296:$AE$304)-ROW($AE$296)+1),ROWS(AH$255:AH263))),"") ->  | AI263: =IFERROR(INDEX($AJ$272:$AJ$280,SMALL(IF($AJ$272:$AJ$280<>"",ROW($AJ$272:$AJ$280)-ROW($AJ$272)+1),ROWS(AI$255:AI263))),"") -> 
N264: Collection technology levels | V264: 5 | W264: TRUE | X264: Milling/Grinding | Y264: Milling/Grinding
N265: Low | O265: TRUE | P265: Manual: High labor intensity, low energy consumption, only simple tools are used | V265: 6 | W265: TRUE | X265: Densification | Y265: Densification
N266: Medium | O266: FALSE | P266: Semi-mechanized: Medium labor intensity, medium energy consumption, some mechanical equipment used | V266: 7 | W266: TRUE | X266: Storage | Y266: Storage
N267: High | O267: FALSE | P267: Mechanized: Low labor intensity, high energy consumption, mechanical equipment used | V267: 8 | W267: FALSE | X267: Transport
N268: Figure caption | O268: =IF(O265,"Manual collection",IF(O266,"Semi-mechanized collection","Mechanized collection")) -> Manual collection | Y268: No operation | AM268: Road type | AO268: Road Altimetry
O269: =IF(O265,P265,IF(O266,P266,P267)) -> Manual: High labor intensity, low energy consumption, only simple tools are used | AM269: Please select | AO269: Please select
Y270: =+IF(W270,X270,"") ->  | AM270: Secondary | AO270: Flat
N271: primary particle size reduction levels | W271: Step 3 | X271: Conditionals | AC271: Step 6 | AD271: Conditionals | AM271: Highway | AO271: Hilly
N272: Low | O272: TRUE | P272: Small chipper: Low chipping capacity, low energy efficiency | V272: 1 | W272: =Y261 -> Primary size reduction | X272: =IF($E$25=W272,TRUE, FALSE) -> FALSE | Y272: =+IF(X272,"",W272) -> Primary size reduction | AB272: 1 | AC272: =Y296 -> Primary size reduction | AD272: =IF($E$28=AC272,TRUE, FALSE) -> FALSE | AE272: =+IF(AD272,"",AC272) -> Primary size reduction
N273: Medium | O273: FALSE | P273: Medium chipper: medium chipping capacity, medium energy efficiency | V273: 2 | W273: =Y262 -> Drying | X273: =IF($E$25=W273,TRUE, FALSE) -> FALSE | Y273: =+IF(X273,"",W273) -> Drying | AB273: 2 | AC273: =Y297 -> Drying | AD273: =IF($E$28=AC273,TRUE, FALSE) -> FALSE | AE273: =+IF(AD273,"",AC273) -> Drying
N274: High | O274: FALSE | P274: Large chipper: large chipping capacity, medium energy efficiency | V274: 3 | X274: FALSE | AB274: 3 | AD274: FALSE
N275: Figure caption | O275: =IF(O272,"Small chipper",IF(O273,"Medium chipper","Large chipper")) -> Small chipper | V275: 4 | W275: Milling/Grinding | X275: FALSE | Y275: Milling/Grinding | AB275: 4 | AC275: Milling/Grinding | AD275: FALSE | AE275: Milling/Grinding
O276: =IF(O272,P272,IF(O273,P273,P274)) -> Small chipper: Low chipping capacity, low energy efficiency | V276: 5 | W276: Densification | X276: FALSE | Y276: Densification | AB276: 5 | AC276: Densification | AD276: FALSE | AE276: Densification
V277: 6 | W277: Storage | X277: FALSE | Y277: Storage | AB277: 6 | AC277: Storage | AD277: FALSE | AE277: Storage
N278: Drying levels | V278: 7 | X278: FALSE | AB278: 7 | AD278: FALSE
N279: Low | O279: TRUE | P279: Natural: Low drying capacity, low energy consumption, low investment | V279: 8 | W279: No operation | X279: FALSE | Y279: No operation | AB279: 8 | AC279: No operation | AD279: TRUE | AE279: No operation
N280: Medium | O280: FALSE | P280: Belt/conveyor: Medium drying capacity, high energy consumption, medium investment required
N281: High | O281: FALSE | P281: Rotary: Medium/high drying capacity, medium energy consumption, high investment required
N282: Figure caption | O282: =IF(O279,"Natural drying",IF(O280,"Belt/Coveyor dryer","Rotary dryer")) -> Natural drying
O283: =IF(O279,P279,IF(O280,P280,P281)) -> Natural: Low drying capacity, low energy consumption, low investment | W283: Step 4 | X283: Conditionals | AC283: Step 7 | AD283: Conditionals
V284: 1 | W284: =Y272 -> Primary size reduction | X284: =IF($E$26=W284,TRUE, FALSE) -> FALSE | Y284: =+IF(X284,"",W284) -> Primary size reduction | AB284: 1 | AC284: =AE272 -> Primary size reduction | AD284: =IF($E$29=AC284,TRUE, FALSE) -> FALSE | AE284: =+IF(AD284,"",AC284) -> Primary size reduction
N285: Transport | V285: 2 | W285: =Y273 -> Drying | X285: =IF($E$26=W285,TRUE, FALSE) -> FALSE | Y285: =+IF(X285,"",W285) -> Drying | AB285: 2 | AC285: =AE273 -> Drying | AD285: =IF($E$29=AC285,TRUE, FALSE) -> FALSE | AE285: =+IF(AD285,"",AC285) -> Drying
N286: Low | O286: TRUE | P286: Small capacity heavy duty truck, 20 t | V286: 3 | X286: FALSE | AB286: 3 | AD286: FALSE
N287: Medium | O287: FALSE | P287: Medium capacity heavy duty truck, 30 t | V287: 4 | W287: Milling/Grinding | X287: FALSE | Y287: Milling/Grinding | AB287: 4 | AC287: Milling/Grinding | AD287: FALSE | AE287: Milling/Grinding
N288: High | O288: TRUE | P288: Large capacity heavy duty truck, 45 t | V288: 5 | W288: Densification | X288: FALSE | Y288: Densification | AB288: 5 | AC288: Densification | AD288: FALSE | AE288: Densification
N289: Figure caption | O289: =IF(O286,"Small truck capacity",IF(O287,"Medium truck capacity","Large truck capacity")) -> Small truck capacity | V289: 6 | W289: Storage | X289: FALSE | Y289: Storage | AB289: 6 | AC289: Storage | AD289: FALSE | AE289: Storage
O290: =IF(O286,P286,IF(O287,P287,P288)) -> Small capacity heavy duty truck, 20 t | V290: 7 | X290: FALSE | AB290: 7 | AD290: FALSE
V291: 8 | W291: No operation | X291: FALSE | Y291: No operation | AB291: 8 | AC291: No operation | AD291: TRUE | AE291: No operation
N292: Baling
N293: Low | O293: TRUE | P293: Medium round: medium baling capacity, medium biomass density
N294: Medium | O294: FALSE | P294: Large round: large baling capacity, medium biomass density
N295: High | O295: FALSE | P295: Large square: medium baling capacity, medium-high biomass density | W295: Step 5 | X295: Conditionals | AC295: Step 8
N296: Figure caption | O296: =IF(O293,"Medium round bales",IF(O294,"Large round bales","Large square bales")) -> Medium round bales | V296: 1 | W296: =Y284 -> Primary size reduction | X296: =IF($E$27=W296,TRUE, FALSE) -> FALSE | Y296: =+IF(X296,"",W296) -> Primary size reduction | AB296: 1 | AC296: =AE284 -> Primary size reduction | AD296: =IF($E$30=AC296,TRUE, FALSE) -> FALSE | AE296: =+IF(AD296,"",AC296) -> Primary size reduction
O297: =IF(O293,P293,IF(O294,P294,P295)) -> Medium round: medium baling capacity, medium biomass density | V297: 2 | W297: =Y285 -> Drying | X297: =IF($E$27=W297,TRUE, FALSE) -> FALSE | Y297: =+IF(X297,"",W297) -> Drying | AB297: 2 | AC297: =AE285 -> Drying | AD297: =IF($E$30=AC297,TRUE, FALSE) -> FALSE | AE297: =+IF(AD297,"",AC297) -> Drying
V298: 3 | X298: FALSE | AB298: 3 | AD298: FALSE
N299: Milling/Grinding | V299: 4 | W299: Milling/Grinding | X299: FALSE | Y299: Milling/Grinding | AB299: 4 | AC299: Milling/Grinding | AD299: FALSE | AE299: Milling/Grinding
N300: Low | O300: TRUE | P300: High investment needs, medium-high milling capacity | V300: 5 | W300: Densification | X300: FALSE | Y300: Densification | AB300: 5 | AC300: Densification | AD300: FALSE | AE300: Densification
N301: Medium | O301: FALSE | P301: Medium investment needs, medium milling capacity | V301: 6 | W301: Storage | X301: FALSE | Y301: Storage | AB301: 6 | AC301: Storage | AD301: FALSE | AE301: Storage
N302: High | O302: FALSE | P302: Low-medium investment needs, medium milling capacity | V302: 7 | X302: FALSE | AB302: 7 | AD302: FALSE
N303: Figure caption | O303: =IF(O300,"Hammer mill",IF(O301,"Disk mill","Knife mill")) -> Hammer mill | V303: 8 | W303: No operation | X303: TRUE | Y303: No operation | AB303: 8 | AC303: No operation | AD303: TRUE | AE303: No operation
O304: =IF(O300,P300,IF(O301,P301,P302)) -> High investment needs, medium-high milling capacity
N305: Densification | R305: Storage
N306: Low | O306: TRUE | R306: Low | S306: TRUE
N307: Medium | O307: TRUE
N309: Figure caption | O309: =IF(O306,"Mechanized pellet mill","Mechanized piston press") -> Mechanized pellet mill | R309: Figure caption | S309: Storage at collection centre | W309: Selection of sequences for aggregation centres | AA309: Step 1 | AB309: Step 2 | AC309: Step 3 | AD309: Step 4
W310: Check boxes technologies | AA310: Please select | AB310: Please select | AC310: Please select | AD310: Please select
W311: Step 1 | AA311: =IFERROR(INDEX($Y$312:$Y$316,SMALL(IF($Y$312:$Y$316<>"",ROW($Y$312:$Y$316)-ROW($Y$312)+1),ROWS(AA$311:AA311))),"") -> Drying | AB311: =IFERROR(INDEX($Y$321:$Y$325,SMALL(IF($Y$321:$Y$325<>"",ROW($Y$321:$Y$325)-ROW($Y$321)+1),ROWS(AB$311:AB311))),"") -> Drying | AC311: =IFERROR(INDEX($Y$330:$Y$334,SMALL(IF($Y$330:$Y$334<>"",ROW($Y$330:$Y$334)-ROW($Y$330)+1),ROWS(AC$311:AC311))),"") -> Drying | AD311: =IFERROR(INDEX($AD$321:$AD$325,SMALL(IF($AD$321:$AD$325<>"",ROW($AD$321:$AD$325)-ROW($AD$321)+1),ROWS(AD$311:AD311))),"") -> Drying
V312: 1 | W312: TRUE | X312: Drying | Y312: =+IF(W312,X312,"") -> Drying | AA312: =IFERROR(INDEX($Y$312:$Y$316,SMALL(IF($Y$312:$Y$316<>"",ROW($Y$312:$Y$316)-ROW($Y$312)+1),ROWS(AA$311:AA312))),"") -> Milling/Grinding | AB312: =IFERROR(INDEX($Y$321:$Y$325,SMALL(IF($Y$321:$Y$325<>"",ROW($Y$321:$Y$325)-ROW($Y$321)+1),ROWS(AB$311:AB312))),"") -> Milling/Grinding | AC312: =IFERROR(INDEX($Y$330:$Y$334,SMALL(IF($Y$330:$Y$334<>"",ROW($Y$330:$Y$334)-ROW($Y$330)+1),ROWS(AC$311:AC312))),"") -> Milling/Grinding | AD312: =IFERROR(INDEX($AD$321:$AD$325,SMALL(IF($AD$321:$AD$325<>"",ROW($AD$321:$AD$325)-ROW($AD$321)+1),ROWS(AD$311:AD312))),"") -> Milling/Grinding | AE312: =IFERROR(INDEX($AD$330:$AD$335,SMALL(IF($AD$330:$AD$335<>"",ROW($AD$330:$AD$335)-ROW($AD$330)+1),ROWS(AE$311:AE312))),"") -> 
V313: 2 | W313: TRUE | X313: Milling/Grinding | Y313: =+IF(W313,X313,"") -> Milling/Grinding | AA313: =IFERROR(INDEX($Y$312:$Y$316,SMALL(IF($Y$312:$Y$316<>"",ROW($Y$312:$Y$316)-ROW($Y$312)+1),ROWS(AA$311:AA313))),"") -> Densification | AB313: =IFERROR(INDEX($Y$321:$Y$325,SMALL(IF($Y$321:$Y$325<>"",ROW($Y$321:$Y$325)-ROW($Y$321)+1),ROWS(AB$311:AB313))),"") -> Densification | AC313: =IFERROR(INDEX($Y$330:$Y$334,SMALL(IF($Y$330:$Y$334<>"",ROW($Y$330:$Y$334)-ROW($Y$330)+1),ROWS(AC$311:AC313))),"") -> Densification | AD313: =IFERROR(INDEX($AD$321:$AD$325,SMALL(IF($AD$321:$AD$325<>"",ROW($AD$321:$AD$325)-ROW($AD$321)+1),ROWS(AD$311:AD313))),"") -> Densification | AE313: =IFERROR(INDEX($AD$330:$AD$335,SMALL(IF($AD$330:$AD$335<>"",ROW($AD$330:$AD$335)-ROW($AD$330)+1),ROWS(AE$311:AE313))),"") -> 
N314: Drying levels Aggregation | V314: 3 | W314: TRUE | X314: Densification | Y314: =+IF(W314,X314,"") -> Densification | AA314: =IFERROR(INDEX($Y$312:$Y$316,SMALL(IF($Y$312:$Y$316<>"",ROW($Y$312:$Y$316)-ROW($Y$312)+1),ROWS(AA$311:AA314))),"") -> No operation | AB314: =IFERROR(INDEX($Y$321:$Y$325,SMALL(IF($Y$321:$Y$325<>"",ROW($Y$321:$Y$325)-ROW($Y$321)+1),ROWS(AB$311:AB314))),"") -> No operation | AC314: =IFERROR(INDEX($Y$330:$Y$334,SMALL(IF($Y$330:$Y$334<>"",ROW($Y$330:$Y$334)-ROW($Y$330)+1),ROWS(AC$311:AC314))),"") -> No operation | AD314: =IFERROR(INDEX($AD$321:$AD$325,SMALL(IF($AD$321:$AD$325<>"",ROW($AD$321:$AD$325)-ROW($AD$321)+1),ROWS(AD$311:AD314))),"") -> No operation | AE314: =IFERROR(INDEX($AD$330:$AD$335,SMALL(IF($AD$330:$AD$335<>"",ROW($AD$330:$AD$335)-ROW($AD$330)+1),ROWS(AE$311:AE314))),"") -> 
N315: Low | V315: 4 | W315: FALSE | X315: Storage | Y315: =+IF(W315,X315,"") ->  | AA315: =IFERROR(INDEX($Y$312:$Y$316,SMALL(IF($Y$312:$Y$316<>"",ROW($Y$312:$Y$316)-ROW($Y$312)+1),ROWS(AA$311:AA315))),"") ->  | AB315: =IFERROR(INDEX($Y$321:$Y$325,SMALL(IF($Y$321:$Y$325<>"",ROW($Y$321:$Y$325)-ROW($Y$321)+1),ROWS(AB$311:AB315))),"") ->  | AC315: =IFERROR(INDEX($Y$330:$Y$334,SMALL(IF($Y$330:$Y$334<>"",ROW($Y$330:$Y$334)-ROW($Y$330)+1),ROWS(AC$311:AC315))),"") ->  | AD315: =IFERROR(INDEX($AD$321:$AD$325,SMALL(IF($AD$321:$AD$325<>"",ROW($AD$321:$AD$325)-ROW($AD$321)+1),ROWS(AD$311:AD315))),"") ->  | AE315: =IFERROR(INDEX($AD$330:$AD$335,SMALL(IF($AD$330:$AD$335<>"",ROW($AD$330:$AD$335)-ROW($AD$330)+1),ROWS(AE$311:AE315))),"") -> 
N316: Medium | O316: TRUE | P316: Belt/conveyor: Medium drying capacity, high energy consumption, medium investment required | Y316: No operation | AA316: =IFERROR(INDEX($Y$312:$Y$316,SMALL(IF($Y$312:$Y$316<>"",ROW($Y$312:$Y$316)-ROW($Y$312)+1),ROWS(AA$311:AA316))),"") ->  | AB316: =IFERROR(INDEX($Y$321:$Y$326,SMALL(IF($Y$321:$Y$326<>"",ROW($Y$321:$Y$326)-ROW($Y$321)+1),ROWS(AB$311:AB316))),"") ->  | AC316: =IFERROR(INDEX($Y$330:$Y$335,SMALL(IF($Y$330:$Y$335<>"",ROW($Y$330:$Y$335)-ROW($Y$330)+1),ROWS(AC$311:AC316))),"") ->  | AD316: =IFERROR(INDEX($AD$321:$AD$326,SMALL(IF($AD$321:$AD$326<>"",ROW($AD$321:$AD$326)-ROW($AD$321)+1),ROWS(AD$311:AD316))),"") ->  | AE316: =IFERROR(INDEX($AD$330:$AD$335,SMALL(IF($AD$330:$AD$335<>"",ROW($AD$330:$AD$335)-ROW($AD$330)+1),ROWS(AE$311:AE316))),"") -> 
N317: High | O317: TRUE | P317: Rotary: Medium/high drying capacity, medium energy consumption, high investment required
N318: Figure caption | O318: =IF(O316,"Belt/Coveyor dryer","Rotary dryer") -> Belt/Coveyor dryer
O319: =IF(O316,P316,P317) -> Belt/conveyor: Medium drying capacity, high energy consumption, medium investment required
N320: Milling/Grinding Aggregation | W320: Step 2 | AB320: Step 4
N321: Low | O321: TRUE | P321: High investment needs, medium-high milling capacity | V321: 1 | W321: =Y312 -> Drying | X321: =IF($I$24=W321,TRUE, FALSE) -> FALSE | Y321: =+IF(X321,"",W321) -> Drying | AA321: 1 | AB321: =Y330 -> Drying | AC321: =IF($I$26=AB321,TRUE, FALSE) -> FALSE | AD321: =+IF(AC321,"",AB321) -> Drying
N322: Medium | O322: FALSE | P322: Medium investment needs, medium milling capacity | V322: 2 | W322: =Y313 -> Milling/Grinding | X322: =IF($I$24=W322,TRUE, FALSE) -> FALSE | Y322: =+IF(X322,"",W322) -> Milling/Grinding | AA322: 2 | AB322: =Y331 -> Milling/Grinding | AC322: =IF($I$26=AB322,TRUE, FALSE) -> FALSE | AD322: =+IF(AC322,"",AB322) -> Milling/Grinding
N323: High | O323: TRUE | P323: Low-medium investment needs, medium milling capacity | V323: 3 | W323: =Y314 -> Densification | X323: =IF($I$24=W323,TRUE, FALSE) -> FALSE | Y323: =+IF(X323,"",W323) -> Densification | AA323: 3 | AB323: =Y332 -> Densification | AC323: =IF($I$26=AB323,TRUE, FALSE) -> FALSE | AD323: =+IF(AC323,"",AB323) -> Densification
N324: Figure caption | O324: =IF(O321,"Hammer mill",IF(O322,"Disk mill","Knife mill")) -> Hammer mill | V324: 4 | W324: =Y315 ->  | X324: =IF($I$24=W324,TRUE, FALSE) -> FALSE | Y324: =+IF(X324,"",W324) ->  | AA324: 4 | AB324: =Y333 ->  | AC324: =IF($I$26=AB324,TRUE, FALSE) -> FALSE | AD324: =+IF(AC324,"",AB324) -> 
O325: =IF(O322,P321,IF(O323,P322,P323)) -> Medium investment needs, medium milling capacity | V325: 5 | W325: =Y316 -> No operation | X325: =IF($I$24=W325,TRUE, FALSE) -> TRUE | Y325: No operation | AA325: 5 | AB325: =Y334 -> No operation | AC325: =IF($I$26=AB325,TRUE, FALSE) -> TRUE | AD325: No operation
N326: Densification Aggregation
N327: Low | O327: TRUE
N328: Medium | O328: TRUE
W329: Step 3
N330: Figure caption | O330: =IF(O327,"Mechanized pellet mill","Mechanized piston press") -> Mechanized pellet mill | V330: 1 | W330: =Y321 -> Drying | X330: =IF($I$25=W330,TRUE, FALSE) -> FALSE | Y330: =+IF(X330,"",W330) -> Drying
V331: 2 | W331: =Y322 -> Milling/Grinding | X331: =IF($I$25=W331,TRUE, FALSE) -> FALSE | Y331: =+IF(X331,"",W331) -> Milling/Grinding
V332: 3 | W332: =Y323 -> Densification | X332: =IF($I$25=W332,TRUE, FALSE) -> FALSE | Y332: =+IF(X332,"",W332) -> Densification
N333: Storage | V333: 4 | W333: =Y324 ->  | X333: =IF($I$25=W333,TRUE, FALSE) -> FALSE | Y333: =+IF(X333,"",W333) -> 
N334: Low | O334: TRUE | V334: 5 | W334: =Y325 -> No operation | X334: =IF($I$25=W334,TRUE, FALSE) -> TRUE | Y334: No operation
N337: Figure caption | O337: Storage at aggregation centre
W339: =E89 -> Please select | AA339: =VLOOKUP($W$339,W341:AA356,5,FALSE) -> 0
X340: Heating value | Y340: Density (kg/L) | Z340: kg CO2e/MJ | AA340: g CO2e/MJ
W341: Please Select
W342: Gasoline | X342: 44.3 | Y342: 0.89 | Z342: 0.070985 | AA342: =Z342*1000 -> 70.985
W343: Diesel Oil | X343: 43 | Y343: 0.73722 | Z343: 0.0753909 | AA343: =Z343*1000 -> 75.3909
W344: Waste Oil / Lubrificants | X344: 40.2 | Y344: 0.95 | Z344: 0.0745909 | AA344: 74.5909
W345: LPG | X345: 47.3 | Y345: 0.545 | Z345: 0.064464 | AA345: 64.464
W346: Natural Gas | X346: 48 | Y346: 0.65 | Z346: =0.0156 -> 0.0156 | AA346: 15.6
W347: Peat | X347: 9.76 | Y347: 0.6823529412 | Z347: 0.000486 | AA347: 0.486
W348: Butane | X348: 45.27677204 | Y348: 2 | Z348: 0.01948001062 | AA348: 19.48001062
W349: Propane | X349: 46.29553566 | Y349: 1.92 | Z349: 0.01725760354 | AA349: 17.25760354
W350: Methanol | X350: 20.09356275 | Y350: 0.7918 | Z350: 0.08642318218 | AA350: 86.42318218
W351: Ethanol | X351: 26.95163409 | Y351: 0.789 | Z351: 0.004227793194 | AA351: 4.227793194
W352: Biodiesel | X352: =35.7/0.88 -> 40.56818182 | Y352: 0.88 | Z352: 0.004259035631 | AA352: 4.259035631
W353: Other bituminous coal | X353: 22.732203 | Y353: 0 | Z353: 0.02333333333 | AA353: 23.33333333
W354: Sub bituminous coal | X354: 26.12151245 | Y354: 0 | Z354: 0.02583333333 | AA354: 25.83333333
W355: Lignite brown coal | X355: 28.61019707 | Y355: 0 | Z355: 0.02638888889 | AA355: 26.38888889
W356: Wood | X356: 19.55106924 | Y356: 0 | Z356: 5.196646729e-07 | AA356: 0.0005196646729
W357: =E117 -> Please select | X357: =VLOOKUP($W$357,W359:X493,2,FALSE) -> 0
W358: Emission Rates for electricity | X358: gCO2 /kWh
W359: Please Select
W360: Albania | X360: 11
W361: Algeria | X361: 576
W362: Angola | X362: 237
W363: Argentina | X363: 355
W364: Armenia | X364: 108
W365: Australia | X365: 853
W366: Austria | X366: 163
W367: Azerbaijan | X367: 443
W368: Bahrain | X368: 665
W369: Bangladesh | X369: 585
W370: Belarus | X370: 302
W371: Belgium | X371: 218
... 122 more rows

Sheet Allocator (hidden)
B2: Allocator
B4: Feedstock capacity per collection site, and land capacity per collection site
C6: Capacity per input total | D6: Capacity per collection site | F6: Real biomass collected per site
B7: Feedstock | C7: t/y | D7: t/year | E7: Moisture | F7: t/year | J7: Assumption, collection always considered as first step
B8: ='Data Entry Needs'!$E$11 ->  | C8: ='Data Entry Needs'!$E$12 -> 0 | D8: ='COLL&AGG'!$S$48 -> 0 | E8: ='Data Entry Needs'!$E$15 -> 0 | F8: =IF(D8<C8,D8,C8) -> 0
C11: Capacity per input total | D11: Capacity per collection site | F11: Real biomass collected per site
B12: Feedstock | C12: ha/y | D12: ha/year | F12: ha/year
B13: ='Data Entry Needs'!$E$11 ->  | C13: ='COLL&AGG'!$S$43 ->  | D13: ='COLL&AGG'!$S$47 -> 0 | F13: =IF(D13<C13,D13,C13) -> 0
B16: Sequence collection & aggregation centres
F17: input | G17: output | H17: input | I17: output | J17: input | K17: output | P17: input | Q17: output | R17: input | S17: output | T17: input | U17: output
C18: Collection centres | D18: Binary | F18: t/year | G18: t/year | H18: wt% | I18: wt% | J18: kg/m3 | K18: kg/m3 | P18: t/year | Q18: t/year | R18: wt% | S18: wt% | T18: kg/m3 | U18: kg/m3
F19: Biomass input | G19: Biomass output | H19: Moisture input | I19: Moisture output | J19: Bulk density | K19: Bulk density | P19: Biomass input | Q19: Biomass output | R19: Moisture input | S19: Moisture output | T19: Bulk density | U19: Bulk density
B20: 1 | C20: ='Data Entry Needs'!E24 -> Please select | E20: 1 | F20: =F8 -> 0 | G20: =COLLECTION!P92 -> 0 | H20: =E8*E20 -> 0 | I20: =S20 -> 0 | J20: ='Data Entry Needs'!E14*E20 -> 0 | K20: =J20 -> 0 | N20: =IFERROR(VLOOKUP(O20,$C$20:$F$27,3,FALSE),0) -> 0 | O20: Collection | P20: =IFERROR(VLOOKUP(O20,$C$20:$F$27,4,FALSE),0) -> 0 | Q20: =COLLECTION!P92 -> 0 | R20: =IFERROR(VLOOKUP(O20,$C$20:$I$28,6,FALSE),0) -> 0 | S20: =COLLECTION!P114 -> 0 | T20: =IFERROR(VLOOKUP(O20,$C$20:$K$28,8,FALSE),0) -> 0 | U20: =K20 -> 0
B21: 2 | C21: ='Data Entry Needs'!E25 -> Please select | D21: =OR(C21="Please select",C21="",C21="No operation") -> TRUE | E21: =IF(D21,0,1) -> 0 | F21: =G20*E21 -> 0 | G21: =IFERROR(VLOOKUP(C21,$O$20:$Q$28,3,FALSE),0) -> 0 | H21: =I20*E21 -> 0 | I21: =IFERROR(VLOOKUP(C21,$O$20:$S$28,5,FALSE),0) -> 0 | J21: =K20*E21 -> 0 | K21: =IFERROR(VLOOKUP(C21,$O$20:$U$28,7,FALSE),0) -> 0 | N21: =IFERROR(VLOOKUP(O21,$C$20:$F$27,3,FALSE),0) -> 0 | O21: Primary size reduction | P21: =IFERROR(VLOOKUP(O21,$C$20:$F$28,4,FALSE),0) -> 0 | Q21: =SIZERED_C!AG86 -> 0 | R21: =IFERROR(VLOOKUP(O21,$C$20:$I$28,6,FALSE),0) -> 0 | S21: =SIZERED_C!T86 -> 0 | T21: =IFERROR(VLOOKUP(O21,$C$20:$K$28,8,FALSE),0) -> 0 | U21: =SIZERED_C!AG89 -> 235.88
B22: 3 | C22: ='Data Entry Needs'!E26 -> Please select | D22: =OR(C22="Please select",C22="",C22="No operation") -> TRUE | E22: 0 | F22: =G21*E22 -> 0 | G22: 0 | H22: =I21*E22 -> 0 | I22: =IFERROR(VLOOKUP(C22,$O$20:$S$28,5,FALSE),0) -> 0 | J22: =K21*E22 -> 0 | K22: =IFERROR(VLOOKUP(C22,$O$20:$U$28,7,FALSE),0) -> 0 | N22: 0 | O22: Baling | P22: =IFERROR(VLOOKUP(O22,$C$20:$F$28,4,FALSE),0) -> 0 | Q22: =BALING_C!AK79 -> 0 | R22: =IFERROR(VLOOKUP(O22,$C$20:$I$28,6,FALSE),0) -> 0 | S22: =BALING_C!W82 -> 0 | T22: =IFERROR(VLOOKUP(O22,$C$20:$K$28,8,FALSE),0) -> 0 | U22: =BALING_C!AK82 -> 200
B23: 4 | C23: ='Data Entry Needs'!E27 -> No operation | D23: TRUE | E23: 0 | F23: 0 | G23: 0 | H23: 0 | I23: 0 | J23: 0 | K23: 0 | N23: 0 | O23: Drying | P23: 0 | Q23: =DRYING_C!AM84 -> 0 | R23: 0 | S23: =DRYING_C!S95 -> 0 | T23: 0 | U23: =DRYING_C!S135 -> 0
B24: 5 | C24: ='Data Entry Needs'!E28 -> No operation | D24: TRUE | E24: 0 | F24: 0 | G24: 0 | H24: 0 | I24: 0 | J24: 0 | K24: 0 | N24: 0 | O24: Densification | P24: 0 | Q24: =DENSIFICATION_C!AK77 -> 0 | R24: 0 | S24: =DENSIFICATION_C!W80 -> 0 | T24: 0 | U24: =DENSIFICATION_C!AK80 -> 0
B25: 6 | C25: ='Data Entry Needs'!E29 -> No operation | D25: TRUE | E25: 0 | F25: 0 | G25: 0 | H25: 0 | I25: 0 | J25: 0 | K25: 0 | N25: 0 | O25: Storage | P25: 0 | Q25: =STORAGE_C!S82 -> 0 | R25: 0 | S25: =STORAGE_C!S76 -> 0 | T25: 0 | U25: =STORAGE_C!S77 -> 0
B26: 7 | C26: ='Data Entry Needs'!E30 -> No operation | D26: TRUE | E26: 0 | F26: 0 | G26: 0 | H26: 0 | I26: 0 | J26: 0 | K26: 0 | N26: 0 | O26: Milling/Grinding | P26: 0 | Q26: =MILLING_C!AK78 -> 0 | R26: 0 | S26: =MILLING_C!W81 -> 0 | T26: 0 | U26: =MILLING_C!AK81 -> 0
B27: 8 | C27: ='Data Entry Needs'!E31 -> No operation | D27: TRUE | E27: 0 | F27: 0 | G27: 0 | H27: 0 | I27: 0 | J27: 0 | K27: 0 | N27: 0 | O27: Transport | P27: 0 | Q27: =TRANSPORT_C!AK82 -> 0 | R27: 0 | S27: =TRANSPORT_C!W85 -> 0 | T27: 0 | U27: =TRANSPORT_C!AK85 -> 0
C30: Biomass supplied per collection centre | F30: =IFERROR(SMALL(G20:G27,COUNTIF(G20:G27,"<=0")+1),"") ->  | G30: t/y
C31: Number of collection centres | F31: =IFERROR(IF('COLL&AGG'!T51<1,ROUNDUP('COLL&AGG'!T51,0),'COLL&AGG'!T51),"") ->  | G31: Not rounded to avoid overestimation of total biomass supplied. Rounded if only 1 collection centre is needed
C32: Total biomass delivered to all aggregation centres | F32: =IFERROR(F30*F31,"") ->  | G32: t/y
C33: Total biomass delivered to each aggregation centres | F33: =IFERROR(F30*I34,"") ->  | G33: t/y | I33: Number of collection centres per aggregation centres
C34: Biomass moisture | F34: =IFERROR(VLOOKUP($F$30,$G$20:$K$27,3,FALSE),"") ->  | I34: =IFERROR(F31/F49,"") -> 
C35: Biomass density | F35: =IFERROR(VLOOKUP($F$30,$G$20:$K$27,5,FALSE),"") ->  | G35: kg/m3
I36: =IFERROR(F30*F31,"") -> 
F39: input | G39: output | H39: input | I39: output | J39: input | K39: output | P39: input | Q39: output | R39: input | S39: output | T39: input | U39: output
F40: t/year | G40: t/year | H40: wt% | I40: wt% | J40: kg/m3 | K40: kg/m3 | P40: t/year | Q40: t/year | R40: wt% | S40: wt% | T40: kg/m3 | U40: kg/m3
C41: Aggregation centres | F41: Biomass input | G41: Biomass output | H41: Moisture input | I41: Moisture output | J41: Bulk density | K41: Bulk density | O41: Aggregation centres | P41: Biomass input | Q41: Biomass output | R41: Moisture input | S41: Moisture output | T41: Bulk density | U41: Bulk density
B42: 1 | C42: ='Data Entry Needs'!I24 -> No operation | D42: =OR(C42="Please select",C42="",C42="No operation") -> TRUE | E42: =IF(D42,0,1) -> 0 | F42: =IFERROR(F33*E42,"") ->  | G42: =IFERROR(VLOOKUP(C42,$O$42:$U$45,3,FALSE),0) -> 0 | H42: =IFERROR(F34*E42,"") ->  | I42: =IFERROR(VLOOKUP(C42,$O$42:$U$45,5,FALSE),0) -> 0 | J42: =IFERROR(E42*F35,"") ->  | K42: =IFERROR(VLOOKUP(C42,$O$42:$U$45,7,FALSE),0) -> 0 | N42: =IFERROR(VLOOKUP(O42,$C$42:$E$45,3,FALSE),0) -> 0 | O42: Drying | P42: =IFERROR(VLOOKUP(O42,$C$42:$K$45,4,FALSE),0) -> 0 | Q42: =DRYING_A!AM84 -> 0 | R42: =IFERROR(VLOOKUP(O42,$C$42:$K$45,6,FALSE),0) -> 0 | S42: =DRYING_A!S95 -> 0 | T42: =IFERROR(VLOOKUP(O42,$C$42:$K$45,8,FALSE),0) -> 0 | U42: =DRYING_A!S135 -> 0
B43: 2 | C43: ='Data Entry Needs'!I25 -> No operation | D43: =OR(C43="Please select",C43="",C43="No operation") -> TRUE | E43: =IF(D43,0,1) -> 0 | F43: =G42*E43 -> 0 | G43: =IFERROR(VLOOKUP(C43,$O$42:$U$45,3,FALSE),0) -> 0 | H43: =E43*I42 -> 0 | I43: =IFERROR(VLOOKUP(C43,$O$42:$U$45,5,FALSE),0) -> 0 | J43: =K42*E43 -> 0 | K43: =IFERROR(VLOOKUP(C43,$O$42:$U$45,7,FALSE),0) -> 0 | N43: =IFERROR(VLOOKUP(O43,$C$42:$E$45,3,FALSE),0) -> 0 | O43: Milling/Grinding | P43: =IFERROR(VLOOKUP(O43,$C$42:$K$45,4,FALSE),0) -> 0 | Q43: =MILLING_A!AK78 -> 0 | R43: =IFERROR(VLOOKUP(O43,$C$42:$K$45,6,FALSE),0) -> 0 | S43: =MILLING_A!W81 -> 0 | T43: =IFERROR(VLOOKUP(O43,$C$42:$K$45,8,FALSE),0) -> 0 | U43: =MILLING_A!AK81 -> 0
B44: 3 | C44: ='Data Entry Needs'!I26 -> No operation | D44: =OR(C44="Please select",C44="",C44="No operation") -> TRUE | E44: =IF(D44,0,1) -> 0 | F44: =G43*E44 -> 0 | G44: =IFERROR(VLOOKUP(C44,$O$42:$U$45,3,FALSE),0) -> 0 | H44: =E44*I43 -> 0 | I44: =IFERROR(VLOOKUP(C44,$O$42:$U$45,5,FALSE),0) -> 0 | J44: =K43*E44 -> 0 | K44: =IFERROR(VLOOKUP(C44,$O$42:$U$45,7,FALSE),0) -> 0 | N44: =IFERROR(VLOOKUP(O44,$C$42:$E$45,3,FALSE),0) -> 0 | O44: Densification | P44: =IFERROR(VLOOKUP(O44,$C$42:$K$45,4,FALSE),0) -> 0 | Q44: =DENSIFICATION_A!AK77 -> 0 | R44: =IFERROR(VLOOKUP(O44,$C$42:$K$45,6,FALSE),0) -> 0 | S44: =DENSIFICATION_A!W80 -> 0 | T44: =IFERROR(VLOOKUP(O44,$C$42:$K$45,8,FALSE),0) -> 0 | U44: =DENSIFICATION_A!AK80 -> 0
B45: 4 | C45: ='Data Entry Needs'!I27 -> No operation | D45: =OR(C45="Please select",C45="",C45="No operation") -> TRUE | E45: =IF(D45,0,1) -> 0 | F45: =G44*E45 -> 0 | G45: =IFERROR(VLOOKUP(C45,$O$42:$U$45,3,FALSE),0) -> 0 | H45: =E45*I44 -> 0 | I45: =IFERROR(VLOOKUP(C45,$O$42:$U$45,5,FALSE),0) -> 0 | J45: =K44*E45 -> 0 | K45: =IFERROR(VLOOKUP(C45,$O$42:$U$45,7,FALSE),0) -> 0 | N45: =IFERROR(VLOOKUP(O45,$C$42:$E$45,3,FALSE),0) -> 0 | O45: Storage | P45: =IFERROR(VLOOKUP(O45,$C$42:$K$45,4,FALSE),0) -> 0 | Q45: =STORAGE_A!S82 -> 0 | R45: =IFERROR(VLOOKUP(O45,$C$42:$K$45,6,FALSE),0) -> 0 | S45: =STORAGE_A!S76 -> 0 | T45: =IFERROR(VLOOKUP(O45,$C$42:$K$45,8,FALSE),0) -> 0 | U45: =STORAGE_A!S77 -> 0
C48: Biomass supplied per all collection centres | F48: =IFERROR(SMALL(G42:G45,COUNTIF(G42:G45,"<=0")+1),F33) ->  | G48: t/y
C49: Number of aggregation centres | F49: =IFERROR(IF('COLL&AGG'!T57<1,ROUNDUP('COLL&AGG'!T57,0),'COLL&AGG'!T57),"") ->  | G49: Not rounded to avoid overestimation of total biomass supplied. Rounded if only 1 aggregation centre is needed
C50: Total biomass supplied | F50: =IFERROR(F48*F49,"") ->  | G50: t/y
C51: Biomass moisture | F51: =IFERROR(VLOOKUP($F$48,$G$42:$K$45,3,FALSE),F34) ->  | H51: =F50<C8 -> FALSE
C52: Biomass density | F52: =IFERROR(VLOOKUP($F$48,$G$42:$K$45,5,FALSE),F35) ->  | G52: kg/m3
B54: Aggregation of costs
B56: Costs per collection centre
C57: Collection | D57: Primary size reduction | E57: Baling | F57: Drying | G57: Milling/Grinding | H57: Densification | I57: Transport | J57: Storage | K57: Total per collection site | M57: Total costs including all collection sites
B58: Category | C58: USD/y | D58: USD/y | E58: USD/y | F58: USD/y | G58: USD/y | H58: USD/y | I58: USD/y | J58: USD/y | K58: USD/y | M58: Category | N58: USD/y | O58: Share
B59: Labor Unskilled | C59: =IFERROR(COLLECTION!AA126,"") -> 0 | D59: =SIZERED_C!AG92 -> 0 | E59: =BALING_C!AK90 -> 0 | F59: =DRYING_C!AM88 -> 0 | G59: =MILLING_C!AK83 -> 0 | H59: =DENSIFICATION_C!AK82 -> 0 | I59: =IFERROR(TRANSPORT_C!AK87,"") -> 0 | J59: =STORAGE_C!$Y$96 -> 0 | K59: =SUM(C59:J59) -> 0 | M59: Labor Unskilled | N59: =IFERROR(K59*$F$31,"") ->  | O59: =IFERROR(N59/$N$72,"") -> 
B60: Labor Skilled | C60: =COLLECTION!AA127 -> 0 | D60: =SIZERED_C!AG93 -> 0 | E60: =BALING_C!AK91 -> 0 | F60: =DRYING_C!AM89 -> 0 | G60: =MILLING_C!AK84 -> 0 | H60: =DENSIFICATION_C!AK83 -> 0 | I60: =IFERROR(TRANSPORT_C!AK88,"") -> 0 | J60: =STORAGE_C!$Y$97 -> 0 | K60: =SUM(C60:J60) -> 0 | M60: Labor Skilled | N60: =IFERROR(K60*$F$31,"") ->  | O60: =IFERROR(N60/$N$72,"") -> 
B61: Miscelaneous | C61: =COLLECTION!AA128 -> 0 | D61: =SIZERED_C!AG94 -> 0 | E61: =BALING_C!AK92 -> 0 | F61: =DRYING_C!AM90 -> 0 | G61: =MILLING_C!$AK$85 -> 0 | H61: =DENSIFICATION_C!$AK$84 -> 0 | I61: =TRANSPORT_C!AK89 -> 0 | J61: =STORAGE_C!$Y$98 -> 0 | K61: 0 | M61: Miscelaneous
B62: Machinery Rental | C62: =COLLECTION!AA129 -> 0 | D62: =SIZERED_C!AG95 -> 0 | E62: =BALING_C!AK93 -> 0 | I62: =IFERROR(TRANSPORT_C!AK90,"") -> 0 | J62: =STORAGE_C!$Y$100 -> 0 | K62: 0 | M62: Machinery Rental
B63: Building rental | J63: =STORAGE_C!$Y$99 -> 0 | K63: 0 | M63: Building rental
B64: Depreciation | F64: =DRYING_C!AM91 -> 0 | G64: =MILLING_C!AK86 -> 0 | H64: =DENSIFICATION_C!AK85 -> 0 | K64: 0 | M64: Depreciation
B65: Maintenance | C65: =COLLECTION!AA130 -> 0 | D65: =SIZERED_C!AG96 -> 0 | E65: =BALING_C!AK94 -> 0 | F65: =DRYING_C!AM92 -> 0 | G65: =MILLING_C!AK87 -> 0 | H65: =DENSIFICATION_C!AK86 -> 0 | I65: =IFERROR(TRANSPORT_C!AK91,"") -> 0 | J65: =STORAGE_C!$Y$101 -> 0 | K65: 0 | M65: Maintenance
B66: Fuel | C66: =COLLECTION!AA131 -> 0 | D66: =SIZERED_C!AG97 -> 0 | E66: =BALING_C!AK95 -> 0 | F66: =DRYING_C!AM93 -> 0 | G66: =MILLING_C!AK88 -> 0 | H66: =DENSIFICATION_C!AK87 -> 0 | I66: =IFERROR(TRANSPORT_C!AK92,"") -> 0 | K66: 0 | M66: Fuel
B67: Power | D67: =SIZERED_C!AG98 -> 0 | E67: =BALING_C!AK96 -> 0 | F67: =DRYING_C!AM94 -> 0 | G67: =MILLING_C!AK89 -> 0 | H67: =DENSIFICATION_C!AK88 -> 0 | I67: =IFERROR(TRANSPORT_C!AK93,"") -> 0 | J67: =STORAGE_C!$Y$102 -> 0 | K67: 0 | M67: Power
B68: Accesing | C68: =COLLECTION!AA132 -> 0 | K68: 0 | M68: Accesing
B69: Loan | C69: =COLLECTION!AA133 -> 0 | D69: =SIZERED_C!AG99 -> 0 | E69: =BALING_C!AK97 -> 0 | F69: =DRYING_C!AM95 -> 0 | G69: =MILLING_C!AK90 -> 0 | H69: =DENSIFICATION_C!AK89 -> 0 | I69: =TRANSPORT_C!AK94 -> 0 | J69: =IFERROR(STORAGE_C!Y103,"") ->  | K69: 0 | M69: Loan
B70: Overhead | C70: =COLLECTION!AA134 -> 0 | D70: =SIZERED_C!AG100 -> 0 | E70: =BALING_C!AK98 -> 0 | F70: =DRYING_C!AM96 -> 0 | G70: =MILLING_C!$AK$91 -> 0 | H70: =DENSIFICATION_C!$AK$90 -> 0 | I70: =TRANSPORT_C!AK95 -> 0 | J70: =STORAGE_C!$Y$104 -> 0 | K70: 0 | M70: Overhead
B71: General and administrative | C71: =COLLECTION!AA135 -> 0 | D71: =SIZERED_C!AG101 -> 0 | E71: =BALING_C!AK99 -> 0 | F71: =DRYING_C!AM97 -> 0 | G71: =MILLING_C!AK92 -> 0 | H71: =DENSIFICATION_C!AK91 -> 0 | I71: =TRANSPORT_C!AK96 -> 0 | J71: =STORAGE_C!Y105 -> 0 | K71: 0 | M71: General and administrative
B72: Total | C72: =SUM(C59:C71) -> 0 | D72: =SUM(D59:D71) -> 0 | E72: 0 | F72: 0 | G72: 0 | H72: 0 | I72: 0 | J72: 0 | K72: 0 | M72: Total | N72: =SUM(N59:N71) -> 0 | O72: =SUM(O59:O71) -> 0
B74: Costs per aggregation centre
C75: Drying | D75: Milling/Grinding | E75: Densification | F75: Storage | G75: Total per collection site | M75: Total costs including all aggrgation sites
B76: Category | C76: USD/y | D76: USD/y | E76: USD/y | F76: USD/y | G76: USD/y | M76: Category | N76: USD/y | O76: Share
B77: Labor Unskilled | C77: =DRYING_A!AM88 -> 0 | D77: =MILLING_A!AK83 -> 0 | E77: =DENSIFICATION_A!AK82 -> 0 | F77: =STORAGE_A!Y96 -> 0 | G77: =SUM(C77:F77) -> 0 | M77: Labor Unskilled | N77: =IFERROR(G77*$F$49,"") ->  | O77: =IFERROR(N77/$N$90,"") -> 
B78: Labor Skilled | C78: =DRYING_A!AM89 -> 0 | D78: =MILLING_A!AK84 -> 0 | E78: =DENSIFICATION_A!AK83 -> 0 | F78: =STORAGE_A!Y97 -> 0 | G78: =SUM(C78:F78) -> 0 | M78: Labor Skilled | N78: =IFERROR(G78*$F$49,"") ->  | O78: =IFERROR(N78/$N$90,"") -> 
B79: Miscelaneous | C79: =DRYING_A!$AM$90 -> 0 | D79: =MILLING_A!$AK$85 -> 0 | E79: =DENSIFICATION_A!$AK$84 -> 0 | F79: =STORAGE_A!Y98 -> 0 | G79: =SUM(C79:F79) -> 0 | M79: Miscelaneous
B80: Machinery Rental | F80: =STORAGE_A!Y100 -> 0 | G80: =SUM(C80:F80) -> 0 | M80: Machinery Rental
B81: Building rental | F81: =STORAGE_A!Y99 -> 0 | G81: =SUM(C81:F81) -> 0 | M81: Building rental
B82: Depreciation | C82: =DRYING_A!AM91 -> 0 | D82: =MILLING_A!AK86 -> 0 | E82: =DENSIFICATION_A!AK85 -> 0 | G82: =SUM(C82:F82) -> 0 | M82: Depreciation
B83: Maintenance | C83: =DRYING_A!AM92 -> 0 | D83: =MILLING_A!AK87 -> 0 | E83: =DENSIFICATION_A!AK86 -> 0 | F83: =STORAGE_A!Y101 -> 0 | G83: 0 | M83: Maintenance
B84: Fuel | C84: =DRYING_A!AM93 -> 0 | D84: =MILLING_A!AK88 -> 0 | E84: =DENSIFICATION_A!AK87 -> 0 | G84: 0 | M84: Fuel
B85: Power | C85: =DRYING_A!AM94 -> 0 | D85: =MILLING_A!AK89 -> 0 | E85: =DENSIFICATION_A!AK88 -> 0 | F85: =STORAGE_A!Y102 -> 0 | G85: 0 | M85: Power
B86: Accesing | G86: 0 | M86: Accesing
B87: Loan | C87: =DRYING_A!AM95 -> 0 | D87: =MILLING_A!AK90 -> 0 | E87: =DENSIFICATION_A!AK89 -> 0 | F87: =IFERROR(STORAGE_A!Y103,"") ->  | G87: 0 | M87: Loan
B88: Overhead | C88: =DRYING_A!$AM$96 -> 0 | D88: =MILLING_A!$AK$91 -> 0 | E88: =DENSIFICATION_A!$AK$90 -> 0 | F88: =STORAGE_A!Y104 -> 0 | G88: 0 | M88: Overhead
B89: General and administrative | C89: =DRYING_A!AM97 -> 0 | D89: =MILLING_A!AK92 -> 0 | E89: =DENSIFICATION_A!AK91 -> 0 | F89: =STORAGE_A!Y105 -> 0 | G89: 0 | M89: General and administrative
B90: Total | C90: =SUM(C77:C89) -> 0 | D90: =SUM(D77:D89) -> 0 | E90: =SUM(E77:E89) -> 0 | F90: =SUM(F77:F89) -> 0 | G90: =SUM(G77:G89) -> 0 | M90: Total | N90: =SUM(N77:N89) -> 0 | O90: =SUM(O77:O89) -> 0
B93: Cost per cost category
B95: Total costs including collection and aggregation centres | G95: Total supply costs per t of biomass
B96: Category | C96: USD/y | D96: Share | G96: Category | H96: USD/t
B97: Labor Unskilled | C97: =IFERROR(N59+N77,"") ->  | D97: =IFERROR(C97/$C$110,"") ->  | G97: Labor Unskilled | H97: =IFERROR(C97/$F$50,"") -> 
B98: Labor Skilled | C98: =IFERROR(N60+N78,"") ->  | D98: =IFERROR(C98/$C$110,"") ->  | G98: Labor Skilled | H98: =IFERROR(C98/$F$50,"") -> 
B99: Miscelaneous | C99: =IFERROR(N61+N79,"") ->  | G99: Miscelaneous
B100: Machinery Rental | C100: =IFERROR(N62+N80,"") ->  | G100: Machinery Rental
B101: Building Rental | G101: Building Rental
B102: Depreciation | G102: Depreciation
B103: Maintenance | G103: Maintenance
B104: Fuel | G104: Fuel
B105: Power | G105: Power
B106: Accesing | G106: Accesing
B107: Loan | G107: Loan
B108: Overhead | G108: Overhead
B109: General and administrative | G109: General and administrative
B110: Total | C110: =SUM(C97:C109) -> 0 | D110: =SUM(D97:D109) -> 0 | G110: Total | H110: =SUM(H97:H109) -> 0
B113: For all collection centres and aggregation
B114: Costs break down for operation
B115: Category | C115: USD/y | D115: Share | G115: Category | H115: USD/t
B116: Collection | C116: =IFERROR(C72*$F$31,"") ->  | D116: =IFERROR(C116/$C$124,"") ->  | G116: Collection | H116: =IFERROR(C116/$F$50,"") -> 
B117: Primary size reduction | C117: =IFERROR(D72*$F$31,"") ->  | D117: =IFERROR(C117/$C$124,"") ->  | G117: Primary size reduction | H117: =IFERROR(C117/$F$50,"") -> 
B118: Baling | C118: =IFERROR(E72*$F$31,"") ->  | G118: Baling
B119: Drying | C119: =IFERROR(F72*$F$31+C90*$F$49,"") ->  | G119: Drying | K119: =H124-H110 -> 0
B120: Milling/Grinding | C120: =IFERROR(G72*$F$31+D90*$F$49,"") ->  | G120: Milling/Grinding
B121: Densification | C121: =IFERROR(H72*$F$31+E90*$F$49,"") ->  | G121: Densification
B122: Transport | C122: =IFERROR(I72*$F$31,"") ->  | G122: Transport
B123: Storage | C123: =IFERROR(J72*$F$31+F90*$F$49,"") ->  | G123: Storage
B124: Total | C124: =SUM(C116:C123) -> 0 | D124: =SUM(D116:D123) -> 0 | G124: Total | H124: =SUM(H116:H123) -> 0
B126: Aggregation of Energy demand
B128: Energy demand per collection centre
C129: Collection | D129: Primary size reduction | E129: Baling | F129: Drying | G129: Milling/Grinding | H129: Densification | I129: Transport | J129: Storage | K129: Total per collection site | M129: Total energy demand including all collection sites
B130: Category | C130: TJ/y | D130: TJ/y | E130: TJ/y | F130: TJ/y | G130: TJ/y | H130: TJ/y | I130: TJ/y | J130: TJ/y | K130: TJ/y | M130: Category | N130: TJ/y | O130: Share
B131: Fuel | C131: =COLLECTION!$AA$152 -> 0 | D131: =SIZERED_C!$AG$109 -> 0 | E131: =BALING_C!$AK$113 -> 0 | F131: =DRYING_C!AM118 -> 0 | G131: =MILLING_C!AK100 -> 0 | H131: =DENSIFICATION_C!AK96 -> 0 | I131: =TRANSPORT_C!AO103 -> 0 | J131: =STORAGE_C!$Y$112 -> 0 | K131: =SUM(C131:J131) -> 0 | M131: Fuel | N131: =IFERROR(K131*$F$31,"") ->  | O131: =IFERROR(N131/$N$133,"") -> 
B132: Electricity | D132: =SIZERED_C!$AG$110 -> 0 | E132: 0 | F132: =DRYING_C!AM119 -> 0 | G132: =MILLING_C!AK101 -> 0 | H132: =DENSIFICATION_C!AK97 -> 0 | I132: =TRANSPORT_C!AO104 -> 0 | J132: =STORAGE_C!$Y$112 -> 0 | K132: =SUM(C132:J132) -> 0 | M132: Electricity | N132: =IFERROR(K132*$F$31,"") ->  | O132: =IFERROR(N132/$N$133,"") -> 
B133: Total | C133: =SUM(C131:C132) -> 0 | D133: =SUM(D131:D132) -> 0 | E133: 0 | F133: 0 | G133: 0 | H133: 0 | I133: 0 | J133: 0 | K133: 0 | M133: Total | N133: =SUM(N131:N132) -> 0 | O133: =SUM(O131:O132) -> 0
B136: Energy demand per aggregation centre
C137: Drying | D137: Milling/Grinding | E137: Densification | F137: Storage | G137: Total per collection site | M137: Total energy demand including all aggregation centres
B138: Category | C138: TJ/y | D138: TJ/y | E138: TJ/y | F138: TJ/y | G138: TJ/y | M138: Category | N138: TJ/y | O138: Share
B139: Fuel | C139: =DRYING_A!AM111 -> 0 | D139: =MILLING_A!AK97 -> 0 | E139: =DENSIFICATION_A!AK96 -> 0 | F139: =STORAGE_A!Y111 -> 0 | G139: =SUM(C139:F139) -> 0 | M139: Fuel | N139: =IFERROR(G139*$F$49,"") ->  | O139: =IFERROR(N139/$N$141,"") -> 
B140: Electricity | C140: =DRYING_A!AM112 -> 0 | D140: =MILLING_A!AK98 -> 0 | E140: =DENSIFICATION_A!AK97 -> 0 | F140: =STORAGE_A!Y112 -> 0 | G140: =SUM(C140:F140) -> 0 | M140: Electricity | N140: =IFERROR(G140*$F$49,"") ->  | O140: =IFERROR(N140/$N$141,"") -> 
B141: Total | C141: =SUM(C139:C140) -> 0 | D141: =SUM(D139:D140) -> 0 | E141: =SUM(E139:E140) -> 0 | F141: =SUM(F139:F140) -> 0 | G141: =SUM(G139:G140) -> 0 | M141: Total | N141: =SUM(N139:N140) -> 0 | O141: =SUM(O139:O140) -> 0
B144: Energy demand per category
F145: per biomass unit
B146: Category | C146: TJ/y | D146: Share | F146: Category | G146: MJ/kg | H146: Share
B147: Fuel | C147: =N131+N139 ->  | D147: =C147/$C$149 ->  | F147: Fuel | G147: =C147*1000/$F$50 ->  | H147: =G147/$G$149 -> 
B148: Electricity | C148: =N132+N140 ->  | D148: =C148/$C$149 ->  | F148: Electricity | G148: =C148*1000/$F$50 ->  | H148: =G148/$G$149 -> 
B149: Total | C149: =SUM(C147:C148) ->  | D149: =SUM(D147:D148) ->  | F149: Total | G149: =SUM(G147:G148) ->  | H149: =SUM(H147:H148) -> 
B151: For all collection centres and aggregation
B152: Energy demand break down for operation
B153: Category | C153: TJ/y | D153: Share | G153: Category | H153: MJ/kg
B154: Collection | C154: =C133*$F$31 ->  | D154: =C154/$C$162 ->  | G154: Collection | H154: =C154*1000/$F$50 -> 
B155: Primary size reduction | C155: =D133*$F$31 ->  | D155: =C155/$C$162 ->  | G155: Primary size reduction | H155: =C155*1000/$F$50 -> 
B156: Baling | C156: =E133*$F$31 ->  | G156: Baling
B157: Drying | C157: =F133*$F$31+C141*$F$49 ->  | G157: Drying
B158: Milling/Grinding | C158: =G133*$F$31+D141*$F$49 ->  | G158: Milling/Grinding
B159: Densification | C159: =H133*$F$31+E141*$F$49 ->  | G159: Densification
B160: Transport | C160: =I133*$F$31 ->  | G160: Transport
B161: Storage | C161: =J133*$F$31+F141*$F$49 ->  | G161: Storage
B162: Total | C162: =SUM(C154:C161) ->  | D162: =SUM(D154:D161) ->  | G162: Total | H162: =SUM(H154:H161) -> 
B165: Aggregation of GHG emissions
B167: Energy demand per collection centre
C168: Collection | D168: Primary size reduction | E168: Baling | F168: Drying | G168: Milling/Grinding | H168: Densification | I168: Transport | J168: Storage | K168: Total per collection site | M168: Total energy demand including all collection sites
B169: Category | C169: tCO2/y | D169: tCO2/y | E169: tCO2/y | F169: tCO2/y | G169: tCO2/y | H169: tCO2/y | I169: tCO2/y | J169: tCO2/y | K169: tCO2/y | M169: Category | N169: tCO2/y | O169: Share
B170: Fuel | C170: =COLLECTION!$AA$153 -> 0 | D170: =SIZERED_C!AG115 -> 0 | E170: =BALING_C!AK121 -> 0 | F170: =DRYING_C!AQ118 -> 0 | G170: =MILLING_C!AK108 -> 0 | H170: =DENSIFICATION_C!AK104 -> 0 | I170: =TRANSPORT_C!AK104 -> 0 | J170: =STORAGE_C!Y117 -> 0 | K170: =SUM(C170:J170) -> 0 | M170: Fuel | N170: =K170*$F$31 ->  | O170: =N170/$N$172 -> 
B171: Electricity | D171: =SIZERED_C!AG116 -> 0 | E171: =BALING_C!$AK$122 -> 0 | F171: =DRYING_C!AQ119 -> 0 | G171: =MILLING_C!AK109 -> 0 | H171: =DENSIFICATION_C!AK105 -> 0 | I171: =TRANSPORT_C!AK105 -> 0 | J171: =STORAGE_C!Y118 -> 0 | K171: =SUM(C171:J171) -> 0 | M171: Electricity | N171: =K171*$F$31 ->  | O171: =N171/$N$172 -> 
B172: Total | C172: =SUM(C170:C171) -> 0 | D172: 0 | E172: 0 | F172: 0 | G172: 0 | H172: 0 | I172: 0 | J172: 0 | K172: 0 | M172: Total | N172: =SUM(N170:N171) ->  | O172: =SUM(O170:O171) -> 
B175: Energy demand per aggregation centre
C176: Drying | D176: Milling/Grinding | E176: Densification | F176: Storage | G176: Total per collection site | M176: Total energy demand including all aggregation centres
B177: Category | C177: tCO2/y | D177: tCO2/y | E177: tCO2/y | F177: tCO2/y | G177: tCO2/y | M177: Category | N177: tCO2/y | O177: Share
B178: Fuel | C178: =DRYING_A!AQ111 -> 0 | D178: =MILLING_A!AK105 -> 0 | E178: =DENSIFICATION_A!AK104 -> 0 | F178: =STORAGE_A!Y117 -> 0 | G178: =SUM(C178:F178) -> 0 | M178: Fuel | N178: =G178*$F$49 ->  | O178: =N178/$N$180 -> 
B179: Electricity | C179: =DRYING_A!AQ112 -> 0 | D179: =MILLING_A!AK106 -> 0 | E179: =DENSIFICATION_A!AK105 -> 0 | F179: =STORAGE_A!Y118 -> 0 | G179: =SUM(C179:F179) -> 0 | M179: Electricity | N179: =G179*$F$49 ->  | O179: =N179/$N$180 -> 
B180: Total | C180: =SUM(C178:C179) -> 0 | D180: =SUM(D178:D179) -> 0 | E180: =SUM(E178:E179) -> 0 | F180: =SUM(F178:F179) -> 0 | G180: =SUM(G178:G179) -> 0 | M180: Total | N180: =SUM(N178:N179) ->  | O180: =SUM(O178:O179) -> 
B183: GHG per category
F184: per biomass unit
B185: Category | C185: tCO2-eq/y | D185: Share | F185: Category | G185: kgCO2-eq/t | H185: Share
B186: Fuel | C186: =N170+N178 ->  | D186: =C186/$C$188 ->  | F186: Fuel | G186: =C186*1000/$F$50 ->  | H186: =G186/$G$188 -> 
B187: Electricity | C187: =N171+N179 ->  | D187: =C187/$C$188 ->  | F187: Electricity | G187: =C187*1000/$F$50 ->  | H187: =G187/$G$188 -> 
B188: Total | C188: =SUM(C186:C187) ->  | D188: =SUM(D186:D187) ->  | F188: Total | G188: =SUM(G186:G187) ->  | H188: =SUM(H186:H187) -> 
B190: For all collection centres and aggregation
B191: Energy demand break down for operation
B192: Category | C192: tCO2-eq/y | D192: Share | G192: Category | H192: kgCO2-eq/kg
B193: Collection | C193: =C172*$F$31 ->  | D193: =C193/$C$201 ->  | G193: Collection | H193: =C193/$F$50 -> 
B194: Primary size reduction | C194: =D172*$F$31 ->  | D194: =C194/$C$201 ->  | G194: Primary size reduction | H194: =C194/$F$50 -> 
B195: Baling | C195: =E172*$F$31 ->  | G195: Baling
B196: Drying | C196: =F172*$F$31+C180*$F$49 ->  | G196: Drying
B197: Milling/Grinding | C197: =G172*$F$31+D180*$F$49 ->  | G197: Milling/Grinding
B198: Densification | C198: =H172*$F$31+E180*$F$49 ->  | G198: Densification
B199: Transport | C199: =I172*$F$31 ->  | G199: Transport
B200: Storage | C200: =J172*$F$31+F180*$F$49 ->  | G200: Storage
B201: Total | C201: =SUM(C193:C200) ->  | D201: =SUM(D193:D200) ->  | G201: Total | H201: =SUM(H193:H200) -> 
B204: Number of Jobs
B206: Number of jobs
B207: Collection centres | C207: Collection | D207: Primary size reduction | E207: Baling | F207: Drying | G207: Milling/Grinding | H207: Densification | I207: Transport | J207: Storage | K207: Total per collection site | M207: Total costs including all collection sites
B208: Category | C208: # | D208: # | E208: # | F208: # | G208: # | H208: # | I208: # | J208: # | K208: # | M208: Category | N208: # | O208: Share
B209: Labor Unskilled | C209: =COLLECTION!AA140 -> 0 | D209: =SIZERED_C!AL109 -> 0 | E209: =BALING_C!AK104 -> 0 | F209: =DRYING_C!AP101 -> 0 | G209: =MILLING_C!AQ102 -> 0 | H209: =DENSIFICATION_C!AS81 -> 0 | I209: =TRANSPORT_C!AR86 -> 0 | J209: =STORAGE_C!Z90 -> 0 | K209: =SUM(C209:J209) -> 0 | M209: Labor Unskilled | N209: =ROUNDUP(K209*$F$31,0) ->  | O209: =N209/$N$211 -> 
B210: Labor Skilled | C210: =COLLECTION!AA141 -> 0 | D210: =SIZERED_C!AL110 -> 0 | E210: =BALING_C!AK105 -> 0 | F210: =DRYING_C!AP102 -> 0 | G210: =MILLING_C!AQ103 -> 0 | H210: =DENSIFICATION_C!AS82 -> 0 | I210: =TRANSPORT_C!AR87 -> 0 | J210: =STORAGE_C!Z91 -> 0 | K210: =SUM(C210:J210) -> 0 | M210: Labor Skilled | N210: =ROUNDUP(K210*$F$31,0) ->  | O210: =N210/$N$211 -> 
B211: Total | C211: =SUM(C209:C210) -> 0 | D211: =SUM(D209:D210) -> 0 | E211: 0 | F211: 0 | G211: 0 | H211: 0 | I211: 0 | J211: 0 | K211: 0 | M211: Miscelaneous | N211: =SUM(N209:N210) ->  | O211: =SUM(O209:O210) -> 
B214: Number of jobs
B215: Collection centres | C215: Drying | D215: Milling/Grinding | E215: Densification | F215: Storage | G215: Total per aggregation | M215: Total costs including all collection sites
B216: Category | C216: # | D216: # | E216: # | F216: # | G216: # | M216: Category | N216: # | O216: Share
B217: Labor Unskilled | C217: =DRYING_A!AP101 -> 0 | D217: =MILLING_A!AQ102 -> 0 | E217: =DENSIFICATION_A!AS81 -> 0 | F217: =STORAGE_A!Z90 -> 0 | G217: =SUM(C217:F217) -> 0 | M217: Labor Unskilled | N217: =ROUNDUP(G217*$F$49,0) ->  | O217: =N217/$N$219 -> 
B218: Labor Skilled | C218: =DRYING_A!AP102 -> 0 | D218: =MILLING_A!AQ103 -> 0 | E218: =DENSIFICATION_A!AS82 -> 0 | F218: =STORAGE_A!Z91 ->  | G218: =SUM(C218:F218) ->  | M218: Labor Skilled | N218: =ROUNDUP(G218*$F$49,0) ->  | O218: =N218/$N$219 -> 
B219: Total | C219: =SUM(C217:C218) -> 0 | D219: =SUM(D217:D218) -> 0 | E219: =SUM(E217:E218) -> 0 | F219: =SUM(F217:F218) ->  | G219: =SUM(G217:G218) ->  | M219: Miscelaneous | N219: =SUM(N217:N218) ->  | O219: =SUM(O217:O218) -> 
B222: Jobs per category
B224: Category | C224: Jobs | D224: Share
B225: Unskilled | C225: =N209+N217 ->  | D225: =C225/$C$227 -> 
B226: Skilled | C226: =N210+N218 ->  | D226: =C226/$C$227 -> 
B227: Total | C227: =SUM(C225:C226) ->  | D227: =SUM(D225:D226) -> 
B229: For all collection centres and aggregation
B230: Energy demand break down for operation
B231: Category | C231: Jobs | D231: Share
B232: Collection | C232: =C211*$F$31 ->  | D232: =C232/$C$240 -> 
B233: Primary size reduction | C233: =D211*$F$31 ->  | D233: =C233/$C$240 -> 
B234: Baling | C234: =E211*$F$31 -> 
B235: Drying | C235: =F211*$F$31+C219*$F$49 -> 
B236: Milling/Grinding | C236: =G211*$F$31+D219*$F$49 -> 
B237: Densification | C237: =H211*$F$31+E219*$F$49 -> 
B238: Transport | C238: =I211*$F$31 -> 
B239: Storage | C239: =J211*$F$31+F219*$F$49 -> 
B240: Total | C240: =ROUNDUP(SUM(C232:C239),0) ->  | D240: =SUM(D232:D239) -> 

Sheet PARAMETERS
C3: =+"DEFAULT PARAMETERS USED IN EACH OPERATION" -> DEFAULT PARAMETERS USED IN EACH OPERATION
C6: Use white cells to input data | E6: Grey cells are used for calculations
C8: The user is encouraged to review and modify the default parameters for each operation type for more accurate results.
C11: Operations at collection centre level
C13: Biomass collection
C15: Share of machinery use in semi-mechanized collection mode (%) | H15: 0.5
C16: Collection capacity manual operation mode (tonne/h) | H16: 0.1
C17: Collection capacity mechanized operation mode (tonne/h) | H17: 2.5
C19: Drying
C21: Natural drying capacity (t/h) | H21: 2
C22: Belt/Conveyor drying capacity (t/h) | H22: 8
C23: Rotary drying capacity (t/h) | H23: 12
C24: Machinery depreciation time (years) | H24: 20
C25: Belt/Conveyor dryer power (HP) | H25: 120
C26: Rotary dryer power (HP) | H26: 100
C28: Primary size reduction
C30: Chipping mass recovery efficiency (%) | H30: 0.99
C31: Small chipper capacity (t/h) | H31: 6
C32: Medium chipper capacity (t/h) | H32: 10
C33: Large chipper capacity (t/h) | H33: 20
C35: Baling
C37: Baling mass recovery efficiency | H37: 0.99
C38: Medium round bale average density (kg/m3) | H38: 200
C39: Large round bale average density (kg/m3) | H39: 200
C40: Large square bale average density (kg/m3) | H40: 200
C41: Medium round bales average packing capacity (t/h) | H41: 12
C42: Large round bales average packingcapacity (t/h) | H42: 18
C43: Large squeare bales average packing capacity (t/h) | H43: 13
C45: Milling/Grinding
C47: Milling/Grinding mass recovery efficiency | H47: 0.99
C48: Hammer mill processing capacity (t/h) | H48: 3
C49: Disk mill processing capacity (t/h) | H49: 2
C50: Knife mill processing capacity (t/h) | H50: 2
C51: Maintenance costs (% of capital investment) | H51: 0.002
C52: Machinery depreciation time (years) | H52: 20
C54: Transport
C56: Biomass mass recovery efficiency | H56: 0.99
C57: % of time on road for loading and unloading | H57: 0.4
C58: % of time on road for stops, breaks and additional possible issues | H58: 0.1
C60: Densification
C62: Biomass mass recovery efficiency | H62: 0.99
C63: Briquettes production capacity (t/h) | H63: 4
C64: Pellets production capacity (t/h) | H64: 4
C65: Machinery depreciation time (years) | H65: 20
C67: Storage
C69: Biomass mass recovery efficiency | H69: 0.99
C70: Stocking capacity (t/h) | H70: 5
C71: Storage building height (m) | H71: 10
C72: Building oversizing (%) | H72: 0.05
C73: Maintenance costs (% of bulding rental) | H73: 0.0005
C75: Operations at aggregation centre level
C77: Drying
C79: Belt/Conveyor drying capacity (t/h) | H79: 40
C80: Rotary drying capacity (t/h) | H80: 50
C81: Machinery depreciation time (years) | H81: 20
C82: Belt/Conveyor dryer power (HP) | H82: 120
C83: Rotary dryer power (HP) | H83: 100
C85: Milling/Grinding
C87: Milling/Grinding mass recovery efficiency | H87: 0.99
C88: Hammer mill processing capacity (t/h) | H88: 15
C89: Disk mill processing capacity (t/h) | H89: 12
C90: Knife mill processing capacity (t/h) | H90: 12
C91: Machinery depreciation time (years) | H91: 20
C93: Densification
C95: Biomass mass recovery efficiency | H95: 0.99
C96: Briquettes production capacity (t/h) | H96: 12
C97: Pellets production capacity (t/h) | H97: 12
C98: Machinery depreciation time (years) | H98: 20
C100: Storage
C102: Biomass mass recovery efficiency | H102: 0.99
C103: Stocking capacity (t/h) | H103: 15
C104: Storage building height (m) | H104: 9
C105: Bulding oversizing (%) | H105: 0.02
C106: Maintenance costs (% of bulding rental) | H106: 0.0005
H117: C centers | L117: Collection center
H118: Drying | I118: =IF(L120,1,0) -> 1 | L118: ='Data Entry Needs'!W260 -> FALSE | M118: ='Data Entry Needs'!X260 -> Collection
H119: Milling | I119: =IF(L122,1,0) -> 1 | L119: ='Data Entry Needs'!W261 -> TRUE | M119: ='Data Entry Needs'!X261 -> Primary size reduction
H120: Densification | I120: =IF(L123,1,0) -> 1 | L120: ='Data Entry Needs'!W262 -> TRUE | M120: ='Data Entry Needs'!X262 -> Drying
H121: Storage | I121: =IF(L124,1,0) -> 1 | L121: ='Data Entry Needs'!W263 -> FALSE | M121: ='Data Entry Needs'!X263 -> Baling
L122: ='Data Entry Needs'!W264 -> TRUE | M122: ='Data Entry Needs'!X264 -> Milling/Grinding
L123: ='Data Entry Needs'!W265 -> TRUE | M123: ='Data Entry Needs'!X265 -> Densification
L124: ='Data Entry Needs'!W266 -> TRUE | M124: ='Data Entry Needs'!X266 -> Storage
H125: Drying | I125: =IF(L128,1,0) -> 1 | L125: ='Data Entry Needs'!W267 -> FALSE | M125: ='Data Entry Needs'!X267 -> Transport
H126: Milling | I126: =IF(L129,1,0) -> 1
H127: Densification | I127: =IF(L130,1,0) -> 1 | L127: Aggregation center
H128: Storage | I128: =IF(L131,1,0) -> 0 | L128: ='Data Entry Needs'!W312 -> TRUE | M128: ='Data Entry Needs'!X312 -> Drying
L129: ='Data Entry Needs'!W313 -> TRUE | M129: ='Data Entry Needs'!X313 -> Milling/Grinding
L130: ='Data Entry Needs'!W314 -> TRUE | M130: ='Data Entry Needs'!X314 -> Densification
L131: ='Data Entry Needs'!W315 -> FALSE | M131: ='Data Entry Needs'!X315 -> Storage

Sheet COLL&AGG (hidden)
C3: =+"CALCULATION OF COLLECTION & AGGREGATION CENTRES OF "&UPPER('Data Entry Needs'!$E$11&" ") -> CALCULATION OF COLLECTION & AGGREGATION CENTRES OF
C6: Use white cells to input data | E6: Colored cells are used for calculations
C8: Total collection land required
C10: =+"Total Available "&('Data Entry Needs'!$E$11&" (t/year)") -> Total Available (t/year) | G10: ='Data Entry Needs'!$E$12 -> 0
C11: =+('Data Entry Needs'!$E$11&" yield (t/ha, wet)") -> yield (t/ha, wet) | G11: ='Data Entry Needs'!$E$13 -> 0
C12: =+"Total land required for collecting "&('Data Entry Needs'!$E$11&" (ha)") -> Total land required for collecting (ha) | G12: =$S$43 -> 
C14: Collection centres
C16: =('Data Entry Needs'!$E$11&" collection centres radius (km)") -> collection centres radius (km) | G16: ='Data Entry Needs'!$I$10 -> 0
C17: =+"Share of land covered with "&('Data Entry Needs'!$E$11&" (%)") -> Share of land covered with (%) | G17: ='Data Entry Needs'!$I$11 -> 0
C18: =+"Land covered in "&('Data Entry Needs'!$E$11&" per collection centre (ha)") -> Land covered in per collection centre (ha) | G18: =$S$47 -> 0
C19: =+""&('Data Entry Needs'!$E$11&" potentially collected per centre (t/year)") -> potentially collected per centre (t/year) | G19: =$S$48 -> 0
C20: =+"Number of required "&('Data Entry Needs'!$E$11&" collection centres") -> Number of required collection centres | G20: =$S$51 -> 
C22: Aggregation centres
C24: =('Data Entry Needs'!$E$11&" aggregation centres influence radius (km)") -> aggregation centres influence radius (km) | G24: ='Data Entry Needs'!$I$12 -> 0
C25: =+"Land influence per aggregation centre (ha)" -> Land influence per aggregation centre (ha) | G25: =$S$54 -> 0
C26: =+"Number of required "&('Data Entry Needs'!$E$11&" aggregation centres") -> Number of required aggregation centres | G26: =$S$57 -> 
Q39: Calculations
Q41: Biomass | R41: t/year | S41: =$G$10 -> 0
Q42: yield | R42: t/ha | S42: =$G$11 -> 0
Q43: Land required | R43: ha | S43: =IFERROR(ROUNDUP($S$41*(1/$S$42),0),"") -> 
Q45: Collection radius | R45: km | S45: =$G$16 -> 0
Q46: Share | R46: % | S46: =$G$17 -> 0
Q47: Land collection centre | R47: ha | S47: =IFERROR(ROUNDDOWN($S$45^2*PI()*$S$46*100,0),"") -> 0
Q48: Biomass potentially processed | R48: t/year | S48: =IFERROR($S$47*$S$42,"") -> 0
Q51: Number of collection centres | S51: =IFERROR(ROUNDUP($S$43/$S$47,0),"") ->  | T51: =$S$43/$S$47 -> 
Q53: Aggregation centres | R53: km | S53: =$G$24 -> 0
Q54: Influence land aggregation centres | R54: ha | S54: =IFERROR(ROUNDDOWN(PI()*$S$53^2*100,0),"") -> 0
Q57: Number of aggregation centres | S57: =IFERROR(ROUNDUP($S$43/$S$54,0),"") ->  | T57: =$S$43/$S$54 -> 

Sheet SUPPLY_COSTS (hidden)
C3: =+"SUMMARY OF SUPPLY COSTS OF "&UPPER('Data Entry Needs'!$E$11&" ") -> SUMMARY OF SUPPLY COSTS OF
C6: Use white cells to input data | E6: Grey cells are used for calculations
C8: Summary of costs per collection centre
C10: =+('Data Entry Needs'!$E$11&" supply capacity per collection centre (t/y)") -> supply capacity per collection centre (t/y) | H10: =Allocator!$F$30 -> 
C11: Number of collection centres | H11: =Allocator!$F$31 -> 
D15: Collection | E15: Primary size reduction | F15: Baling | G15: Drying | H15: Milling/ Grinding | I15: Densification | J15: Transport | K15: Storage | L15: Total per collection site
C17: Category | D17: USD/y | E17: USD/y | F17: USD/y | G17: USD/y | H17: USD/y | I17: USD/y | J17: USD/y | K17: USD/y | L17: USD/y
C18: Labor Unskilled | D18: =Allocator!C59 -> 0 | E18: =Allocator!D59 -> 0 | F18: =Allocator!E59 -> 0 | G18: =Allocator!F59 -> 0 | H18: =Allocator!G59 -> 0 | I18: =Allocator!H59 -> 0 | J18: =Allocator!I59 -> 0 | K18: =Allocator!J59 -> 0 | L18: =SUM(D18:K18) -> 0
C19: Labor Skilled | D19: =Allocator!C60 -> 0 | E19: =Allocator!D60 -> 0 | F19: =Allocator!E60 -> 0 | G19: =Allocator!F60 -> 0 | H19: =Allocator!G60 -> 0 | I19: =Allocator!H60 -> 0 | J19: =Allocator!I60 -> 0 | K19: =Allocator!J60 -> 0 | L19: =SUM(D19:K19) -> 0
C20: Miscelaneous | D20: =Allocator!C61 -> 0 | E20: =Allocator!D61 -> 0 | F20: =Allocator!E61 -> 0 | G20: =Allocator!F61 -> 0 | H20: =Allocator!G61 -> 0 | I20: =Allocator!H61 -> 0 | J20: =Allocator!I61 -> 0 | K20: =Allocator!J61 -> 0 | L20: 0
C21: Machinery Rental | D21: =Allocator!C62 -> 0 | E21: =Allocator!D62 -> 0 | F21: =Allocator!E62 -> 0 | G21: =Allocator!F62 -> 0 | H21: =Allocator!G62 -> 0 | I21: =Allocator!H62 -> 0 | J21: =Allocator!I62 -> 0 | K21: =Allocator!J62 -> 0 | L21: 0
C22: Building rental | D22: =Allocator!C63 -> 0 | E22: =Allocator!D63 -> 0 | F22: =Allocator!E63 -> 0 | G22: =Allocator!F63 -> 0 | H22: =Allocator!G63 -> 0 | I22: =Allocator!H63 -> 0 | J22: =Allocator!I63 -> 0 | K22: =Allocator!J63 -> 0 | L22: 0
C23: Depreciation | D23: =Allocator!C64 -> 0 | E23: =Allocator!D64 -> 0 | F23: =Allocator!E64 -> 0 | G23: =Allocator!F64 -> 0 | H23: =Allocator!G64 -> 0 | I23: =Allocator!H64 -> 0 | J23: =Allocator!I64 -> 0 | K23: =Allocator!J64 -> 0 | L23: 0
C24: Maintenance | D24: =Allocator!C65 -> 0 | E24: =Allocator!D65 -> 0 | F24: =Allocator!E65 -> 0 | G24: =Allocator!F65 -> 0 | H24: =Allocator!G65 -> 0 | I24: =Allocator!H65 -> 0 | J24: =Allocator!I65 -> 0 | K24: =Allocator!J65 -> 0 | L24: 0
C25: Fuel | D25: =Allocator!C66 -> 0 | E25: =Allocator!D66 -> 0 | F25: =Allocator!E66 -> 0 | G25: =Allocator!F66 -> 0 | H25: =Allocator!G66 -> 0 | I25: =Allocator!H66 -> 0 | J25: =Allocator!I66 -> 0 | K25: =Allocator!J66 -> 0 | L25: 0
C26: Power | D26: =Allocator!C67 -> 0 | E26: =Allocator!D67 -> 0 | F26: =Allocator!E67 -> 0 | G26: =Allocator!F67 -> 0 | H26: =Allocator!G67 -> 0 | I26: =Allocator!H67 -> 0 | J26: =Allocator!I67 -> 0 | K26: =Allocator!J67 -> 0 | L26: 0
C27: Accesing | D27: =Allocator!C68 -> 0 | E27: =Allocator!D68 -> 0 | F27: =Allocator!E68 -> 0 | G27: =Allocator!F68 -> 0 | H27: =Allocator!G68 -> 0 | I27: =Allocator!H68 -> 0 | J27: =Allocator!I68 -> 0 | K27: =Allocator!J68 -> 0 | L27: 0
C28: Loan | D28: =Allocator!C69 -> 0 | E28: =Allocator!D69 -> 0 | F28: =Allocator!E69 -> 0 | G28: =Allocator!F69 -> 0 | H28: =Allocator!G69 -> 0 | I28: =Allocator!H69 -> 0 | J28: =Allocator!I69 -> 0 | K28: =Allocator!J69 ->  | L28: 0
C29: Overhead | D29: =Allocator!C70 -> 0 | E29: =Allocator!D70 -> 0 | F29: =Allocator!E70 -> 0 | G29: =Allocator!F70 -> 0 | H29: =Allocator!G70 -> 0 | I29: =Allocator!H70 -> 0 | J29: =Allocator!I70 -> 0 | K29: =Allocator!J70 -> 0 | L29: 0
C30: General & administrative | D30: =Allocator!C71 -> 0 | E30: =Allocator!D71 -> 0 | F30: =Allocator!E71 -> 0 | G30: =Allocator!F71 -> 0 | H30: =Allocator!G71 -> 0 | I30: =Allocator!H71 -> 0 | J30: =Allocator!I71 -> 0 | K30: =Allocator!J71 -> 0 | L30: 0
C31: Total | D31: =SUM(D18:D30) -> 0 | E31: =SUM(E18:E30) -> 0 | F31: 0 | G31: 0 | H31: 0 | I31: 0 | J31: 0 | K31: 0 | L31: 0
C33: Total costs of all collection centre
C35: Total costs of collection centres = # collection centres * cost per collection centre
D37: Total costs | E37: Share
C39: Category | D39: USD/y | E39: %
C40: Labor Unskilled | D40: =Allocator!N59 ->  | E40: =IFERROR(D40/$D$53,"") -> 
C41: Labor Skilled | D41: =Allocator!N60 ->  | E41: =IFERROR(D41/$D$53,"") -> 
C42: Miscelaneous | D42: =Allocator!N61 -> 
C43: Machinery Rental | D43: =Allocator!N62 -> 
C44: Building rental | D44: =Allocator!N63 -> 
C45: Depreciation | D45: =Allocator!N64 -> 
C46: Maintenance | D46: =Allocator!N65 -> 
C47: Fuel | D47: =Allocator!N66 -> 
C48: Power | D48: =Allocator!N67 -> 
C49: Accesing | D49: =Allocator!N68 -> 
C50: Loan | D50: =Allocator!N69 -> 
C51: Overhead | D51: =Allocator!N70 -> 
C52: General & administrative | D52: =Allocator!N71 -> 
C53: Total | D53: =SUM(D40:D52) -> 0 | E53: =SUM(E40:E52) -> 0
C55: Summary of costs per aggregation centre
C57: =+('Data Entry Needs'!$E$11&" supply capacity per aggregation centre (t/y)") -> supply capacity per aggregation centre (t/y) | H57: =Allocator!$F$48 -> 
C58: Number of aggregation sites | H58: =IFERROR(Allocator!$F$49,"") -> 
D62: Drying | E62: Milling/ Grinding | F62: Densification | G62: Storage | H62: Total per aggregation centre
D63: Drying | E63: Milling/Grinding | F63: Densification | G63: Storage
C64: Category | D64: USD/y | E64: USD/y | F64: USD/y | G64: USD/y | H64: USD/y
C65: Labor Unskilled | D65: =Allocator!C77 -> 0 | E65: =Allocator!D77 -> 0 | F65: =Allocator!E77 -> 0 | G65: =Allocator!F77 -> 0 | H65: =SUM(D65:G65) -> 0
C66: Labor Skilled | D66: =Allocator!C78 -> 0 | E66: =Allocator!D78 -> 0 | F66: =Allocator!E78 -> 0 | G66: =Allocator!F78 -> 0 | H66: =SUM(D66:G66) -> 0
C67: Miscelaneous | D67: =Allocator!C79 -> 0 | E67: =Allocator!D79 -> 0 | F67: =Allocator!E79 -> 0 | G67: =Allocator!F79 -> 0 | H67: 0
C68: Machinery Rental | D68: =Allocator!C80 -> 0 | E68: =Allocator!D80 -> 0 | F68: =Allocator!E80 -> 0 | G68: =Allocator!F80 -> 0 | H68: 0
C69: Building rental | D69: =Allocator!C81 -> 0 | E69: =Allocator!D81 -> 0 | F69: =Allocator!E81 -> 0 | G69: =Allocator!F81 -> 0 | H69: 0
C70: Depreciation | D70: =Allocator!C82 -> 0 | E70: =Allocator!D82 -> 0 | F70: =Allocator!E82 -> 0 | G70: =Allocator!F82 -> 0 | H70: 0
C71: Maintenance | D71: =Allocator!C83 -> 0 | E71: =Allocator!D83 -> 0 | F71: =Allocator!E83 -> 0 | G71: =Allocator!F83 -> 0 | H71: 0
C72: Fuel | D72: =Allocator!C84 -> 0 | E72: =Allocator!D84 -> 0 | F72: =Allocator!E84 -> 0 | G72: =Allocator!F84 -> 0 | H72: 0
C73: Power | D73: =Allocator!C85 -> 0 | E73: =Allocator!D85 -> 0 | F73: =Allocator!E85 -> 0 | G73: =Allocator!F85 -> 0 | H73: 0
C74: Accesing | D74: =Allocator!C86 -> 0 | E74: =Allocator!D86 -> 0 | F74: =Allocator!E86 -> 0 | G74: =Allocator!F86 -> 0 | H74: 0
C75: Loan | D75: =Allocator!C87 -> 0 | E75: =Allocator!D87 -> 0 | F75: =Allocator!E87 -> 0 | G75: =Allocator!F87 ->  | H75: 0
C76: Overhead | D76: =Allocator!C88 -> 0 | E76: =Allocator!D88 -> 0 | F76: =Allocator!E88 -> 0 | G76: =Allocator!F88 -> 0 | H76: 0
C77: General & administrative | D77: =Allocator!C89 -> 0 | E77: =Allocator!D89 -> 0 | F77: =Allocator!E89 -> 0 | G77: =Allocator!F89 -> 0 | H77: 0
C78: Total | D78: =SUM(D65:D77) -> 0 | E78: =SUM(E65:E77) -> 0 | F78: =SUM(F65:F77) -> 0 | G78: =SUM(G65:G77) -> 0 | H78: =SUM(H65:H77) -> 0
C80: Total costs of all aggregation centres
C82: Total costs of aggregation centres = # aggregation centre * cost per aggregation centre
D84: Total costs | E84: Share
C86: Category | D86: USD/y | E86: %
C87: Labor Unskilled | D87: =Allocator!N77 ->  | E87: =IFERROR(D87/$D$100,"") -> 
C88: Labor Skilled | D88: =Allocator!N78 ->  | E88: =IFERROR(D88/$D$100,"") -> 
C89: Miscelaneous | D89: =Allocator!N79 -> 
C90: Machinery Rental | D90: =Allocator!N80 -> 
C91: Building rental | D91: =Allocator!N81 -> 
C92: Depreciation | D92: =Allocator!N82 -> 
C93: Maintenance | D93: =Allocator!N83 -> 
C94: Fuel | D94: =Allocator!N84 -> 
C95: Power | D95: =Allocator!N85 -> 
C96: Accesing | D96: =Allocator!N86 -> 
C97: Loan | D97: =Allocator!N87 -> 
C98: Overhead | D98: =Allocator!N88 -> 
C99: General & administrative | D99: =Allocator!N89 -> 
C100: Total | D100: =SUM(D87:D99) -> 0 | E100: =SUM(E87:E99) -> 0
C102: Total biomass supply costs
C104: Total supply costs = total costs of collection sites + total costs of aggregation centres
C106: =+('Data Entry Needs'!$E$11&" supplied (t/y)") -> supplied (t/y) | H106: =Allocator!$F$50 -> 
D108: Total costs | E108: Share
C110: Category | D110: USD/y | E110: %
C111: Labor Unskilled | D111: =Allocator!C97 ->  | E111: =IFERROR(D111/$D$124,"") -> 
C112: Labor Skilled | D112: =Allocator!C98 ->  | E112: =IFERROR(D112/$D$124,"") -> 
C113: Miscelaneous | D113: =Allocator!C99 -> 
C114: Machinery Rental | D114: =Allocator!C100 -> 
C115: Building rental | D115: =Allocator!C101 -> 
C116: Depreciation | D116: =Allocator!C102 -> 
C117: Maintenance | D117: =Allocator!C103 -> 
C118: Fuel | D118: =Allocator!C104 -> 
C119: Power | D119: =Allocator!C105 -> 
C120: Accesing | D120: =Allocator!C106 -> 
C121: Loan | D121: =Allocator!C107 -> 
C122: Overhead | D122: =Allocator!C108 -> 
C123: General & administrative | D123: =Allocator!C109 -> 
C124: Total | D124: =SUM(D111:D123) -> 0 | E124: =SUM(E111:E123) -> 0

Sheet SUPPLY_GHG (hidden)
C3: =+"SUMMARY OF GHG EMISSIONS OF "&UPPER('Data Entry Needs'!$E$11&" Supply") -> SUMMARY OF GHG EMISSIONS OF SUPPLY
C7: Use white cells to input data | E7: Grey cells are used for calculations
C9: Summary of GHG emissions per collection site
C11: =+('Data Entry Needs'!$E$11&" supply capacity per collection site (t/y)") -> supply capacity per collection site (t/y) | H11: =IFERROR(Allocator!$F$30,"") -> 
C12: Number of collection sites | H12: =IFERROR(Allocator!$F$31,"") -> 
D16: Collection | E16: Primary size reduction | F16: Baling | G16: Drying | H16: Milling/ Grinding | I16: Densification | J16: Transport | K16: Storage | L16: Total per collection site
C18: Category | D18: tCO2-eq/y | E18: tCO2-eq/y | F18: tCO2-eq/y | G18: tCO2-eq/y | H18: tCO2-eq/y | I18: tCO2-eq/y | J18: tCO2-eq/y | K18: tCO2-eq/y | L18: tCO2-eq/y
C19: Fuel | D19: =Allocator!C170 -> 0 | E19: =Allocator!D170 -> 0 | F19: =Allocator!E170 -> 0 | G19: =Allocator!F170 -> 0 | H19: =Allocator!G170 -> 0 | I19: =Allocator!H170 -> 0 | J19: =Allocator!I170 -> 0 | K19: =Allocator!J170 -> 0 | L19: =SUM(D19:K19) -> 0
C20: Electricity | D20: =Allocator!C171 -> 0 | E20: =Allocator!D171 -> 0 | F20: =Allocator!E171 -> 0 | G20: =Allocator!F171 -> 0 | H20: =Allocator!G171 -> 0 | I20: =Allocator!H171 -> 0 | J20: =Allocator!I171 -> 0 | K20: =Allocator!J171 -> 0 | L20: =SUM(D20:K20) -> 0
C21: Total | D21: =SUM(D19:D20) -> 0 | E21: =SUM(E19:E20) -> 0 | F21: 0 | G21: 0 | H21: 0 | I21: 0 | J21: 0 | K21: 0 | L21: =SUM(L19:L20) -> 0
C23: Total GHG emissions of all collection sites
C25: Total GHG emissions of collection sites = # collection sites * GHG emissions per collection site
D32: Total GHG emissions | E32: Share
C34: Category | D34: tCO2-eq/y | E34: %
C35: Fuel | D35: =IFERROR(Allocator!N170,"") ->  | E35: =IFERROR(D35/$D$37,"") -> 
C36: Electricity | D36: =IFERROR(Allocator!N171,"") ->  | E36: =IFERROR(D36/$D$37,"") -> 
C37: Total | D37: =SUM(D35:D36) -> 0 | E37: =SUM(E35:E36) -> 0
C42: Summary of GHG emissions per aggregation centre
C44: =+('Data Entry Needs'!$E$11&" supply capacity per aggregation centre (t/y)") -> supply capacity per aggregation centre (t/y) | H44: =IFERROR(Allocator!$F$48,"") -> 
C45: Number of aggregation centres | H45: =IFERROR(Allocator!$F$49,"") -> 
D49: Drying | E49: Milling/ Grinding | F49: Densification | G49: Storage | H49: Total per aggregation centre
D50: Drying | E50: Milling/Grinding | F50: Densification | G50: Storage
C51: Category | D51: tCO2-eq/y | E51: tCO2-eq/y | F51: tCO2-eq/y | G51: tCO2-eq/y | H51: tCO2-eq/y
C52: Fuel | D52: =Allocator!C178 -> 0 | E52: =Allocator!D178 -> 0 | F52: =Allocator!E178 -> 0 | G52: =Allocator!F178 -> 0 | H52: =SUM(D52:G52) -> 0
C53: Electricity | D53: =Allocator!C179 -> 0 | E53: =Allocator!D179 -> 0 | F53: =Allocator!E179 -> 0 | G53: =Allocator!F179 -> 0 | H53: =SUM(D53:G53) -> 0
C54: Total | D54: =SUM(D52,D53) -> 0 | E54: =SUM(E52,E53) -> 0 | F54: =SUM(F52,F53) -> 0 | G54: =SUM(G52,G53) -> 0 | H54: =SUM(H52,H53) -> 0
C56: Total GHG emissions of all aggregation centres
C58: Total GHG emissions of aggregation centre = # aggregation centres* GHG emissions per aggregation centre
D63: Total GHG emissions | E63: Share
C65: Category | D65: tCO2-eq/y | E65: %
C66: Fuel | D66: =IFERROR(Allocator!N178,"") ->  | E66: =IFERROR(D66/$D$68,"") -> 
C67: Electricity | D67: =IFERROR(Allocator!N179,"") ->  | E67: =IFERROR(D67/$D$68,"") -> 
C68: Total | D68: =SUM(D66:D67) -> 0 | E68: =SUM(E66:E67) -> 0
C76: Total biomass supply costs
C78: Total GHG supply emissions = total emissions of collection sites + total emissions of aggregation centres
C80: =+('Data Entry Needs'!$E$11&" supplied (t/y)") -> supplied (t/y) | H80: =Allocator!$F$50 -> 
D82: Total GHG emissions | E82: Share
C84: Category | D84: tCO2-eq/y | E84: %
C85: Fuel | D85: =IFERROR(Allocator!C186,"") ->  | E85: =IFERROR(D85/$D$87,"") -> 
C86: Electricity | D86: =IFERROR(Allocator!C187,"") ->  | E86: =IFERROR(D86/$D$87,"") -> 
C87: Total | D87: =SUM(D85:D86) -> 0 | E87: =SUM(E66:E67) -> 0

Sheet FA_Biomass (hidden)
C3: =+"FINANCIAL ANALYSIS OF "&UPPER('Data Entry Needs'!$E$11&" ") -> FINANCIAL ANALYSIS OF
C6: Summary of total supply costs
C8: Summary of costs | D8: USD/y
C9: =Allocator!B97 -> Labor Unskilled | D9: =Allocator!C97 -> 
C10: =Allocator!B98 -> Labor Skilled | D10: =Allocator!C98 -> 
C11: =Allocator!B99 -> Miscelaneous | D11: =Allocator!C99 -> 
C12: =Allocator!B100 -> Machinery Rental | D12: =Allocator!C100 -> 
C13: =Allocator!B101 -> Building Rental | D13: =Allocator!C101 -> 
C14: =Allocator!B102 -> Depreciation | D14: =Allocator!C102 -> 
C15: =Allocator!B103 -> Maintenance | D15: =Allocator!C103 -> 
C16: =Allocator!B104 -> Fuel | D16: =Allocator!C104 -> 
C17: =Allocator!B105 -> Power | D17: =Allocator!C105 -> 
C18: =Allocator!B106 -> Accesing | D18: =Allocator!C106 -> 
C19: =Allocator!B107 -> Loan | D19: =Allocator!C107 -> 
C20: =Allocator!B108 -> Overhead | D20: =Allocator!C108 -> 
C21: =Allocator!B109 -> General and administrative | D21: =Allocator!C109 -> 
C22: =Allocator!B110 -> Total | D22: =SUM(D9:D21) -> 0
C24: Input for financial analysis
C26: Annual Production (kg/y) | D26: =IFERROR(Allocator!F50*1000,"") -> 
C27: Selling Price (USD/kg) | D27: ='Data Entry Needs'!E129/1000 -> 0
C28: Discount Rate | D28: ='Data Entry Needs'!E127 -> 0
C29: Loan ratio | D29: ='Data Entry Needs'!E128 -> 0
C30: Income Tax | D30: 0
C31: Inputs (Materials and utilities) | D31: =IFERROR(D16+D17+D18,"") -> 
C32: Labour and miscellaneous costs | D32: =IFERROR(D9+D10+D11,"") -> 
C33: Overhead | D33: =D20 -> 
C34: General and administrative cost | D34: =D21 -> 
C35: Mainteinance | D35: =D15 -> 
C36: Depreciation of quipment, building and installation | D36: =IFERROR(D12+D13+D14,"") -> 
C37: Total equipment, building and installation | D37: =IFERROR(D36*20,"") -> 
C38: Interest Expenses | D38: =D19 -> 
C40: Financial analysis
C42: Incremental Income Statement | D42: Year 0 | E42: Year 1 | F42: Year 2 | G42: Year 3 | H42: Year 4 | I42: Year 5 | J42: Year 6 | K42: Year 7 | L42: Year 8 | M42: Year 9 | N42: Year 10 | O42: Year 11 | P42: Year 12 | Q42: Year 13 | R42: Year 14 | S42: Year 15 | T42: Year 16 | U42: Year 17 | V42: Year 18 | W42: Year 19 | X42: Year 20
E43: 1 | F43: 2 | G43: 3 | H43: 4 | I43: 5 | J43: 6 | K43: 7 | L43: 8 | M43: 9 | N43: 10 | O43: 11 | P43: 12 | Q43: 13 | R43: 14 | S43: 15 | T43: 16 | U43: 17 | V43: 18 | W43: 19 | X43: 20
B44: = | C44: Revenue | E44: =+SUM(E45) -> 0 | F44: =+SUM(F45) -> 0 | G44: 0 | H44: 0 | I44: 0 | J44: 0 | K44: 0 | L44: 0 | M44: 0 | N44: 0 | O44: 0 | P44: 0 | Q44: 0 | R44: 0 | S44: 0 | T44: 0 | U44: 0 | V44: 0 | W44: 0 | X44: 0
C45: Revenue from biomass sales | E45: =IFERROR(+$D$26*$D$27,"") ->  | F45: =IFERROR(+$D$26*$D$27,"") -> 
B46: - | C46: Cost of each good sold (COGS) | E46: =+SUM(E47:E48) -> 0 | F46: 0 | G46: 0 | H46: 0 | I46: 0 | J46: 0 | K46: 0 | L46: 0 | M46: 0 | N46: 0 | O46: =+SUM(O47:O48) -> 0 | P46: 0 | Q46: 0 | R46: 0 | S46: 0 | T46: 0 | U46: 0 | V46: 0 | W46: 0 | X46: 0
C47: Inputs (Materials and utilities) | E47: =+D31 ->  | F47: =+E47 ->  | G47: =+F47 ->  | K47: =+J47 ->  | O47: =+N47 -> 
C48: Labour and miscellaneous costs | E48: =+D32 ->  | F48: =+E48 ->  | K48: =+J48 ->  | O48: =+N48 -> 
B49: = | C49: Gross Income | E49: =+E44-E46 -> 0 | F49: 0 | G49: 0 | H49: 0 | I49: 0 | J49: 0 | K49: 0 | L49: 0 | M49: 0 | N49: 0 | O49: =+O44-O46 -> 0 | P49: 0 | Q49: 0 | R49: 0 | S49: 0 | T49: 0 | U49: 0 | V49: 0 | W49: 0 | X49: 0
B50: - | C50: Operating Expenses | E50: =+SUM(E51:E54) -> 0 | F50: 0 | G50: 0 | H50: 0 | I50: 0 | J50: 0 | K50: 0 | L50: 0 | M50: 0 | N50: 0 | O50: =+SUM(O51:O54) -> 0 | P50: 0 | Q50: 0 | R50: 0 | S50: 0 | T50: 0 | U50: 0 | V50: 0 | W50: 0 | X50: 0
C51: Plant overhead | E51: =+D33 ->  | F51: =+E51 ->  | G51: =+F51 ->  | K51: =+J51 ->  | O51: =+N51 -> 
C52: General and administrative cost | E52: =+D34 ->  | F52: =+E52 ->  | K52: =+J52 ->  | O52: =+N52 -> 
C53: Loan interest | E53: =+D38 ->  | K53: =+J53 ->  | O53: =+N53 -> 
C54: Mainteinance | E54: =+D35 ->  | K54: =+J54 ->  | O54: =+N54 -> 
B55: = | C55: Operating Income (EBITDA) | E55: =+E49-E50 -> 0 | F55: 0 | G55: 0 | H55: 0 | I55: 0 | J55: 0 | K55: 0 | L55: 0 | M55: 0 | N55: 0 | O55: 0 | P55: 0 | Q55: 0 | R55: 0 | S55: 0 | T55: 0 | U55: 0 | V55: 0 | W55: 0 | X55: 0
B56: - | C56: Depreciation & Amortization | E56: =+SUM(E57:E57) -> 0 | F56: 0 | G56: 0 | H56: 0 | I56: 0 | J56: 0 | K56: 0 | L56: 0 | M56: 0 | N56: 0 | O56: 0 | P56: 0 | Q56: 0 | R56: 0 | S56: 0 | T56: 0 | U56: 0 | V56: 0 | W56: 0 | X56: 0
C57: Equipment, building and installation | E57: =+D36 ->  | F57: =+E57 ->  | G57: =+F57 ->  | K57: =+J57 ->  | O57: =+N57 -> 
B58: = | C58: Operating Income (EBIT) | E58: =+E55-E56 -> 0 | F58: 0 | G58: 0 | H58: 0 | I58: 0 | J58: 0 | K58: 0 | L58: 0 | M58: 0 | N58: 0 | O58: 0 | P58: 0 | Q58: 0 | R58: 0 | S58: 0 | T58: 0 | U58: 0 | V58: 0 | W58: 0 | X58: 0
B59: - | C59: Income Tax | E59: =+E58*$D$30 -> 0 | F59: 0 | G59: 0 | H59: 0 | I59: 0 | J59: 0 | K59: 0 | L59: 0 | M59: 0 | N59: 0 | O59: 0 | P59: 0 | Q59: 0 | R59: 0 | S59: 0 | T59: 0 | U59: 0 | V59: 0 | W59: 0 | X59: 0
B60: - | C60: Interest Expenses | E60: =+D38 ->  | F60: =+E60 ->  | G60: =+F60 ->  | K60: =+J60 -> 
B61: = | C61: Net Operating Profit After Taxes (NOPAT) | E61: =IFERROR(+E58-E59-E60,"") ->  | F61: =IFERROR(+F58-F59-F60,"") -> 
C63: Adjustments
B64: + | C64: Depreciation (not a cash flow) | E64: =+$E$65 -> 0 | F64: 0 | G64: 0 | H64: 0 | I64: 0 | J64: 0 | K64: 0 | L64: 0 | M64: 0 | N64: 0 | O64: 0 | P64: 0 | Q64: 0 | R64: 0 | S64: 0 | T64: 0 | U64: 0 | V64: 0 | W64: 0 | X64: 0
B65: - | C65: Net Capital Expenditures | D65: =+SUM(D66:D66) -> 0 | E65: 0 | F65: 0 | G65: 0 | H65: 0 | I65: 0 | J65: 0 | K65: 0 | L65: 0 | M65: 0 | N65: 0 | O65: 0 | P65: 0 | Q65: 0 | R65: 0 | S65: 0 | T65: 0 | U65: 0 | V65: 0 | W65: 0 | X65: 0
C66: =+C57 -> Equipment, building and installation | D66: =IFERROR(+$D$37*(1-D29),"") ->  | E66: after loan
B67: - | C67: Net Working Capital Investment | D67: 0 | E67: 0 | F67: 0 | G67: 0 | H67: 0 | I67: 0 | J67: 0 | K67: 0 | L67: 0 | M67: 0 | N67: 0 | O67: 0 | P67: 0 | Q67: 0 | R67: 0 | S67: 0 | T67: 0 | U67: 0 | V67: 0 | W67: 0 | X67: 0
C69: Free Cash Flow | D69: =IFERROR(+D61+D64-D65-D67,"") -> 0 | E69: =IFERROR(+E61+E64-E65-E67,"") -> 
C71: Evaluation Cash Flow | D71: =IFERROR(+D69+D70,"") -> 0 | E71: =IFERROR(+E69+E70,"") -> 
C73: Financial indicators
C75: NPV (USD) | D75: =IFERROR(+NPV($D$28,E71:X71)+D71,"") -> 0
C76: IRR | D76: =IFERROR(+IRR(D71:X71),"") -> 
C77: MIRR | D77: =IFERROR(+MIRR(D71:X71,$D$28,$D$28),"") -> 
C78: Payback period (years) | D78: =IFERROR(-D71/$E$71,"") -> 
C79: Gross Margin | D79: =IFERROR(+E49/E45,"") -> 
C80: Operating Margin | D80: =IFERROR(+E45/E58,"") -> 
C81: Net Margin | D81: =IFERROR(+E45/E61,"") -> 

Sheet FA_MSP (hidden)
C3: =+"MINIMUM SELLING PRICE OF "&UPPER('Data Entry Needs'!$E$11&" ") -> MINIMUM SELLING PRICE OF
C6: Summary of total supply costs
C8: Summary of costs | D8: USD/y
C9: =Allocator!B97 -> Labor Unskilled | D9: =Allocator!C97 -> 
C10: =Allocator!B98 -> Labor Skilled | D10: =Allocator!C98 -> 
C11: =Allocator!B99 -> Miscelaneous | D11: =Allocator!C99 -> 
C12: =Allocator!B100 -> Machinery Rental | D12: =Allocator!C100 -> 
C13: =Allocator!B101 -> Building Rental | D13: =Allocator!C101 -> 
C14: =Allocator!B102 -> Depreciation | D14: =Allocator!C102 -> 
C15: =Allocator!B103 -> Maintenance | D15: =Allocator!C103 -> 
C16: =Allocator!B104 -> Fuel | D16: =Allocator!C104 -> 
C17: =Allocator!B105 -> Power | D17: =Allocator!C105 -> 
C18: =Allocator!B106 -> Accesing | D18: =Allocator!C106 -> 
C19: =Allocator!B107 -> Loan | D19: =Allocator!C107 -> 
C20: =Allocator!B108 -> Overhead | D20: =Allocator!C108 -> 
C21: =Allocator!B109 -> General and administrative | D21: =Allocator!C109 -> 
C22: =Allocator!B110 -> Total | D22: =SUM(D9:D21) -> 0
C24: Input for financial analysis
C26: Annual Production (kg/y) | D26: =IFERROR(Allocator!F50*1000,"") -> 
C27: Discount Rate | D27: ='Data Entry Needs'!E127 -> 0
C28: Loan ratio | D28: ='Data Entry Needs'!E128 -> 0
C29: Income Tax | D29: 0
C30: Inputs (Materials and utilities) | D30: =IFERROR(D16+D17+D18,"") -> 
C31: Labour and miscellaneous costs | D31: =IFERROR(D9+D10+D11,"") -> 
C32: Overhead | D32: =D20 -> 
C33: General and administrative cost | D33: =D21 -> 
C34: Mainteinance | D34: =D15 -> 
C35: Depreciation of quipment, building and installation | D35: =IFERROR(D12+D13+D14,"") -> 
C36: Total equipment, building and installation | D36: =IFERROR(D35*20,"") -> 
C37: Interest Expenses | D37: =D19 -> 
C39: Financial analysis
C41: Incremental Income Statement | D41: Year 0 | E41: Year 1 | F41: Year 2 | G41: Year 3 | H41: Year 4 | I41: Year 5 | J41: Year 6 | K41: Year 7 | L41: Year 8 | M41: Year 9 | N41: Year 10 | O41: Year 11 | P41: Year 12 | Q41: Year 13 | R41: Year 14 | S41: Year 15 | T41: Year 16 | U41: Year 17 | V41: Year 18 | W41: Year 19 | X41: Year 20
E42: 1 | F42: 2 | G42: 3 | H42: 4 | I42: 5 | J42: 6 | K42: 7 | L42: 8 | M42: 9 | N42: 10 | O42: 11 | P42: 12 | Q42: 13 | R42: 14 | S42: 15 | T42: 16 | U42: 17 | V42: 18 | W42: 19 | X42: 20
B43: = | C43: Revenue | E43: =+SUM(E44) -> 0 | F43: =+SUM(F44) -> 0 | G43: 0 | H43: 0 | I43: 0 | J43: 0 | K43: 0 | L43: 0 | M43: 0 | N43: 0 | O43: 0 | P43: 0 | Q43: 0 | R43: 0 | S43: 0 | T43: 0 | U43: 0 | V43: 0 | W43: 0 | X43: 0
C44: Revenue from biomass sales | E44: =IFERROR(+$D$26*$AC$90,"") ->  | F44: =IFERROR(+$D$26*$AC$90,"") -> 
B45: - | C45: Cost of each good sold (COGS) | E45: =+SUM(E46:E47) -> 0 | F45: 0 | G45: 0 | H45: 0 | I45: 0 | J45: 0 | K45: 0 | L45: 0 | M45: 0 | N45: 0 | O45: =+SUM(O46:O47) -> 0 | P45: 0 | Q45: 0 | R45: 0 | S45: 0 | T45: 0 | U45: 0 | V45: 0 | W45: 0 | X45: 0
C46: Inputs (Materials and utilities) | E46: =+D30 ->  | F46: =+E46 ->  | G46: =+F46 ->  | K46: =+J46 -> 
C47: Labour and miscellaneous costs | E47: =+D31 ->  | F47: =+E47 ->  | K47: =+J47 -> 
B48: = | C48: Gross Income | E48: =+E43-E45 -> 0 | F48: 0 | G48: 0 | H48: 0 | I48: 0 | J48: 0 | K48: 0 | L48: 0 | M48: 0 | N48: 0 | O48: 0 | P48: 0 | Q48: 0 | R48: 0 | S48: 0 | T48: 0 | U48: 0 | V48: 0 | W48: 0 | X48: 0
B49: - | C49: Operating Expenses | E49: =+SUM(E50:E53) -> 0 | F49: 0 | G49: 0 | H49: 0 | I49: 0 | J49: 0 | K49: 0 | L49: 0 | M49: 0 | N49: 0 | O49: 0 | P49: 0 | Q49: 0 | R49: 0 | S49: 0 | T49: 0 | U49: 0 | V49: 0 | W49: 0 | X49: 0
C50: Plant overhead | E50: =+D32 ->  | F50: =+E50 ->  | G50: =+F50 ->  | K50: =+J50 -> 
C51: General and administrative cost | E51: =+D33 ->  | F51: =+E51 ->  | K51: =+J51 -> 
C52: Loan interest | E52: =+D37 ->  | K52: =+J52 -> 
C53: Mainteinance | E53: =+D34 ->  | K53: =+J53 -> 
B54: = | C54: Operating Income (EBITDA) | E54: =+E48-E49 -> 0 | F54: 0 | G54: 0 | H54: 0 | I54: 0 | J54: 0 | K54: 0 | L54: 0 | M54: 0 | N54: 0 | O54: 0 | P54: 0 | Q54: 0 | R54: 0 | S54: 0 | T54: 0 | U54: 0 | V54: 0 | W54: 0 | X54: 0
B55: - | C55: Depreciation & Amortization | E55: =+SUM(E56:E56) -> 0 | F55: 0 | G55: 0 | H55: 0 | I55: 0 | J55: 0 | K55: 0 | L55: 0 | M55: 0 | N55: 0 | O55: 0 | P55: 0 | Q55: 0 | R55: 0 | S55: 0 | T55: 0 | U55: 0 | V55: 0 | W55: 0 | X55: 0
C56: Equipment, building and installation | E56: =+D35 ->  | F56: =+E56 ->  | G56: =+F56 ->  | K56: =+J56 -> 
B57: = | C57: Operating Income (EBIT) | E57: =+E54-E55 -> 0 | F57: 0 | G57: 0 | H57: 0 | I57: 0 | J57: 0 | K57: 0 | L57: 0 | M57: 0 | N57: 0 | O57: 0 | P57: 0 | Q57: 0 | R57: 0 | S57: 0 | T57: 0 | U57: 0 | V57: 0 | W57: 0 | X57: 0
B58: - | C58: Income Tax | E58: =+E57*$D$29 -> 0 | F58: 0 | G58: 0 | H58: 0 | I58: 0 | J58: 0 | K58: 0 | L58: 0 | M58: 0 | N58: 0 | O58: 0 | P58: 0 | Q58: 0 | R58: 0 | S58: 0 | T58: 0 | U58: 0 | V58: 0 | W58: 0 | X58: 0
B59: - | C59: Interest Expenses | E59: =+D37 ->  | F59: =+E59 ->  | G59: =+F59 ->  | K59: =+J59 -> 
B60: = | C60: Net Operating Profit After Taxes (NOPAT) | E60: =IFERROR(+E57-E58-E59,"") ->  | F60: =IFERROR(+F57-F58-F59,"") -> 
C62: Adjustments
B63: + | C63: Depreciation (not a cash flow) | E63: =+$E$64 -> 0 | F63: 0 | G63: 0 | H63: 0 | I63: 0 | J63: 0 | K63: 0 | L63: 0 | M63: 0 | N63: 0 | O63: 0 | P63: 0 | Q63: 0 | R63: 0 | S63: 0 | T63: 0 | U63: 0 | V63: 0 | W63: 0 | X63: 0
B64: - | C64: Net Capital Expenditures | D64: =+SUM(D65:D65) -> 0 | E64: 0 | F64: 0 | G64: 0 | H64: 0 | I64: 0 | J64: 0 | K64: 0 | L64: 0 | M64: 0 | N64: 0 | O64: 0 | P64: 0 | Q64: 0 | R64: 0 | S64: 0 | T64: 0 | U64: 0 | V64: 0 | W64: 0 | X64: 0
C65: =+C56 -> Equipment, building and installation | D65: =IFERROR(+$D$36*(1-D28),"") ->  | E65: after loan
B66: - | C66: Net Working Capital Investment | D66: 0 | E66: 0 | F66: 0 | G66: 0 | H66: 0 | I66: 0 | J66: 0 | K66: 0 | L66: 0 | M66: 0 | N66: 0 | O66: 0 | P66: 0 | Q66: 0 | R66: 0 | S66: 0 | T66: 0 | U66: 0 | V66: 0 | W66: 0 | X66: 0
C68: Free Cash Flow | D68: =IFERROR(+D60+D63-D64-D66,"") -> 0 | E68: =IFERROR(+E60+E63-E64-E66,"") -> 
C70: Evaluation Cash Flow | D70: =IFERROR(+D68+D69,"") -> 0 | E70: =IFERROR(+E68+E69,"") -> 
C72: Minimum biomass selling price
C74: Minimum biomass selling price (USD/t) | D74: =IF(D80<=0.0001,AC90*1000,"Please press the estimate button") -> 41.9559119
C78: Financial indicators
C80: NPV (USD) | D80: =IFERROR(+NPV($D$27,E70:X70)+D70,"") -> 0
C81: IRR | D81: =IFERROR(+IRR(D70:X70),"") -> 
C82: MIRR | D82: =IFERROR(+MIRR(D70:X70,$D$27,$D$27),"") -> 
C83: Payback period | D83: =IFERROR(-D70/$E$70,"") -> 
C84: Gross Margin | D84: =IFERROR(+E48/E44,"") -> 
C85: Operating Margin | D85: =IFERROR(+E44/E57,"") -> 
C86: Net Margin | D86: =IFERROR(+E44/E60,"") -> 
AC89: Please press the estimate button
AC90: 0.0419559119

Sheet Summary of results
C3: =+"SUMMARY OF RESULTS OF "&UPPER('Data Entry Needs'!$E$11&" Supply") -> SUMMARY OF RESULTS OF SUPPLY
C7: Use white cells to input data | E7: Grey cells are used for calculations
C9: Operating results
C11: Supply chain sequence
C40: Biomass supplied and charactheristics
D42: Biomass supplied - at aggregation centre gate | L42: Biomass moisture content and density - at aggregation centre gate
C70: Economic results
C72: Investment & rental costs (20 years lifetime) - M. USD | I72: Supply costs - USD/t | O72: Share on supply costs
AG90: =18/4 -> 4.5
C101: Biomass selling prices, and supply costs
Q102: =AT210 -> To reach economic feasibility the selling price of biomass entered in the data entry sheet needs to be larger than the minimum selling price shown in the figure. At current conditions the net present value of the selected biomass sequence is 0 M.USD
C131: GHG emissions and labour results
C133: GHG emissions | N133: Labour
AN182: Production costs
AN184: Total supply costs per t of biomass | AR184: USD/t
AN185: Category | AO185: USD/t | AQ185: Labour and miscellaneous costs | AR185: =AO186+AO187+AO188 ->  | AS185: =AR185/$AR$189 ->  | AU185: Category | AV185: USD/t | AW185: %
AN186: Labor Unskilled | AO186: =Allocator!H97 ->  | AQ186: Fuel and Power | AR186: =AO193+AO194 ->  | AS186: =AR186/$AR$189 ->  | AU186: Collection | AV186: =Allocator!H116 ->  | AW186: =AV186/$AV$194 -> 
AN187: Labor Skilled | AO187: =Allocator!H98 ->  | AQ187: Depreciation, Machinery rental and other costs | AR187: =AO189+AO190+AO191+AO192 ->  | AS187: =AR187/$AR$189 ->  | AU187: Primary size reduction | AV187: =Allocator!H117 ->  | AW187: =AV187/$AV$194 -> 
AN188: Miscellaneous | AO188: =Allocator!H99 ->  | AQ188: Loan, overhead and administrative costs | AR188: =AO195+AO196+AO197+AO198 ->  | AS188: =AR188/$AR$189 ->  | AU188: Baling | AV188: =Allocator!H118 -> 
AN189: Machinery Rental | AO189: =Allocator!H100 ->  | AQ189: Total | AR189: =+SUM(AR185:AR188) ->  | AS189: =+SUM(AS185:AS188) ->  | AU189: Drying | AV189: =Allocator!H119 -> 
AN190: Building Rental | AO190: =Allocator!H101 ->  | AU190: Milling/Grinding | AV190: =Allocator!H120 -> 
AN191: Depreciation | AO191: =Allocator!H102 ->  | AU191: Densification | AV191: =Allocator!H121 -> 
AN192: Maintenance | AO192: =Allocator!H103 ->  | AU192: Transport | AV192: =Allocator!H122 -> 
AN193: Fuel | AO193: =Allocator!H104 ->  | AU193: Storage | AV193: =Allocator!H123 -> 
AN194: Power | AO194: =Allocator!H105 ->  | AU194: Total | AV194: =SUM(AV186:AV193) -> 0 | AW194: =SUM(AW186:AW193) -> 
AN195: Accesing | AO195: =Allocator!H106 -> 
AN196: Loan | AO196: =Allocator!H107 -> 
AN197: Overhead | AO197: =Allocator!H108 -> 
AN198: General and administrative | AO198: =Allocator!H109 -> 
AN199: Total | AO199: =SUM(AO186:AO198) -> 0
AO202: Biomass supply costs (USD/t) | AP202: Biomass selling price (USD/t) | AQ202: Biomass minimum selling price (USD/t)
AL203: 0.05 | AN203: Base | AO203: 0 | AP203: USD/t
AN204: Down | AO204: =AO199*(1-AL203) -> 0 | AP204: USD/t | AR204: USD/t | AS204: ='Data Entry Needs'!E129 -> 0 | AT204: =AS204 -> 0
AN205: Up | AO205: =AO199*(1+AL203) -> 0 | AP205: USD/t | AR205: USD/t | AS205: =FA_MSP!D74 -> 41.9559119 | AT205: =AS205 -> 41.9559119 | AU205: =AT205 -> 41.9559119
AO207: USD/y | AP207: USD - 20 year | AQ207: M. USD | AT207: NPV | AU207: =FA_Biomass!D75/1000000 -> 0 | AV207: M.USD | AW207: =IF(AT204<AT205,TRUE,FALSE) -> TRUE
AN208: Investment | AO208: =Allocator!C102 ->  | AP208: =AO208*20 ->  | AQ208: =AP208/1000000 ->  | AS208: Unfeasible | AT208: ="To reach economic feasibility the selling price of biomass entered in the data entry sheet needs to be larger than the minimum selling price shown in the figure. At current conditions the net present value of the selected biomass sequence is " &ROUND(AU207,1)& " M.USD" -> To reach economic feasibility the selling price of biomass entered in the data entry sheet needs to be larger than the minimum selling price shown in the figure. At current conditions the net present value of the selected biomass sequence is 0 M.USD
AN209: Machinery rental & leasing | AO209: =Allocator!C101+Allocator!C100 ->  | AP209: =AO209*20 ->  | AQ209: =AP209/1000000 ->  | AS209: Feasible | AT209: ="At the current biomass selling price the supply chain system is feasible with a NPV of "&ROUND(AU207,1)& " M.USD" -> At the current biomass selling price the supply chain system is feasible with a NPV of 0 M.USD
AN210: Total | AO210: =SUM(AO208:AO209) ->  | AP210: =SUM(AP208:AP209) ->  | AQ210: =SUM(AQ208:AQ209) ->  | AS210: Label | AT210: =IF(AW207,AT208,AT209) -> To reach economic feasibility the selling price of biomass entered in the data entry sheet needs to be larger than the minimum selling price shown in the figure. At current conditions the net present value of the selected biomass sequence is 0 M.USD
AN213: Total biomass supplied
AM214: Biomass supplied | AN214: =Allocator!F50 ->  | AO214: t/y
AM215: Biomass moisture content | AN215: =Allocator!F51 ->  | AO215: wt%
AM216: Biomass density | AN216: =Allocator!F52 ->  | AO216: kg/m3
AX217: Share on emissions
AW218: Fuel | AX218: =Allocator!H186 -> 
AM219: Number of jobs | AP219: Number of jobs | AW219: Electricity | AX219: =Allocator!H187 -> 
AM220: Unskilled labour | AN220: =Allocator!C225 ->  | AP220: Category | AQ220: Jobs
AM221: Skilled labour | AN221: =Allocator!C226 ->  | AP221: Collection | AQ221: =Allocator!C232 ->  | AR221: =AQ221/$AQ$229 ->  | AX221: by operation
AM222: Total | AN222: =SUM(AN220:AN221) ->  | AP222: Primary size reduction | AQ222: =Allocator!C233 ->  | AR222: =AQ222/$AQ$229 ->  | AW222: Collection | AX222: =Allocator!D193 -> 
AP223: Baling | AQ223: =Allocator!C234 ->  | AW223: Primary size reduction | AX223: =Allocator!D194 -> 
AP224: Drying | AQ224: =Allocator!C235 ->  | AW224: Baling | AX224: =Allocator!D195 -> 
AP225: Milling/Grinding | AQ225: =Allocator!C236 ->  | AW225: Drying | AX225: =Allocator!D196 -> 
AP226: Densification | AQ226: =Allocator!C237 ->  | AW226: Milling/Grinding | AX226: =Allocator!D197 -> 
AP227: Transport | AQ227: =Allocator!C238 ->  | AW227: Densification | AX227: =Allocator!D198 -> 
AP228: Storage | AQ228: =Allocator!C239 ->  | AW228: Transport | AX228: =Allocator!D199 -> 
AP229: Total | AQ229: =ROUNDUP(SUM(AQ221:AQ228),0) ->  | AR229: =ROUNDUP(SUM(AR221:AR228),0) ->  | AW229: Storage | AX229: =Allocator!D200 -> 
AL241: Sequences | AM241: COLLECTION | AN241: AGGREGATION
AM242: =Allocator!C20 -> Please select | AN242: =Allocator!C42 -> No operation
AM243: =Allocator!C21 -> Please select | AN243: =Allocator!C43 -> No operation
AM244: =Allocator!C22 -> Please select | AN244: =Allocator!C44 -> No operation
AM245: =Allocator!C23 -> No operation | AN245: =Allocator!C45 -> No operation
AM246: =Allocator!C24 -> No operation
AM247: =Allocator!C25 -> No operation
AM248: =Allocator!C26 -> No operation
AM249: =Allocator!C27 -> No operation

Sheet COLLECTION (hidden)
C3: =+"CALCULATION OF COLLECTION COSTS OF "&UPPER('Data Entry Needs'!$E$11&" ") -> CALCULATION OF COLLECTION COSTS OF
C6: Use white cells to input data | E6: Grey cells are used for calculations
C8: Collection mode
C10: =P75 -> Operation not included in sequence. Check data entry
C12: Biomass collected per collection centre
C14: =+"Collected "&('Data Entry Needs'!$E$11&" (t/year)") -> Collected (t/year) | G14: =IFERROR(AH149,"") -> 0
C15: =+"Moisture content of collected "&('Data Entry Needs'!$E$11&" (wt%)") -> Moisture content of collected (wt%) | G15: =IFERROR(P98,"") -> 0.5
C16: =+"Land covered to collect "&('Data Entry Needs'!$E$11&" (ha/year)") -> Land covered to collect (ha/year) | G16: =IFERROR(AH152,"") -> 0
C18: Collection performance parameters
C20: Number of unskilled workers per collection site | G20: =IFERROR(AA140,"") -> 0
C21: Number of skilled workers per collection site | G21: =IFERROR(AA141,"") -> 0
C22: Labor intensity, unskilled (person-h/ha) | G22: =IFERROR(AD140,"") -> 
C23: Labor intensity, skilled (person-h/ha) | G23: =IFERROR(AD141,"") -> 
C25: Collection costs per collection site
C27: Category | D27: USD/y
C28: Labor unskilled | D28: =IFERROR(AA126,"") -> 0
C29: Labor skilled | D29: 0
C30: Miscellaneous | D30: 0
C31: Machinery rental | D31: 0
C32: Maintenance | D32: 0
C33: Fuel | D33: 0
C34: Accesing | D34: 0
C35: Loan | D35: 0
C36: Overhead | D36: 0
C37: General & Adm. | D37: 0
C38: Total | D38: =SUM(D28:D37) -> 0
C40: Collection costs per land and biomass collected
C42: Collection costs per hectare | F42: Collection costs per t of collected biomass (wet)
C58: Energy consumption and Greenhouse gas emissions
C60: Energy consumption | F60: GHG emissions
P74: Label
P75: =IF(P79=0,"Operation not included in sequence. Check data entry",P82) -> Operation not included in sequence. Check data entry
P76: =IF(P79=0,TRUE, FALSE) -> TRUE
P78: Multiplier
P79: =Allocator!N20 -> 0
P81: Collection mode
P82: ='Data Entry Needs'!O268 -> Manual collection
T84: Calculations collection
P85: Input parameters
P86: Biomass collection capacity | T86: Collection capacity
U87: tonne/h/person, tonne/h/machine
O88: Biomass collection capacity per collection site | P88: =Allocator!F20 -> 0 | Q88: tonne/y | T88: tonne/h/person, tonne/h/machine | U88: Manual | V88: Semi-mechanized | W88: Mechanized
O89: Land per collection point | P89: =Allocator!F13 -> 0 | Q89: ha/y | T89: manual | U89: =PARAMETERS!H16 -> 0.1 | V89: =U89 -> 0.1
T90: mechanized | U90: 0 | V90: =W90 -> 2.5 | W90: =PARAMETERS!H17 -> 2.5
O92: Biomass collected | P92: =AH149 -> 0 | Q92: tonne/y | T92: Biomass required to be collected
T93: tonne/y | U93: Manual | V93: Semi-mechanized | W93: Mechanized
O94: Collection time per year | P94: ='Data Entry Needs'!E73 -> 0 | Q94: days/y | U94: =$P$88 -> 0 | V94: =$P$88 -> 0 | W94: =$P$88 -> 0
O95: Manual daily collection time (h/day) | P95: ='Data Entry Needs'!E74 -> 0 | Q95: h/day
O96: Mechanized daily collection time (h/day) | P96: ='Data Entry Needs'!I73 -> 0 | Q96: h/day
T97: Working time person
O98: Share of machinery used in semi-mechanized collection | P98: =PARAMETERS!H15 -> 0.5 | U98: Manual | V98: Semi-mechanized | W98: Mechanized | Y98: Number of shifts mechanized | Z98: =IF($P$96>8,IF($P$96>16,3,2),1) -> 1
T99: days/ year | U99: =$P$94 -> 0 | V99: =$P$94 -> 0 | W99: =$P$94 -> 0
O100: factors | T100: working hours/year/man | U100: Manual collection | V100: Semi-mechanized collection | W100: Mechanized collection
O101: =AND(P94>=333) -> FALSE | P101: =IF(O101,1,IF(O102,1.1,1.25)) -> 1.25 | Q101: for extra costs | T101: Manual operation | U101: =P95*U99 -> 0 | V101: =V99*P95 -> 0
O102: =AND(P94<333,P94>166) -> FALSE | T102: Operating the machine | U102: 0 | V102: =V99*P96/Z98 -> 0 | W102: =W99*P96/Z98 -> 0
O104: Labor costs | T104: Collection efficiency | V104: tonne/y-person | W104: tonne/y-machine
O105: unskilled | P105: ='Data Entry Needs'!E78 -> 0 | Q105: USD/person-h | U105: Manual | V105: Semi-mechanized | W105: Mechanized
O106: skilled | P106: ='Data Entry Needs'!E79 -> 0 | Q106: USD/person-h | T106: manual | U106: =U101*U89 -> 0 | V106: =V101*V89 -> 0
T107: mechanized | V107: =V90*V102*Z98 -> 0 | W107: =W102*W90*Z98 -> 0
O108: Machinery rental cost (USD/h) | P108: ='Data Entry Needs'!E83 -> 0 | Q108: USD/h
O109: Maintenace costs | P109: ='Data Entry Needs'!E121 -> 0 | Q109: % of machinery rental
T110: number of persons | U110: Manual collection | V110: Semi-mechanized collection | W110: Mechanized collection
O111: Diesel consumption | P111: ='Data Entry Needs'!E84 -> 0 | Q111: L/h | T111: manual operation | U111: =IFERROR(U94/U106,0)*P79 -> 0 | V111: =IFERROR(V94*P98/V106,0)*P79 -> 0
O112: Diesel price | P112: ='Data Entry Needs'!I78 -> 0 | Q112: USD/L | T112: Operating the machines | V112: =IFERROR(ROUNDUP(V94*P98/(V107/Z98),0),0)*P79 -> 0 | W112: =IFERROR(ROUNDUP(W94/(W107/Z98),0),0)*P79 -> 0
T113: Total | U113: =SUM(U111:U112) -> 0 | V113: =SUM(V111:V112) -> 0 | W113: =SUM(W111:W112) -> 0
O114: Moisture content | P114: ='Data Entry Needs'!E15 -> 0
O116: Accesing fee | P116: ='Data Entry Needs'!I83 -> 0 | Q116: USD/tonne | T116: Number of machines | U116: Manual | V116: Semi-mechanized | W116: Mechanized
T117: manual | U117: 0
O118: Fuel type | P118: Diesel oil | T118: mechanized | U118: 0 | V118: =ROUNDUP(V94*P98/V107,0) ->  | W118: =ROUNDUP(W94/W107,0) -> 
O120: General and administ
O121: ='Data Entry Needs'!I121 -> 0 | U121: Working time per year, h/year
T122: Persons | U122: Manual | V122: Semi-mechanized | W122: Mechanized
O123: Loan term | T123: Manual | U123: =U111*U101 -> 0 | V123: =V111*V101 -> 0 | AA123: Outcome to the tool
O124: ='Data Entry Needs'!I128 -> 0 | P124: years | T124: Mechanized | V124: =V112*V102 -> 0 | W124: =W112*W102 -> 0 | AA124: Costs | AD124: Cost per ha | AG124: Cost per tonne (wet)
Z125: USD/y | AA125: =$P$82 -> Manual collection | AC125: USD/y | AD125: =AA125 -> Manual collection | AF125: USD/tonne | AG125: =AD125 -> Manual collection
O126: Loan interest | T126: Cost Calculations | U126: USD/y | V126: USD/y | W126: USD/y | Y126: 2 | Z126: Labor unskilled | AA126: =IFERROR(HLOOKUP($AA$125,$T$127:$W$137,Y126,FALSE),0) -> 0 | AC126: Labor unskilled | AD126: =IFERROR(AA126*(1/$AH$152),"") ->  | AF126: Labor unskilled | AG126: =IFERROR(AA126/$AH$149,"") -> 
O127: ='Data Entry Needs'!I127 -> 0 | U127: Manual collection | V127: Semi-mechanized collection | W127: Mechanized collection | Y127: 3 | Z127: Labor skilled | AA127: =IFERROR(HLOOKUP($AA$125,$T$127:$W$134,Y127,FALSE),0) -> 0 | AC127: Labor skilled | AF127: Labor skilled
T128: Labor unskilled | U128: =U123*$P$105 -> 0 | V128: =V123*$P$105 -> 0 | W128: =W123*$P$105 -> 0 | Y128: 4 | Z128: Miscellaneous | AA128: =IFERROR(HLOOKUP($AA$125,$T$127:$W$134,Y128,FALSE),0) -> 0 | AC128: Miscellaneous | AF128: Miscellaneous
O129: Loan ratio | T129: Labor skilled | U129: =U124*$P$106 -> 0 | V129: =V124*$P$106 -> 0 | W129: =W124*$P$106 -> 0 | Y129: 5 | Z129: Machinery rental | AA129: =IFERROR(HLOOKUP($AA$125,$T$127:$W$134,Y129,FALSE),0) -> 0 | AC129: Machinery rental | AF129: Machinery rental
O130: ='Data Entry Needs'!E128 -> 0 | T130: Miscelaneous | U130: =$O$133*$P$79*(SUM(U128:U129)) -> 0 | V130: =$O$133*$P$79*(SUM(V128:V129)) -> 0 | W130: =$O$133*$P$79*(SUM(W128:W129)) -> 0 | Y130: 6 | Z130: Maintenance | AA130: =IFERROR(HLOOKUP($AA$125,$T$127:$W$134,Y130,FALSE),0) -> 0 | AC130: Maintenance | AF130: Maintenance
T131: Machinery rental | U131: 0 | V131: =V118*V99*$P$108*$P$96 ->  | W131: =W118*W99*$P$108*$P$96 ->  | Y131: 7 | Z131: Fuel | AA131: =IFERROR(HLOOKUP($AA$125,$T$127:$W$134,Y131,FALSE),0) -> 0 | AC131: Fuel | AF131: Fuel
O132: Miscelaneous | T132: Maintenance | U132: =$P$109*U131 -> 0 | V132: =$P$109*V131 ->  | W132: =$P$109*W131 ->  | Y132: 8 | Z132: Accesing | AA132: =IFERROR(HLOOKUP($AA$125,$T$127:$W$137,Y132,FALSE),0) -> 0 | AC132: Accesing | AF132: Accesing
O133: ='Data Entry Needs'!$I$122 -> 0 | T133: Fuel | U133: 0 | V133: =$P$111*$P$112*V118*V102*$Z$98 ->  | W133: =$P$111*$P$112*W118*W102*$Z$98 ->  | Y133: 9 | Z133: Loan | AA133: =IFERROR(HLOOKUP($AA$125,$T$127:$W$137,Y133,FALSE),0) -> 0 | AC133: Loan | AF133: Loan
T134: Accesing | U134: =$P$116*U94 -> 0 | V134: =$P$116*V94 -> 0 | W134: =$P$116*W94 -> 0 | Y134: 10 | Z134: Overhead | AA134: =IFERROR(HLOOKUP($AA$125,$T$127:$W$137,Y134,FALSE),0) -> 0 | AC134: Overhead | AF134: Overhead
O135: Overhead | T135: Loan | U135: =U150*P79 ->  | V135: =V150*P79 ->  | W135: =W150*P79 ->  | Y135: 11 | Z135: General & administrative | AA135: =IFERROR(HLOOKUP($AA$125,$T$127:$W$137,Y135,FALSE),0) -> 0 | AC135: General & adm. | AD135: =IFERROR(AA135*(1/$AH$152),"") ->  | AF135: General & adm. | AG135: =IFERROR(AA135/$AH$149,"") -> 
O136: ='Data Entry Needs'!$E$123 -> 0 | T136: Overhead | U136: =$O$136*$P$79*(U132+U129+U128) -> 0 | V136: =$O$136*$P$79*(V132+V129+V128) ->  | W136: =$O$136*$P$79*(W132+W129+W128) ->  | Z136: Total | AA136: =SUM(AA126:AA135) -> 0 | AC136: Total | AD136: =SUM(AD126:AD135) -> 0 | AF136: Total | AG136: =SUM(AG126:AG135) -> 0
T137: General & administrative | U137: =$O$121*(U132+U128+U129+U133)*P79 -> 0 | V137: =$O$121*(V132+V128+V129+V133)*P79 ->  | W137: =$O$121*(W132+W128+W129+W133)*P79 -> 
T138: Total | U138: =SUM(U128:U137) ->  | V138: =SUM(V128:V137) ->  | W138: =SUM(W128:W137) -> 
Z139: Number of workers | AC139: Labor intensity | AD139: person-h/ha
Z140: Unskilled | AA140: =HLOOKUP($AA$125,$T$110:$W$112,2,FALSE) -> 0 | AC140: Unskilled | AD140: =AA140*(1/$AH$152)*AA147 -> 
T141: Biomass collected | U141: Manual collection | V141: Semi-mechanized collection | W141: Mechanized collection | Z141: Skilled | AA141: =HLOOKUP($AA$125,$T$110:$W$112,3,FALSE) -> 0 | AC141: Skilled | AD141: =AA141*(1/$AH$152)*AA148 -> 
T142: tonne/y | U142: =U94 -> 0 | V142: =V94 -> 0 | W142: =W94 -> 0
Z143: number of collection centres | AA143: ='COLL&AGG'!S51 -> 
T144: Biomass collected | U144: Manual collection | V144: Semi-mechanized collection | W144: Mechanized collection
T145: ha/y | U145: =$P$89 -> 0 | V145: =$P$89 -> 0 | W145: =$P$89 -> 0 | Z145: Number of workers
Z146: working time person | AA146: h/y/man
T147: Loan ammount | U147: Manual collection | V147: Semi-mechanized collection | W147: Mechanized collection | Z147: Unskilled | AA147: =HLOOKUP($AA$125,$T$100:$W$102,2,FALSE) -> 0
S148: Loan | T148: USD | U148: =U131*$O$124*$O$130 -> 0 | V148: =V131*$O$124*$O$130 ->  | W148: =W131*$O$124*$O$130 ->  | Z148: Skilled | AA148: =HLOOKUP($AA$125,$T$100:$W$102,3,FALSE) -> 0 | AG148: tonne/y | AH148: Biomass collected
S149: Monthly payment | T149: USD/month | U149: =(PMT($O$127/12,(12*$O$124),$U$148)) ->  | V149: =(PMT($O$127/12,(12*$O$124),$V$148))*-1 ->  | W149: =(PMT($O$127/12,(12*$O$124),$W$148))*-1 ->  | AH149: =HLOOKUP($AA$125,$T$141:$W$142,2,FALSE) -> 0
S150: Yearly payment | T150: USD/y | U150: =U149*12 ->  | V150: =V149*12 ->  | W150: =W149*12 -> 
AA151: =$P$82 -> Manual collection | AG151: ha/y | AH151: land collected
Y152: Fuel consumption | Z152: TJ/y | AA152: =IFERROR(HLOOKUP($AA$125,$R$181:$V$183,2,FALSE),"") -> 0 | AH152: =HLOOKUP($AA$125,$T$144:$W$145,2,FALSE) -> 0
Y153: GHG emissions | Z153: t-CO2eq/y | AA153: =IFERROR(HLOOKUP($AA$125,$R$181:$V$183,3,FALSE),"") -> 0
T160: fuel type | U160: =P118 -> Diesel oil
U162: Heating value | V162: Density (kg/L) | W162: kg CO2e/MJ
T163: Gasoline | U163: 44.3 | V163: 0.89 | W163: 0.070985
T164: Diesel Oil | U164: 43 | V164: 0.73722 | W164: 0.0753909
T165: Waste Oil / Lubrificants | U165: 40.2 | V165: 0.95 | W165: 0.0745909
T166: LPG | U166: 47.3 | V166: 0.545 | W166: 0.064464
T167: Natural Gas | U167: 48 | V167: 0.65 | W167: =0.0156 -> 0.0156
T168: Peat | U168: 9.76 | V168: 0.6823529412 | W168: 0.000486
T169: Butane | U169: 45.27677204 | V169: 2 | W169: 0.01948001062
T170: Propane | U170: 46.29553566 | V170: 1.92 | W170: 0.01725760354
T171: Methanol | U171: 20.09356275 | V171: 0.7918 | W171: 0.08642318218
T172: Ethanol | U172: 26.95163409 | V172: 0.789 | W172: 0.004227793194
T173: Biodiesel | U173: =35.7/0.88 -> 40.56818182 | V173: 0.88 | W173: 0.004259035631
T176: Fuel heating value | U176: =VLOOKUP($U$160,$T$162:$W$173,2,FALSE) -> 43 | V176: MJ/kg
T177: emission factor | U177: =VLOOKUP($U$160,$T$162:$W$173,4,FALSE) -> 0.0753909 | V177: kg CO2e/MJ
T178: fuel density | U178: =VLOOKUP($U$160,$T$162:$W$173,3,FALSE) -> 0.73722 | V178: Density (kg/L)
U180: TJ/y
T181: Manual collection | U181: Semi-mechanized collection | V181: Mechanized collection
R182: Fuel consumption | S182: TJ/y | T182: =$P$111*U118*U102*$Z$98*$U$178*$U$176/(1000*1000) -> 0 | U182: =$P$111*V118*V102*$Z$98*$U$178*$U$176/(1000*1000) ->  | V182: =$P$111*W118*W102*$Z$98*$U$178*$U$176/(1000*1000) -> 
R183: GHG emissions | S183: t-CO2eq/y | T183: =T182*1000*$U$177 -> 0 | U183: =U182*1000*$U$177 ->  | V183: =V182*1000*$U$177 -> 

Sheet SIZERED_C (hidden)
C3: =+"CALCULATION OF PRIMARY SIZE REDUCTION COSTS OF "&UPPER('Data Entry Needs'!$E$11&" ") -> CALCULATION OF PRIMARY SIZE REDUCTION COSTS OF
C6: Use white cells to input data | E6: Grey cells are used for calculations
C8: Primary size reduction technology at the collection centre
C10: =R78 -> Operation not included in sequence. Check data entry
C12: Primary size reduction input parameters
C14: =+('Data Entry Needs'!$E$11&" to be chipped (t/year)") -> to be chipped (t/year) | G14: =IFERROR(R86,0) -> 0
C15: =+"Moisture content of "&('Data Entry Needs'!$E$11&" (wt%)") -> Moisture content of (wt%) | G15: =IFERROR(R89,0) -> 0
C16: =+""&('Data Entry Needs'!$E$11&" particle size (mm)") -> particle size (mm) | G16: =IFERROR(R95*R82,0) -> 0
C18: Primary size reduction output parameters
C20: =+('Data Entry Needs'!$E$11&" chipped (t/year)") -> chipped (t/year) | G20: =IFERROR(AG86,0) -> 0
C21: =+"Moisture content of "&('Data Entry Needs'!$E$11&" (wt%)") -> Moisture content of (wt%) | G21: =IFERROR(T86,0) -> 0
C22: =+""&('Data Entry Needs'!$E$11&" final particle size (mm)") -> final particle size (mm) | G22: =IFERROR(R101*R82,0) -> 0
C23: =+""&('Data Entry Needs'!$E$11&" chips density (kg/m3)") -> chips density (kg/m3) | G23: =IFERROR(AG89*R82,0) -> 0
C25: Primary size reduction costs per collection site
C27: Category | D27: USD/y
C28: Labor Unskilled | D28: =AG92 -> 0
C29: Labor Skilled | D29: 0
C30: Miscellaneous | D30: 0
C31: Machinery rental | D31: 0
C32: Maintenance | D32: 0
C33: Fuel | D33: 0
C34: Power | D34: 0
C35: Loan | D35: 0
C36: Overhead | D36: 0
C37: General & adm. | D37: 0
C38: Total | D38: =SUM(D28:D37) -> 0
C40: Size reduction costs per biomass
H42: Primary size reduction costs per t of biomass
C53: Energy consumption and Greenhouse gas emissions
C55: Energy consumption | F55: GHG emissions
R77: Label
R78: =IF(R82=0,"Operation not included in sequence. Check data entry",R92) -> Operation not included in sequence. Check data entry
R79: =IF(R82=0,TRUE, FALSE) -> TRUE
R81: Multiplier
R82: =Allocator!N21 -> 0
Y83: Calculations | AG83: Ouput to tool
R84: Data inputs | Z84: Biomass after chipping | AG84: technology | AH84: =R92 -> Small chipper
R85: Biomass Input | T85: Moisture | Z85: Small chipper | AA85: Medium chipper | AB85: Large chipper | AG85: Biomass chipped
R86: =Allocator!P21 -> 0 | S86: t/y | T86: =Allocator!R21 -> 0 | Y86: t/year | Z86: =$R$86*$R$98 -> 0 | AA86: =$R$86*$R$98 -> 0 | AB86: =$R$86*$R$98 -> 0 | AG86: =HLOOKUP($AH$84,$Y$85:$AB$86,2,FALSE) -> 0 | AH86: t/y
R88: Biomass initial water content | Z88: Density | AG88: Density
R89: =Allocator!R21 -> 0 | Z89: Small chipper | AA89: Medium chipper | AB89: Large chipper | AG89: =HLOOKUP($AH$84,$Y$89:$AB$90,2,FALSE) -> 235.88 | AH89: kg/m3
Y90: kg/m3 | Z90: =728.81*($T$86)^2-41.754*$T$86+235.88 -> 235.88 | AA90: =728.81*($T$86)^2-41.754*$T$86+235.88 -> 235.88 | AB90: =728.81*($T$86)^2-41.754*$T$86+235.88 -> 235.88
R91: Chipper type | AF91: USD/y | AG91: Costs | AJ91: USD/y | AK91: USD/tonne
R92: ='Data Entry Needs'!O275 -> Small chipper | Z92: Capacity | AE92: 2 | AF92: Labor Unskilled | AG92: =IFERROR(HLOOKUP($AH$84,$Y$129:$AB$139,AE92,FALSE),0) -> 0 | AJ92: Labor Unskilled | AK92: =IFERROR(AG92/$AG$86,0) -> 0
Z93: Small chipper | AA93: Medium chipper | AB93: Large chipper | AE93: 3 | AF93: Labor Skilled | AG93: =IFERROR(HLOOKUP($AH$84,$Y$129:$AB$139,AE93,FALSE),0) -> 0 | AJ93: Labor Skilled | AK93: =IFERROR(AG93/$AG$86,0) -> 0
R94: Particle size | Y94: ton/h | Z94: =PARAMETERS!H31 -> 6 | AA94: =PARAMETERS!H32 -> 10 | AB94: =PARAMETERS!H33 -> 20 | AE94: 4 | AF94: Miscellaneous | AG94: 0 | AJ94: Miscellaneous | AK94: =IFERROR(AG94/$AG$86,0) -> 0
R95: ='Data Entry Needs'!E93 -> 0 | S95: mm | AE95: 5 | AF95: Machinery rental | AG95: 0 | AJ95: Machinery rental | AK95: 0
Z96: Small chipper | AA96: Medium chipper | AB96: Large chipper | AE96: 6 | AF96: Maintenance | AG96: 0 | AJ96: Maintenance | AK96: 0
R97: Biomass recovery | Y97: hours working/year/machine | Z97: =$R$107*$R$109 -> 0 | AA97: =$R$107*$R$109 -> 0 | AB97: =$R$107*$R$109 -> 0 | AE97: 7 | AF97: Fuel | AG97: 0 | AJ97: Fuel | AK97: 0
R98: =PARAMETERS!H30 -> 0.99 | AE98: 8 | AF98: Power | AG98: 0 | AJ98: Power | AK98: 0
Z99: Chipping efficiency | AE99: 9 | AF99: Loan | AG99: 0 | AJ99: Loan | AK99: 0
R100: Chip sizer | Z100: tonne/machine/year (dry) | AE100: 10 | AF100: Overhead | AG100: 0 | AJ100: Overhead | AK100: 0
R101: ='Data Entry Needs'!E94 -> 0 | S101: mm | Z101: Small chipper | AA101: Medium chipper | AB101: Large chipper | AE101: 11 | AF101: General & adm. | AG101: 0 | AJ101: General & adm. | AK101: =IFERROR(AG101/$AG$86,0) -> 0
Z102: =Z97*Z94 -> 0 | AA102: =AA97*AA94 -> 0 | AB102: =AB97*AB94 -> 0 | AF102: Total | AG102: =SUM(AG92:AG101) -> 0 | AJ102: Total | AK102: =SUM(AK92:AK101) -> 0
R103: Equation of density as function of moisture in wt%
R104: 728.81*(moist)^2-41.754*moist+235.88 | Z104: number of machines
Z105: Small chipper | AA105: Medium chipper | AB105: Large chipper
R106: days per year | Z106: =ROUNDUP(Z86*(100%-$T$86)/Z102,0) ->  | AA106: =ROUNDUP(AA86*(100%-$T$86)/AA102,0) ->  | AB106: =ROUNDUP(AB86*(100%-$T$86)/AB102,0) ->  | AG106: Emission factor
R107: ='Data Entry Needs'!E73 -> 0 | S107: day/y | AG107: ='Data Entry Needs'!E117 -> Please select | AH107: =VLOOKUP($AG$107,$R$132:$S$266,2,FALSE) -> 0 | AI107: gCO2-eq/kWh
R108: Hour per day | Z108: Labor | AF108: Energy figures | AL108: Labor
R109: ='Data Entry Needs'!I73 -> 0 | S109: h/day | Z109: Small chipper | AA109: Medium chipper | AB109: Large chipper | AE109: 2 | AF109: Fuel | AG109: =IFERROR(HLOOKUP($AH$84,$X$124:$AB$126,AE109,FALSE),0) -> 0 | AH109: TJ/y | AK109: Unskilled | AL109: 0
Y110: Number of workers per chipper /Skilled | Z110: 1 | AA110: 1 | AB110: 1 | AE110: 3 | AF110: Electricity | AG110: =IFERROR(HLOOKUP($AH$84,$X$124:$AB$126,AE110,FALSE),0) -> 0 | AH110: TJ/y | AK110: Skilled | AL110: =IFERROR(HLOOKUP($AH$84,$Y$109:$AB$114,6,FALSE),0) -> 0
R111: Skilled labor costs | Y111: Number of shifts | Z111: =IF($R$109>8,IF($R$109>16,3,2),1) -> 1 | AA111: =IF($R$109>8,IF($R$109>16,3,2),1) -> 1 | AB111: =IF($R$109>8,IF($R$109>16,3,2),1) -> 1 | AF111: Total | AG111: =SUM(AG109:AG110) -> 0 | AH111: TJ/y
R112: ='Data Entry Needs'!E79 -> 0 | S112: USD/h | Y112: Working hours per shift | Z112: =$R$109/Z111 -> 0 | AA112: =$R$109/AA111 -> 0 | AB112: =$R$109/AB111 -> 0
Y113: hours per working year per man | Z113: =Z112*$R$107 -> 0 | AA113: =AA112*$R$107 -> 0 | AB113: =AB112*$R$107 -> 0 | AF113: GHG emissions
R114: Machinery rental | Y114: number of persons involved per year | Z114: =Z111*Z106*Z110*$R$82 ->  | AA114: =AA111*AA106*AA110*$R$82 ->  | AB114: =AB111*AB106*AB110*$R$82 -> 
R115: ='Data Entry Needs'!I93 -> 0 | S115: USD/h | AF115: Fuel | AG115: =IFERROR(AG109*1000*1000*$X$151/1000,0) -> 0 | AH115: t CO2-eq/y
Z116: Energy requirements | AF116: Electricity | AG116: =IFERROR(AG110*$AH$107/3.6,0) -> 0 | AH116: t CO2-eq/y
R117: Maintenance | Z117: Small chipper | AA117: Medium chipper | AB117: Large chipper | AF117: Total | AG117: =SUM(AG115:AG116) -> 0 | AH117: t CO2-eq/y
R118: ='Data Entry Needs'!E121 -> 0 | S118: of rental | X118: Chipper fuel consumption | Y118: L Diesel / dry tonne | Z118: =1.1*AA118 -> 1.98 | AA118: 1.8 | AB118: =0.8*AA118 -> 1.44
X119: Chipper electricity consumption | Y119: MJ/dry tonne | Z119: =1.1*AA119 -> 19.8 | AA119: 18 | AB119: =0.8*AA119 -> 14.4
R120: Diesel | Z120: Small chipper | AA120: Medium chipper | AB120: Large chipper
R121: 43 | S121: MJ/kg | X121: Diesel | Y121: L/y | Z121: =Z118*Z86*(1-$T$86) -> 0 | AA121: =AA118*AA86*(1-$T$86) -> 0 | AB121: =AB118*AB86*(1-$T$86) -> 0
R122: 0.73722 | S122: kg/L | X122: Electricity | Y122: MJ/y | Z122: =Z119*Z86*(1-$T$86) -> 0 | AA122: =AA119*AA86*(1-$T$86) -> 0 | AB122: =AB119*AB86*(1-$T$86) -> 0
R123: ='Data Entry Needs'!I78 -> 0 | S123: USD/L
X124: Energy figures | Z124: Small chipper | AA124: Medium chipper | AB124: Large chipper
R125: electricity price | X125: Fuel | Y125: TJ/y | Z125: =Z121*$W$151*$V$151/(1000*1000) -> 0 | AA125: =AA121*$W$151*$V$151/(1000*1000) -> 0 | AB125: =AB121*$W$151*$V$151/(1000*1000) -> 0
R126: ='Data Entry Needs'!I79 -> 0 | S126: USD/kWh | X126: Electricity | Y126: TJ/y | Z126: =Z122/(1000*1000) -> 0 | AA126: =AA122/(1000*1000) -> 0 | AB126: =AB122/(1000*1000) -> 0
R128: General and administrative | V128: Miscelaneous
R129: ='Data Entry Needs'!I121 -> 0 | V129: ='Data Entry Needs'!$I$122 -> 0 | Z129: Small chipper | AA129: Medium chipper | AB129: Large chipper
V130: Overhead | Y130: Labor Unskilled
R131: Emission Rates for electricity | S131: gCO2 /kWh | V131: ='Data Entry Needs'!$E$123 -> 0 | Y131: Labor Skilled | Z131: =Z114*Z113*$R$112 ->  | AA131: =AA114*AA113*$R$112 ->  | AB131: =AB114*AB113*$R$112 -> 
R132: Please Select | Y132: Miscellaneous | Z132: =$V$129*$R$82*(Z130+Z131) ->  | AA132: =$V$129*$R$82*(AA130+AA131) ->  | AB132: =$V$129*$R$82*(AB130+AB131) -> 
R133: Albania | S133: 11 | Y133: Machinery rental | Z133: =Z106*$R$109*$R$107*$R$115 ->  | AA133: =AA106*$R$109*$R$107*$R$115 ->  | AB133: =AB106*$R$109*$R$107*$R$115 -> 
R134: Algeria | S134: 576 | Y134: Maintenance | Z134: =Z133*$R$118 ->  | AA134: =AA133*$R$118 ->  | AB134: =AB133*$R$118 -> 
R135: Angola | S135: 237 | Y135: Fuel | Z135: =Z121*$R$123 -> 0 | AA135: =AA121*$R$123 -> 0 | AB135: =AB121*$R$123 -> 0
R136: Argentina | S136: 355 | Y136: Power | Z136: =Z122*$R$126/3.6 -> 0 | AA136: =AA122*$R$126/3.6 -> 0 | AB136: =AB122*$R$126/3.6 -> 0
R137: Armenia | S137: 108 | Y137: Loan | Z137: =AH148*$R$82 ->  | AA137: =AI148*$R$82 ->  | AB137: =AJ148*$R$82 -> 
R138: Australia | S138: 853 | Y138: Overhead | Z138: =$V$131*$R$82*(Z130+Z131+Z134) ->  | AA138: =$V$131*$R$82*(AA130+AA131+AA134) ->  | AB138: =$V$131*$R$82*(AB130+AB131+AB134) -> 
R139: Austria | S139: 163 | Y139: General & administrative | Z139: =$R$129*(Z131+Z130+Z134+Z135+Z136)*$R$82 ->  | AA139: =$R$129*(AA131+AA130+AA134+AA135+AA136)*$R$82 ->  | AB139: =$R$129*(AB131+AB130+AB134+AB135+AB136)*$R$82 -> 
R140: Azerbaijan | S140: 443 | Y140: Total | Z140: =SUM(Z131:Z139) ->  | AA140: =SUM(AA131:AA139) ->  | AB140: =SUM(AB131:AB139) -> 
R141: Bahrain | S141: 665 | AF141: Loan term | AG141: ='Data Entry Needs'!I128 -> 0 | AH141: years
R142: Bangladesh | S142: 585 | AF142: Loan ratio | AG142: ='Data Entry Needs'!E128 -> 0
R143: Belarus | S143: 302 | AF143: Loan interest | AG143: ='Data Entry Needs'!I127 -> 0
R144: Belgium | S144: 218
R145: Benin | S145: 725 | AH145: Small chipper | AI145: Medium chipper | AJ145: Large chipper
R146: Bolivia | S146: 393 | AF146: Loan | AG146: USD | AH146: =$AG$141*Z133*$AG$142 ->  | AI146: =$AG$141*AA133*$AG$142 ->  | AJ146: =$AG$141*AB133*$AG$142 -> 
R147: Bosnia and Herzegovina | S147: 776 | AF147: Monthyly payment | AG147: USD/month | AH147: =(PMT($AG$143/12,(12*$AG$141),AH146))*-1 ->  | AI147: =(PMT($AG$143/12,(12*$AG$141),AI146))*-1 ->  | AJ147: =(PMT($AG$143/12,(12*$AG$141),AJ146))*-1 -> 
R148: Botswana | S148: 2063 | V148: Heating value | W148: Density (kg/L) | X148: kg CO2e/MJ | Y148: g CO2e/MJ | AF148: Annual payment | AG148: USD/y | AH148: =AH147*12 ->  | AI148: =AI147*12 ->  | AJ148: =AJ147*12 -> 
R149: Brazil | S149: 64 | U149: Please Select
R150: Brunei Darus salam | S150: 755 | U150: Gasoline | V150: 44.3 | W150: 0.89 | X150: 0.070985 | Y150: =X150*1000 -> 70.985
R151: Bulgaria | S151: 463 | U151: Diesel Oil | V151: 43 | W151: 0.73722 | X151: 0.0753909 | Y151: =X151*1000 -> 75.3909
R152: Cambodia | S152: 1151 | U152: Waste Oil / Lubrificants | V152: 40.2 | W152: 0.95 | X152: 0.0745909 | Y152: 74.5909
R153: Cameroon | S153: 243 | U153: LPG | V153: 47.3 | W153: 0.545 | X153: 0.064464 | Y153: 64.464
R154: Chile | S154: 373 | U154: Natural Gas | V154: 48 | W154: 0.65 | X154: =0.0156 -> 0.0156 | Y154: 15.6
R155: Taiwan | S155: 743 | U155: Peat | V155: 9.76 | W155: 0.6823529412 | X155: 0.000486 | Y155: 0.486
R156: Chinese Taipei | S156: 635 | U156: Butane | V156: 45.27677204 | W156: 2 | X156: 0.01948001062 | Y156: 19.48001062
R157: Colombia | S157: 175 | U157: Propane | V157: 46.29553566 | W157: 1.92 | X157: 0.01725760354 | Y157: 17.25760354
R158: Congo | S158: 207 | U158: Methanol | V158: 20.09356275 | W158: 0.7918 | X158: 0.08642318218 | Y158: 86.42318218
R159: Costa Rica | S159: 40 | U159: Ethanol | V159: 26.95163409 | W159: 0.789 | X159: 0.004227793194 | Y159: 4.227793194
R160: Côted'Ivoire | S160: 426 | U160: Biodiesel | V160: =35.7/0.88 -> 40.56818182 | W160: 0.88 | X160: 0.004259035631 | Y160: 4.259035631
R161: Croatia | S161: 283
R162: Cuba | S162: 752
R163: Cyprus | S163: 744
R164: Czech Republic | S164: 514
R165: Dem. Rep. of Congo | S165: 3
R166: Denmark | S166: 303
R167: Dominican Republic | S167: 591
R168: DPR of Korea | S168: 499
R169: Ecuador | S169: 290
R170: Egypt | S170: 466
R171: El Salvador | S171: 319
R172: Eritrea | S172: 672
R173: Estonia | S173: 704
R174: Ethiopia | S174: 118
R175: Finland | S175: 205
R176: France | S176: 90
R177: FYR of Macedonia | S177: 710
R178: Gabon | S178: 322
R179: Georgia | S179: 129
R180: Germany | S180: 430
R181: Ghana | S181: 187
R182: Gibraltar | S182: 740
R183: Greece | S183: 722
R184: Guatemala | S184: 349
R185: Haiti | S185: 547
R186: Honduras | S186: 344
R187: HongKong, China | S187: 763
R188: Hungary | S188: 302
R189: Iceland | S189: 0
R190: India | S190: 951
R191: Indonesia | S191: 746
R192: Iraq | S192: 684
R193: Ireland | S193: 465
R194: Islamic Rep. Of Iran | S194: 630
R195: Israel | S195: 695
R196: Italy | S196: 386
R197: Jamaica | S197: 544
R198: Japan | S198: 415
R199: Jordan | S199: 581
R200: Kazakhstan | S200: 480
R201: Kenya | S201: 395
R202: Korea | S202: 498
R203: Kuwait | S203: 870
R204: Kyrgyzstan | S204: 81
R205: Latvia | S205: 153
R206: Lebanon | S206: 717
R207: Libyan Arab Jamahiriya | S207: 872
R208: Lithuania | S208: 111
R209: Luxembourg | S209: 384
R210: Malaysia | S210: 649
R211: Malta | S211: 850
R212: Mongolia | S212: 535
R213: Morocco | S213: 638
R214: Mozambique | S214: 1
R215: Myanmar | S215: 196
R216: Namibia | S216: 237
R217: Nepal | S217: 4
R218: Netherlands | S218: 374
R219: Netherlands Antilles | S219: 707
R220: New Zealand | S220: 167
R221: Nicaragua | S221: 506
R222: Nigeria | S222: 416
R223: Norway | S223: 17
R224: Oman | S224: 842
R225: Pakistan | S225: 458
R226: Panama | S226: 302
R227: People's Rep. of China | S227: 743
R228: Peru | S228: 236
R229: Philippines | S229: 478
R230: Poland | S230: 640
R231: Portugal | S231: 368
R232: Qatar | S232: 494
R233: Republic of Moldova | S233: 400
R234: Romania | S234: 414
R235: Russian Federation | S235: 317
R236: Saudi Arabia | S236: 757
R237: Senegal | S237: 614
R238: Serbia | S238: 680
R239: Singapore | S239: 519
R240: Slovak Republic | S240: 222
R241: Slovenia | S241: 316
R242: South Africa | S242: 926
R243: Spain | S243: 299
R244: SriLanka | S244: 460
R245: Sudan | S245: 356
R246: Sweden | S246: 43
R247: Switzerland | S247: 40
R248: Syrian Arab Republic | S248: 641
R249: Tajikistan | S249: 29
... 17 more rows

Sheet BALING_C (hidden)
C3: =+"CALCULATION OF BALING COSTS OF "&UPPER('Data Entry Needs'!$E$11&" ") -> CALCULATION OF BALING COSTS OF
C6: Use white cells to input data | E6: Grey cells are used for calculations
C8: Baling technology at the collection centre
C10: =U69 -> Operation not included in sequence. Check data entry
C12: Baling input parameters
C14: =+('Data Entry Needs'!$E$11&" to be baled (t/year)") -> to be baled (t/year) | G14: =IFERROR(U82,0) -> 0
C15: =+"Initial moisture content of "&('Data Entry Needs'!$E$11&" (wt%)") -> Initial moisture content of (wt%) | G15: =IFERROR(W82,0) -> 0
C17: Baling output parameters
C19: =+('Data Entry Needs'!$E$11&" to baled (t/year)") -> to baled (t/year) | G19: =IFERROR(AK79,0) -> 0
C20: =+('Data Entry Needs'!$E$11&" density (kg/m3)") -> density (kg/m3) | G20: =IFERROR(AK82*AA121,0) -> 0
C21: =+('Data Entry Needs'!$E$11&" number of bales (bales/y)") -> number of bales (bales/y) | G21: =IFERROR(AK88,0) -> 0
C22: =+('Data Entry Needs'!$E$11&" weight per bale (kg)") -> weight per bale (kg) | G22: =IFERROR(AK85*AA121,0) -> 0
C24: Baling costs per collection site
C26: Category | D26: USD/y
C27: Labor Unskilled | D27: =AK90 -> 0
C28: Labor Skilled | D28: 0
C29: Miscellaneous | D29: 0
C30: Machinery rental | D30: 0
C31: Maintenance | D31: 0
C32: Fuel | D32: 0
C33: Power | D33: 0
C34: Loan | D34: 0
C35: Overhead | D35: 0
C36: General & adm. | D36: 0
C37: Total | D37: =SUM(D27:D36) -> 0
C39: Baling costs per biomass
H41: Baling costs per t of biomass
C52: Energy consumption and Greenhouse gas emissions
C54: Energy consumption | F54: GHG emissions
U68: Label
U69: =IF(U73=0,"Operation not included in sequence. Check data entry",U78) -> Operation not included in sequence. Check data entry
U70: =IF(U73=0,TRUE, FALSE) -> TRUE
U72: Multiplier
U73: =Allocator!N22 -> 0
AA76: t/y | AB76: Medium round bales | AC76: Large round bales | AD76: Large square bales
U77: Teachnology | AA77: Biomass baled | AB77: =$AK$79 -> 0 | AC77: =$AK$79 -> 0 | AD77: =$AK$79 -> 0 | AK77: Output to tool
U78: ='Data Entry Needs'!O296 -> Medium round bales | AK78: Biomass baled
AA79: kg | AB79: Medium round bales | AC79: Large round bales | AD79: Large square bales | AK79: =U85*U82 -> 0 | AL79: t/y
U80: Inputs | AA80: Bale weigths | AB80: =U108*U92 -> 271.4336053 | AC80: =U109*U98 -> 530.1437603 | AD80: =U110*U105 -> 702.72
U81: Biomass to be baled | W81: moisture content | AK81: Biomass density
U82: =Allocator!P22 -> 0 | V82: t/y | W82: =Allocator!R22 -> 0 | AA82: Production per baler | AB82: Medium round bales | AC82: Large round bales | AD82: Large square bales | AK82: =HLOOKUP($U$78,$AA$96:$AD$97,2,FALSE) -> 200 | AL82: kg/m3
AA83: t/y | AB83: =U113*$U$118*$U$119 -> 0 | AC83: =U114*$U$118*$U$119 -> 0 | AD83: =U115*$U$118*$U$119 -> 0
U84: Biomass Baling efficiencu | AK84: Bale weight
U85: =PARAMETERS!H37 -> 0.99 | AA85: number of balers required | AB85: Medium round bales | AC85: Large round bales | AD85: Large square bales | AK85: =HLOOKUP($U$78,$AA$79:$AD$80,2,FALSE) -> 271.4336053 | AL85: kg
AA86: # | AB86: =ROUNDUP(AB77/AB83,0) ->  | AC86: =ROUNDUP(AC77/AC83,0) ->  | AD86: =ROUNDUP(AD77/AD83,0) -> 
AK87: number of bales
U88: Bales dimensions | AB88: Labor | AK88: =HLOOKUP($U$78,$AA$99:$AD$100,2,FALSE) -> 0
U89: Medium round | AB89: Medium round bales | AC89: Large round bales | AD89: Large square bales | AK89: USD/y | AN89: USD/t
U90: 120 | V90: cm | W90: length | AA90: Number of workers per baler /Skilled | AB90: 1 | AC90: 1 | AD90: 1 | AI90: 2 | AJ90: Labor Unskilled | AK90: =IFERROR(HLOOKUP($U$78,$AA$102:$AD$112,AI90,FALSE),0) -> 0 | AM90: Labor Unskilled | AN90: =IFERROR(AK90/$AK$79,0) -> 0
U91: 120 | V91: cm | W91: Diameter | AA91: Number of shifts | AB91: =IF($U$118>8,IF($U$118>16,3,2),1) -> 1 | AC91: =IF($U$118>8,IF($U$118>16,3,2),1) -> 1 | AD91: =IF($U$118>8,IF($U$118>16,3,2),1) -> 1 | AI91: 3 | AJ91: Labor Skilled | AK91: =IFERROR(HLOOKUP($U$78,$AA$102:$AD$112,AI91,FALSE),0) -> 0 | AM91: Labor Skilled | AN91: =IFERROR(AK91/$AK$79,0) -> 0
U92: =PI()*((U91/2)/100)^2*(U90/100) -> 1.357168026 | V92: m3 | W92: Volume | AA92: Working hours per shift | AB92: =$U$114/AB91 -> 18 | AC92: =$U$114/AC91 -> 18 | AD92: =$U$114/AD91 -> 18 | AI92: 4 | AJ92: Miscellaneous | AK92: 0 | AM92: Miscellaneous | AN92: 0
U93: =(U91/100)*(U91/100)*(U90/100) -> 1.728 | V93: m3 | W93: effective volume for transport | AA93: hours per working year per man | AB93: =AB92*$U$119 -> 0 | AC93: =AC92*$U$119 -> 0 | AD93: =AD92*$U$119 -> 0 | AI93: 5 | AJ93: Machinery rental | AK93: 0 | AM93: Machinery rental | AN93: 0
AA94: number of persons involved per year | AB94: =AB91*AB86*AB90*$U$73 ->  | AC94: =AC91*AC86*AC90*$U$73 ->  | AD94: =AD91*AD86*AD90*$U$73 ->  | AI94: 6 | AJ94: Maintenance | AK94: 0 | AM94: Maintenance | AN94: 0
U95: large round | AI95: 7 | AJ95: Fuel | AK95: 0 | AM95: Fuel | AN95: 0
U96: 150 | V96: cm | W96: length | AA96: density | AB96: Medium round bales | AC96: Large round bales | AD96: Large square bales | AI96: 8 | AJ96: Power | AK96: 0 | AM96: Power | AN96: 0
U97: 150 | V97: cm | W97: Diameter | AA97: kg/m3 | AB97: =U108 -> 200 | AC97: =U109 -> 200 | AD97: =U110 -> 200 | AI97: 9 | AJ97: Loan | AK97: 0 | AM97: Loan | AN97: 0
U98: =PI()*((U97/2)/100)^2*(U96/100) -> 2.650718801 | V98: m3 | W98: Volume | AI98: 10 | AJ98: Overhead | AK98: 0 | AM98: Overhead | AN98: 0
U99: =(U97/100)*(U97/100)*(U96/100) -> 3.375 | V99: m3 | W99: effective volume for transport | AA99: Number of bales per year | AB99: Medium round bales | AC99: Large round bales | AD99: Large square bales | AI99: 11 | AJ99: General & adm | AK99: 0 | AM99: General & adm | AN99: =IFERROR(AK99/$AK$79,0) -> 0
AA100: # | AB100: =AB77*1000/AB80 -> 0 | AC100: =AC77*1000/AC80 -> 0 | AD100: =AD77*1000/AD80 -> 0 | AJ100: Total | AK100: =SUM(AK90:AK99) -> 0 | AM100: Total | AN100: =SUM(AN90:AN99) -> 0
U101: large square
U102: 120 | V102: cm | W102: Width | AA102: Costs | AB102: Medium round bales | AC102: Large round bales | AD102: Large square bales
U103: 120 | V103: cm | W103: Depth | AA103: Labor Unskilled
U104: 244 | V104: cm | W104: Length | AA104: Labor Skilled | AB104: =AB94*AB93*$U$122 ->  | AC104: =AC94*AC93*$U$122 ->  | AD104: =AD94*AD93*$U$122 ->  | AJ104: Unskilled | AK104: 0
U105: =(U102/100)*(U103/100)*(U104/100) -> 3.5136 | V105: m3 | W105: effective volume for transport | AA105: Miscellaneous | AB105: =$U$146*$U$73*(AB103+AB104) ->  | AC105: =$U$146*$U$73*(AC103+AC104) ->  | AD105: =$U$146*$U$73*(AD103+AD104) ->  | AJ105: Skilled | AK105: =IFERROR(HLOOKUP($U$78,$AA$89:$AD$94,6,FALSE),0) -> 0
AA106: Machinery rental | AB106: =AB86*$U$119*$U$118*$U$125 ->  | AC106: =AC86*$U$119*$U$118*$U$125 ->  | AD106: =AD86*$U$119*$U$118*$U$125 -> 
U107: Typical densities | AA107: Maintenance | AB107: =AB106*$U$128 ->  | AC107: =AC106*$U$128 ->  | AD107: =AD106*$U$128 -> 
U108: =PARAMETERS!H38 -> 200 | V108: kg/m3 | W108: Medium round bales | AA108: Fuel | AB108: =$U$118*$U$119*$U$143*U138*AA121 -> 0 | AC108: =$U$118*$U$119*$U$143*U139*AA121 -> 0 | AD108: =$U$118*$U$119*$U$143*U140*AA121 -> 0
U109: =PARAMETERS!H39 -> 200 | V109: kg/m3 | W109: Large round bales | AA109: Power
U110: =PARAMETERS!H40 -> 200 | V110: kg/m3 | W110: Large square bales | AA110: Loan | AB110: =AL134 ->  | AC110: =AM134 ->  | AD110: =AN134 -> 
AA111: Overhead | AB111: =$U$148*$U$73*(AB107+AB103+AB104) ->  | AC111: =$U$148*$U$73*(AC107+AC103+AC104) ->  | AD111: =$U$148*$U$73*(AD107+AD103+AD104) -> 
U112: Baling capacity | AA112: General & adm | AB112: =$X$119*(AB103+AB104+AB107+AB108+AB109) ->  | AC112: =$X$119*(AC103+AC104+AC107+AC108+AC109) ->  | AD112: =$X$119*(AD103+AD104+AD107+AD108+AD109) ->  | AK112: Fuel
U113: =PARAMETERS!H41 -> 12 | V113: t/h | W113: Medium round bales | AA113: Total | AB113: =SUM(AB104:AB112) ->  | AC113: =SUM(AC104:AC112) ->  | AD113: =SUM(AD104:AD112) ->  | AJ113: Fuel | AK113: =IFERROR(HLOOKUP($U$78,$AA$116:$AD$118,3,FALSE),0) -> 0 | AL113: TJ/y
U114: =PARAMETERS!H42 -> 18 | V114: t/h | W114: Large round bales | AJ114: Electricity | AL114: TJ/y
U115: =PARAMETERS!H43 -> 13 | V115: t/h | W115: Large square bales | AA115: Fuel consumption | AJ115: Total | AK115: =SUM(AK113:AK114) -> 0 | AL115: TJ/y
AB116: Medium round bales | AC116: Large round bales | AD116: Large square bales
U117: Baling operation | AA117: L Diesel/y | AB117: =U138*$U$118*$U$119*$AA$121 -> 0 | AC117: =U139*$U$118*$U$119*$AA$121 -> 0 | AD117: =U140*$U$118*$U$119*$AA$121 -> 0
U118: ='Data Entry Needs'!I73 -> 0 | V118: h/day | X118: General and ad. | AA118: TJ/y | AB118: =AB117*$AC$130*$AB$130/(1000*1000) -> 0 | AC118: =AC117*$AC$130*$AB$130/(1000*1000) -> 0 | AD118: =AD117*$AC$130*$AB$130/(1000*1000) -> 0
U119: ='Data Entry Needs'!E73 -> 0 | V119: days/y | X119: ='Data Entry Needs'!I121 -> 0 | AK119: GHG emissions
AJ120: GHG emissions
U121: Salary costs | Z121: multi | AA121: =Allocator!N22 -> 0 | AJ121: Fuel | AK121: =IFERROR(AK113*1000*$AD$130,0) -> 0 | AL121: tCO2eq/y
U122: ='Data Entry Needs'!E79 -> 0 | V122: USD/h | AJ122: Electricity | AL122: tCO2eq/y
AJ123: Total | AK123: =SUM(AK121:AK122) -> 0 | AL123: tCO2eq/y
U124: Rental costs
U125: ='Data Entry Needs'!E98 -> 0 | V125: USD/h
U127: Maintenance | AB127: Heating value MJ/kg | AC127: Density (kg/L) | AD127: kg CO2e/MJ | AE127: g CO2e/MJ | AJ127: Loan term | AK127: ='Data Entry Needs'!$I$128 -> 0 | AL127: years
U128: ='Data Entry Needs'!E121 -> 0 | V128: of machinery rental | AA128: Please Select | AJ128: Loan ratio | AK128: ='Data Entry Needs'!$E$128 -> 0
AA129: Gasoline | AB129: 44.3 | AC129: 0.89 | AD129: 0.070985 | AE129: =AD129*1000 -> 70.985 | AJ129: Loan interest | AK129: ='Data Entry Needs'!$I$127 -> 0
U130: Tractor power | AA130: Diesel Oil | AB130: 43 | AC130: 0.73722 | AD130: 0.0753909 | AE130: =AD130*1000 -> 75.3909
U131: 50 | V131: kW | W131: Medium round bales | AA131: Waste Oil / Lubrificants | AB131: 40.2 | AC131: 0.95 | AD131: 0.0745909 | AE131: 74.5909 | AL131: Small chipper | AM131: Medium chipper | AN131: Large chipper
U132: 60 | V132: kW | W132: Large round bales | AA132: LPG | AB132: 47.3 | AC132: 0.545 | AD132: 0.064464 | AE132: 64.464 | AJ132: Loan | AK132: USD | AL132: =$AK$127*AB106*$AK$128 ->  | AM132: =$AK$127*AC106*$AK$128 ->  | AN132: =$AK$127*AD106*$AK$128 -> 
U133: 55 | V133: kW | W133: Large square bales | AA133: Natural Gas | AB133: 48 | AC133: 0.65 | AD133: =0.0156 -> 0.0156 | AE133: 15.6 | AJ133: Monthyly payment | AK133: USD/month | AL133: =(PMT(AK129/12,(12*AK127),AL132))*-1 ->  | AM133: =(PMT(AK129/12,(12*AK127),AM132))*-1 ->  | AN133: =(PMT(AK129/12,(12*AK127),AN132))*-1 -> 
AA134: Peat | AB134: 9.76 | AC134: 0.6823529412 | AD134: 0.000486 | AE134: 0.486 | AJ134: Annual payment | AK134: USD/y | AL134: =AL133*12*U73 ->  | AM134: =AM133*12*U73 ->  | AN134: =AN133*12*U73 -> 
U135: Fuel consumption | AA135: Butane | AB135: 45.27677204 | AC135: 2 | AD135: 0.01948001062 | AE135: 19.48001062
U136: 0.18 | V136: L/h-kW | AA136: Propane | AB136: 46.29553566 | AC136: 1.92 | AD136: 0.01725760354 | AE136: 17.25760354
AA137: Methanol | AB137: 20.09356275 | AC137: 0.7918 | AD137: 0.08642318218 | AE137: 86.42318218
U138: =$U$136*U131 -> 9 | V138: L/h | W138: Medium round bales | AA138: Ethanol | AB138: 26.95163409 | AC138: 0.789 | AD138: 0.004227793194 | AE138: 4.227793194
U139: =$U$136*U132 -> 10.8 | V139: L/h | W139: Large round bales | AA139: Biodiesel | AB139: =35.7/0.88 -> 40.56818182 | AC139: 0.88 | AD139: 0.004259035631 | AE139: 4.259035631
U140: =$U$136*U133 -> 9.9 | V140: L/h | W140: Large square bales
U142: Fuel costs
U143: ='Data Entry Needs'!I78 -> 0 | V143: USD/L
U145: Miscelaneous
U146: ='Data Entry Needs'!$I$122 -> 0
U147: Overhead
U148: ='Data Entry Needs'!$E$123 -> 0

Sheet DRYING_C (hidden)
C3: =+"CALCULATION OF DRYING COSTS OF "&UPPER('Data Entry Needs'!$E$11&" ") -> CALCULATION OF DRYING COSTS OF
C6: Use white cells to input data | E6: Grey cells are used for calculations
C8: Drying technology at the collection centre
C10: =S72 -> Operation not included in sequence. Check data entry
C12: Drying input parameters
C14: =+('Data Entry Needs'!$E$11&" to be dried (t/year)") -> to be dried (t/year) | G14: =IFERROR(S85,0) -> 0
C15: =+"Initial moisture content of "&('Data Entry Needs'!$E$11&" (wt%)") -> Initial moisture content of (wt%) | G15: =IFERROR(U85,0) -> 0
C17: Drying output results
C19: =+"Dried "&('Data Entry Needs'!$E$11&" (t/year)") -> Dried (t/year) | G19: =IFERROR(AM84,0) -> 0
C20: =+"Final moisture content of "&('Data Entry Needs'!$E$11&" (wt%)") -> Final moisture content of (wt%) | G20: =IFERROR(S95*AD112,0) -> 0
C22: Drying costs per collection site
C24: Category | D24: USD/y
C25: Labor Unskilled | D25: =AM88 -> 0
C26: Labor Skilled | D26: 0
C27: Miscellaneous | D27: 0
C28: Depreciation | D28: 0
C29: Maintenance | D29: 0
C30: Fuel | D30: 0
C31: Power | D31: 0
C32: Loan | D32: 0
C33: Overhead | D33: 0
C34: General & adm. | D34: 0
C35: Total | D35: =SUM(D25:D34) -> 0
C37: Drying costs per biomass dried
G39: Drying costs per t of dried biomass at the desired moisture content
C51: Energy consumption and Greenhouse gas emissions
C53: Energy consumption | F53: GHG emissions
S71: Label
S72: =IF(S76=0,"Operation not included in sequence. Check data entry",S82) -> Operation not included in sequence. Check data entry
S73: =IF(S76=0,TRUE, FALSE) -> TRUE
S75: Multiplier
S76: =Allocator!N23 -> 0
S79: Iput paramaters
S81: Drying method
S82: ='Data Entry Needs'!O282 -> Natural drying | AC82: Calculations | AM82: Outcome to the tool
AC83: Biomass dried at desired moisture
S84: Biomass to be dryed | U84: Moisture biomass | AC84: Natural drying | AD84: Belt/Coveyor dryer | AE84: Rotary dryer | AK84: Biomass dried | AL84: t/year | AM84: =HLOOKUP($S$82,AB$84:AE$85,2,FALSE) -> 0
S85: =Allocator!P23 -> 0 | T85: t/year | U85: =Allocator!R23 -> 0 | AB85: t/year | AC85: =$S$85*(1-$U$85)*(1-$S$98)/(1-$S$95) -> 0 | AD85: =$S$85*(1-$U$85)*(1-$S$98)/(1-$S$95) -> 0 | AE85: =$S$85*(1-$U$85)*(1-$S$98)/(1-$S$95) -> 0
AM86: Costs
AK87: 1 | AL87: USD/y | AM87: =HLOOKUP($S$82,AB$122:AE$129,AK87,FALSE) -> Natural drying | AP87: USD/tonne
S88: Biomass water content | AB88: Energy efficieny | AK88: 2 | AL88: Labor Unskilled | AM88: =IFERROR(HLOOKUP($S$82,AB$122:AE$132,AK88,FALSE),0) -> 0 | AP88: Labor Unskilled | AQ88: =IFERROR(AM88/$AM$84,0) -> 0
S89: =S85*U85 -> 0 | T89: t/year | AC89: Natural drying | AD89: Belt/Coveyor dryer | AE89: Rotary dryer | AK89: 3 | AL89: Labor Skilled | AM89: =IFERROR(HLOOKUP($S$82,AB$122:AE$132,AK89,FALSE),0) -> 0 | AP89: Labor Skilled | AQ89: =IFERROR(AM89/$AM$84,0) -> 0
AC90: 1 | AD90: 0.85 | AE90: 0.9 | AK90: 4 | AL90: Miscellaneous | AM90: 0 | AP90: Miscellaneous | AQ90: =IFERROR(AM90/$AM$84,0) -> 0
S91: Biomass bulk density | AB91: energy recovery | AC91: 1 | AD91: 0.65 | AE91: 0.8 | AK91: 5 | AL91: Depreciation | AM91: 0 | AP91: Depreciation | AQ91: =IFERROR(AM91/$AM$84,0) -> 0
S92: =Allocator!T23 -> 0 | T92: kg/m3 | AA92: water to be removed | AC92: Natural drying | AD92: Belt/Coveyor dryer | AE92: Rotary dryer | AK92: 6 | AL92: Maintenance | AM92: 0 | AP92: Maintenance | AQ92: 0
AB93: t/year | AC93: =$S$85-AC85 -> 0 | AD93: =$S$85-AD85 -> 0 | AE93: =$S$85-AE85 -> 0 | AK93: 7 | AL93: Fuel | AM93: 0 | AP93: Fuel | AQ93: 0
S94: Desired biomass moisture content | AK94: 8 | AL94: Power | AM94: 0 | AP94: Power | AQ94: 0
S95: ='Data Entry Needs'!E88 -> 0 | AA95: Energy needed including efficiency (primary energy) - assumption gas natural as fuel | AK95: 9 | AL95: Loan | AM95: 0 | AP95: Loan | AQ95: 0
AC96: Natural drying | AD96: Belt/Coveyor dryer | AE96: Rotary dryer | AK96: 10 | AL96: Overhead | AM96: 0 | AP96: Overhead | AQ96: 0
S97: Assumed biomass loss in VOC in dry basis | AB97: GJ/y | AC97: =AC93*$S$101*(1-AC91)*1000/AC90/1000 -> 0 | AD97: =AD93*$S$101*(1-AD91)*1000/AD90/1000 -> 0 | AE97: =AE93*$S$101*(1-AE91)*1000/AE90/1000 -> 0 | AK97: 11 | AL97: General & adm | AM97: 0 | AP97: General & adm | AQ97: 0
S98: 0.005 | AL98: Total | AM98: =SUM(AM88:AM97) -> 0 | AP98: Total | AQ98: =SUM(AQ88:AQ97) -> 0
AA99: Dryer time/capacity | AC99: Drying time -h | AD99: Capacity t/h | AE99: Capacity t/h
S100: Water latent heat | AC100: Natural drying | AD100: Belt/Coveyor dryer | AE100: Rotary dryer
S101: 2.25792 | T101: MJ/kg | AB101: t/h | AC101: =PARAMETERS!H21 -> 2 | AD101: =PARAMETERS!H22 -> 8 | AE101: =PARAMETERS!H23 -> 12 | AO101: Unskilled | AP101: =IFERROR(HLOOKUP($S$82,AC100:AE107,7,FALSE),0) -> 0
AA102: drying capacity per machine/batch | AB102: t/year | AC102: =AC101*$S$108*$S$104 -> 0 | AD102: =AD101*$S$107*$S$104 -> 0 | AE102: =AE101*$S$107*$S$104 -> 0 | AO102: Skilled | AP102: =IFERROR(HLOOKUP($S$82,AC100:AE107,8,FALSE),0) -> 0
S103: Annual drying operation | AA103: number of mach/batches | AC103: =ROUNDUP(AC85/AC102,0) ->  | AD103: =ROUNDUP(AD85/AD102,0) ->  | AE103: =ROUNDUP(AE85/AE102,0) -> 
S104: ='Data Entry Needs'!E73 -> 0 | T104: day/year | AA104: number of shifts per day | AC104: =IF(S108=8,1,IF(S108=16,2,3)) -> 3 | AD104: =IF($S$107=8,1,IF($S$107=16,2,3)) -> 3 | AE104: =IF($S$107=8,1,IF($S$107=16,2,3)) -> 3
AA105: Number of persons per mach | AC105: 1 | AD105: 0.5 | AE105: 0.5
S106: Operating time | AA106: Number of persons, un | AC106: =AC104*AC103*AC105*$S$76 ->  | AD106: 0 | AE106: 0
R107: Mech | S107: ='Data Entry Needs'!I73 -> 0 | T107: h/day | AA107: Number of persons, sk | AC107: 0 | AD107: =AD104*AD103*AD105*$S$76 ->  | AE107: =AE104*AE103*AE105*$S$76 -> 
R108: Natural | S108: ='Data Entry Needs'!E74 -> 0 | T108: h/day | AC108: Natural drying | AD108: Belt/Coveyor dryer | AE108: Rotary dryer
AA109: investment | AB109: USD | AC109: 0 | AD109: =S124*AD103*(AD101/50)^0.6 ->  | AE109: =S119*AE103*(AE101/50)^0.6 -> 
R110: Labor cost unskilled worker (USD/person-h) | S110: ='Data Entry Needs'!E78 -> 0 | T110: USD/h | AA110: Depreciation | AB110: USD/y | AC110: =AC109/$S$113 -> 0 | AD110: =AD109/$S$113 ->  | AE110: =AE109/$S$113 ->  | AK110: Country | AL110: ='Data Entry Needs'!E117 -> Please select | AM110: =IFERROR(VLOOKUP($AL$110,$AA$149:$AB$283,2,FALSE),0) -> 0 | AN110: gCO2 /kWh
R111: Labor cost skilled worker (USD/person-h) | S111: ='Data Entry Needs'!E79 -> 0 | T111: USD/h | AK111: Fuel | AL111: ='Data Entry Needs'!E89 -> Please select | AM111: =IFERROR(VLOOKUP($AL$111,$AE$149:$AI$160,5,FALSE),0) -> 0 | AN111: gCO2 /MJ
AA112: Electricity | AC112: Multi | AD112: =Allocator!N23 -> 0
R113: Depreciation time | S113: =PARAMETERS!H24 -> 20 | T113: years | AC113: Natural drying | AD113: Belt/Coveyor dryer | AE113: Rotary dryer | AL113: Fuel | AM113: =IFERROR(HLOOKUP($S$82,$AB$96:$AE$97,2,FALSE),0) -> 0 | AN113: GJ/y
AB114: HP | AC114: 0 | AD114: =PARAMETERS!H25*AD112 -> 0 | AE114: =PARAMETERS!H26*AD112 -> 0 | AL114: Electricity | AM114: =IFERROR(HLOOKUP($S$82,$AB$113:$AE$117,5,FALSE),0) -> 0 | AN114: kWh/y
AB115: kJ/h | AC115: 0 | AD115: =0.7457*AD114*3600 -> 0 | AE115: =0.7457*AE114*3600 -> 0
AB116: KWh/h | AC116: 0 | AD116: =AD115*(1/1000)*(1/3.6) -> 0 | AE116: =AE115*(1/1000)*(1/3.6) -> 0
S117: capacity rotary | AB117: kWh/y | AC117: 0 | AD117: =AD116*$S$107*$S$104 -> 0 | AE117: =AE116*$S$107*$S$104 -> 0 | AL117: Figure fuel energy consumption | AP117: Emissions
S118: 50 tonne/h | AL118: Fuel | AM118: =AM113/1000 -> 0 | AN118: TJ/y | AP118: Fuel | AQ118: =AM113*AM111/1000 -> 0 | AR118: t-CO2 eq/y
R119: Capital | S119: =3800000 + 3800000*2 -> 11400000 | AL119: Electricity | AM119: =AM114*3.6*(1/1000)*(1/1000) -> 0 | AN119: TJ/y | AP119: Electricity | AQ119: =AM114*$AM$110/(1000*1000) -> 0 | AR119: t-CO2 eq/y
AL120: Total | AM120: =SUM(AM118:AM119) -> 0 | AN120: TJ/y | AP120: Total | AQ120: =SUM(AQ118:AQ119) -> 0 | AR120: t-CO2 eq/y
AA121: Costs | AC121: USD/year
S122: capital conveyor | AC122: Natural drying | AD122: Belt/Coveyor dryer | AE122: Rotary dryer
S123: 50 tonne/h | AB123: Labor Unskilled | AC123: =S104*S108*AC106*S110 ->  | AD123: 0 | AE123: 0
R124: Capital | S124: =3000000 + 3000000*2 -> 9000000 | AB124: Labor Skilled | AC124: 0 | AD124: =$S$104*($S$107/AD104)*AD107*$S$111 ->  | AE124: =$S$104*($S$107/AE104)*AE107*$S$111 -> 
AB125: Miscellaneous | AC125: =$R$142*$S$76*(AC123+AC124) ->  | AD125: =$R$142*$S$76*(AD123+AD124) ->  | AE125: =$R$142*$S$76*(AE123+AE124) -> 
R126: Maintenance | S126: ='Data Entry Needs'!E122 -> 0 | AB126: Depreciation | AC126: =AC110 -> 0 | AD126: =AD110 ->  | AE126: =AE110 -> 
AB127: Maintenance | AC127: =$S$126*AC109 -> 0 | AD127: =$S$126*AD109 ->  | AE127: =$S$126*AE109 -> 
R128: Fuel price | S128: ='Data Entry Needs'!I89 -> 0 | T128: USD/GJ | AB128: Fuel | AC128: =AC97*$S$128*0 -> 0 | AD128: =AD97*$S$128 -> 0 | AE128: =AE97*$S$128 -> 0
AB129: Power | AC129: 0 | AD129: =AD117*$S$130 -> 0 | AE129: =AE117*$S$130 -> 0
R130: Electricity price | S130: ='Data Entry Needs'!I79 -> 0 | T130: USD/kWh | AB130: Loan | AC130: =AD143 ->  | AD130: =AE143 ->  | AE130: =AF143 -> 
AB131: Overhead | AC131: =$R$144*$S$76*(AC127+AC124+AC123) ->  | AD131: =$R$144*$S$76*(AD127+AD124+AD123) ->  | AE131: =$R$144*$S$76*(AE127+AE124+AE123) -> 
AB132: General & adm | AC132: =$R$139*(AC123+AC124+AC127+AC128+AC129)*$S$76 ->  | AD132: =$R$139*(AD123+AD124+AD127+AD128+AD129)*$S$76 ->  | AE132: =$R$139*(AE123+AE124+AE127+AE128+AE129)*$S$76 -> 
R133: Input density | S133: =Allocator!T23 -> 0 | T133: kg/m3 | AB133: Total | AC133: =SUM(AC123:AC132) ->  | AD133: =SUM(AD123:AD132) ->  | AE133: =SUM(AE123:AE132) -> 
R135: Output density | S135: =S133*1.04 -> 0 | T135: kg/m3
AB136: Loan term | AC136: ='Data Entry Needs'!$I$128 -> 0 | AD136: years
AB137: Loan ratio | AC137: ='Data Entry Needs'!$E$128 -> 0
R138: General and adminis | AB138: Loan interest | AC138: ='Data Entry Needs'!$I$127 -> 0
R139: ='Data Entry Needs'!$I$121 -> 0
AD140: Small chipper | AE140: Medium chipper | AF140: Large chipper
R141: Miscelaneous | AB141: Loan | AC141: USD | AD141: =AC109*$AC$137 -> 0 | AE141: =AD109*$AC$137 ->  | AF141: =AE109*$AC$137 -> 
R142: ='Data Entry Needs'!$I$122 -> 0 | AB142: Monthyly payment | AC142: USD/month | AD142: =(PMT(AC138/12,(12*AC136),AD141))*-1 ->  | AE142: =(PMT(AC138/12,(12*AC136),AE141))*-1 ->  | AF142: =(PMT(AC138/12,(12*AC136),AF141))*-1 -> 
R143: Overhead | AB143: Annual payment | AC143: USD/y | AD143: =AD142*12*$S$76 ->  | AE143: =AE142*12*$S$76 ->  | AF143: =AF142*12*$S$76 -> 
R144: ='Data Entry Needs'!$E$123 -> 0
AA148: Emission Rates for electricity | AB148: gCO2 /kWh | AF148: Heating value | AG148: Density (kg/L) | AH148: kg CO2e/MJ | AI148: g CO2e/MJ
AA149: Please Select | AE149: Please Select
AA150: Albania | AB150: 11 | AE150: Gasoline | AF150: 44.3 | AG150: 0.89 | AH150: 0.070985 | AI150: =AH150*1000 -> 70.985
AA151: Algeria | AB151: 576 | AE151: Diesel Oil | AF151: 43 | AG151: 0.73722 | AH151: 0.0753909 | AI151: =AH151*1000 -> 75.3909
AA152: Angola | AB152: 237 | AE152: Waste Oil / Lubrificants | AF152: 40.2 | AG152: 0.95 | AH152: 0.0745909 | AI152: 74.5909
AA153: Argentina | AB153: 355 | AE153: LPG | AF153: 47.3 | AG153: 0.545 | AH153: 0.064464 | AI153: 64.464
AA154: Armenia | AB154: 108 | AE154: Natural Gas | AF154: 48 | AG154: 0.65 | AH154: =0.0156 -> 0.0156 | AI154: 15.6
AA155: Australia | AB155: 853 | AE155: Peat | AF155: 9.76 | AG155: 0.6823529412 | AH155: 0.000486 | AI155: 0.486
AA156: Austria | AB156: 163 | AE156: Butane | AF156: 45.27677204 | AG156: 2 | AH156: 0.01948001062 | AI156: 19.48001062
AA157: Azerbaijan | AB157: 443 | AE157: Propane | AF157: 46.29553566 | AG157: 1.92 | AH157: 0.01725760354 | AI157: 17.25760354
AA158: Bahrain | AB158: 665 | AE158: Methanol | AF158: 20.09356275 | AG158: 0.7918 | AH158: 0.08642318218 | AI158: 86.42318218
AA159: Bangladesh | AB159: 585 | AE159: Ethanol | AF159: 26.95163409 | AG159: 0.789 | AH159: 0.004227793194 | AI159: 4.227793194
AA160: Belarus | AB160: 302 | AE160: Biodiesel | AF160: =35.7/0.88 -> 40.56818182 | AG160: 0.88 | AH160: 0.004259035631 | AI160: 4.259035631
AA161: Belgium | AB161: 218
AA162: Benin | AB162: 725
AA163: Bolivia | AB163: 393
AA164: Bosnia and Herzegovina | AB164: 776
AA165: Botswana | AB165: 2063
AA166: Brazil | AB166: 64
AA167: Brunei Darus salam | AB167: 755
AA168: Bulgaria | AB168: 463
AA169: Cambodia | AB169: 1151
AA170: Cameroon | AB170: 243
AA171: Chile | AB171: 373
AA172: Taiwan | AB172: 743
AA173: Chinese Taipei | AB173: 635
AA174: Colombia | AB174: 175
AA175: Congo | AB175: 207
AA176: Costa Rica | AB176: 40
AA177: Côted'Ivoire | AB177: 426
AA178: Croatia | AB178: 283
AA179: Cuba | AB179: 752
AA180: Cyprus | AB180: 744
AA181: Czech Republic | AB181: 514
AA182: Dem. Rep. of Congo | AB182: 3
AA183: Denmark | AB183: 303
AA184: Dominican Republic | AB184: 591
AA185: DPR of Korea | AB185: 499
AA186: Ecuador | AB186: 290
AA187: Egypt | AB187: 466
AA188: El Salvador | AB188: 319
AA189: Eritrea | AB189: 672
AA190: Estonia | AB190: 704
AA191: Ethiopia | AB191: 118
AA192: Finland | AB192: 205
AA193: France | AB193: 90
AA194: FYR of Macedonia | AB194: 710
AA195: Gabon | AB195: 322
AA196: Georgia | AB196: 129
AA197: Germany | AB197: 430
AA198: Ghana | AB198: 187
AA199: Gibraltar | AB199: 740
AA200: Greece | AB200: 722
AA201: Guatemala | AB201: 349
AA202: Haiti | AB202: 547
AA203: Honduras | AB203: 344
AA204: HongKong, China | AB204: 763
AA205: Hungary | AB205: 302
AA206: Iceland | AB206: 0
AA207: India | AB207: 951
AA208: Indonesia | AB208: 746
AA209: Iraq | AB209: 684
AA210: Ireland | AB210: 465
AA211: Islamic Rep. Of Iran | AB211: 630
AA212: Israel | AB212: 695
AA213: Italy | AB213: 386
AA214: Jamaica | AB214: 544
AA215: Japan | AB215: 415
AA216: Jordan | AB216: 581
AA217: Kazakhstan | AB217: 480
AA218: Kenya | AB218: 395
AA219: Korea | AB219: 498
AA220: Kuwait | AB220: 870
AA221: Kyrgyzstan | AB221: 81
AA222: Latvia | AB222: 153
AA223: Lebanon | AB223: 717
AA224: Libyan Arab Jamahiriya | AB224: 872
AA225: Lithuania | AB225: 111
AA226: Luxembourg | AB226: 384
AA227: Malaysia | AB227: 649
AA228: Malta | AB228: 850
AA229: Mongolia | AB229: 535
AA230: Morocco | AB230: 638
AA231: Mozambique | AB231: 1
AA232: Myanmar | AB232: 196
AA233: Namibia | AB233: 237
AA234: Nepal | AB234: 4
AA235: Netherlands | AB235: 374
AA236: Netherlands Antilles | AB236: 707
AA237: New Zealand | AB237: 167
AA238: Nicaragua | AB238: 506
AA239: Nigeria | AB239: 416
AA240: Norway | AB240: 17
AA241: Oman | AB241: 842
AA242: Pakistan | AB242: 458
AA243: Panama | AB243: 302
AA244: People's Rep. of China | AB244: 743
AA245: Peru | AB245: 236
AA246: Philippines | AB246: 478
AA247: Poland | AB247: 640
AA248: Portugal | AB248: 368
AA249: Qatar | AB249: 494
AA250: Republic of Moldova | AB250: 400
AA251: Romania | AB251: 414
... 32 more rows

Sheet MILLING_C (hidden)
C3: =+"CALCULATION OF MILLING/GRINDING COSTS OF "&UPPER('Data Entry Needs'!$E$11&" ") -> CALCULATION OF MILLING/GRINDING COSTS OF
C6: Use white cells to input data | E6: Grey cells are used for calculations
C8: Milling technology at the collection centre
C10: =U70 -> Operation not included in sequence. Check data entry
C12: Milling input parameters
C14: =+('Data Entry Needs'!$E$11&" to be milled (t/year)") -> to be milled (t/year) | G14: =U81 -> 0
C15: =+('Data Entry Needs'!$E$11&" average input particle size (mm)") -> average input particle size (mm) | G15: =IFERROR(U88*U74,0) -> 0
C17: Milling output parameters
C19: =+('Data Entry Needs'!$E$11&" milled (t/year)") -> milled (t/year) | G19: =AK78 -> 0
C20: =+('Data Entry Needs'!$E$11&" density (kg/m3)") -> density (kg/m3) | G20: =AK81 -> 0
C21: =+('Data Entry Needs'!$E$11&" average particle size (mm)") -> average particle size (mm) | G21: =IFERROR(U87*U74,0) -> 0
C23: Milling costs per collection site
C25: Category | D25: USD/y
C26: Labor Unskilled | D26: =AK83 -> 0
C27: Labor Skilled | D27: 0
C28: Miscellaneous | D28: 0
C29: Depreciation | D29: 0
C30: Maintenance | D30: 0
C31: Fuel | D31: 0
C32: Power | D32: 0
C33: Loan | D33: 0
C34: Overhead | D34: 0
C35: General & adm. | D35: 0
C36: Total | D36: =SUM(D26:D35) -> 0
C38: Milling costs per biomass
H40: Milling costs per t of biomass
C51: Energy consumption and Greenhouse gas emissions
C53: Energy consumption | F53: GHG emissions
U69: Label
U70: =IF(U74=0,"Operation not included in sequence. Check data entry",U77) -> Operation not included in sequence. Check data entry
U71: =IF(U74=0,TRUE, FALSE) -> TRUE
U73: Multiplier
U74: =Allocator!N26 -> 0
AA75: t/y | AB75: Hammer mill | AC75: Disk mill | AD75: Knife mill
U76: Teachnology | AA76: Biomass baled | AB76: =$AK$78 -> 0 | AC76: =$AK$78 -> 0 | AD76: =$AK$78 -> 0 | AK76: Output to tool
U77: ='Data Entry Needs'!$O$303 -> Hammer mill | AK77: Biomass milled
AA78: Production per miller | AB78: Hammer mill | AC78: Disk mill | AD78: Knife mill | AK78: =U84*U81 -> 0 | AL78: t/y
U79: Inputs | AA79: t/y | AB79: =U100*$U$90*$U$91 -> 0 | AC79: =U101*$U$90*$U$91 -> 0 | AD79: =U102*$U$90*$U$91 -> 0
U80: Biomass to be milled | W80: moisture content | AK80: Biomass density
U81: =Allocator!P26 -> 0 | V81: t/y | W81: =Allocator!R26 -> 0 | AA81: number of millers required | AB81: Hammer mill | AC81: Disk mill | AD81: Knife mill | AK81: =HLOOKUP($U$77,$AA$92:$AD$93,2,FALSE) -> 0 | AL81: kg/m3
AA82: # | AB82: =ROUNDUP(AB76/AB79,0) ->  | AC82: =ROUNDUP(AC76/AC79,0) ->  | AD82: =ROUNDUP(AD76/AD79,0) -> 
U83: Biomass milling recovery efficiency | AI83: 2 | AJ83: Labor Unskilled | AK83: =IFERROR(HLOOKUP($U$77,$AA$98:$AD$108,AI83,FALSE),0) -> 0 | AM83: Labor Unskilled | AN83: =IFERROR(AK83/$AK$78,0) -> 0
U84: =PARAMETERS!H47 -> 0.99 | AB84: Labor | AI84: 3 | AJ84: Labor Skilled | AK84: =IFERROR(HLOOKUP($U$77,$AA$98:$AD$108,AI84,FALSE),0) -> 0 | AM84: Labor Skilled | AN84: =IFERROR(AK84/$AK$78,0) -> 0
AB85: Hammer mill | AC85: Disk mill | AD85: Knife mill | AI85: 4 | AJ85: Miscellanous | AK85: 0 | AM85: Miscellanous | AN85: 0
U86: Particle size | AA86: Number of workers per baler /Skilled | AB86: 0.3 | AC86: 0.3 | AD86: 0.3 | AI86: 5 | AJ86: Depreciation | AK86: 0 | AM86: Depreciation | AN86: 0
U87: ='Data Entry Needs'!I102 -> 0 | V87: mm | W87: output | AA87: Number of shifts | AB87: =IF($U$90>8,IF($U$90>16,3,2),1) -> 1 | AC87: =IF($U$90>8,IF($U$90>16,3,2),1) -> 1 | AD87: =IF($U$90>8,IF($U$90>16,3,2),1) -> 1 | AI87: 6 | AJ87: Maintenance | AK87: 0 | AM87: Maintenance | AN87: 0
U88: ='Data Entry Needs'!E102 -> 0 | V88: mm | W88: input | AA88: Working hours per shift | AB88: =$U$90/AB87 -> 0 | AC88: =$U$90/AC87 -> 0 | AD88: =$U$90/AD87 -> 0 | AI88: 7 | AJ88: Fuel | AK88: 0 | AM88: Fuel | AN88: 0
U89: Milling operation | AA89: hours per working year per man | AB89: =AB88*$U$91 -> 0 | AC89: =AC88*$U$91 -> 0 | AD89: =AD88*$U$91 -> 0 | AI89: 8 | AJ89: Power | AK89: 0 | AM89: Power | AN89: 0
U90: ='Data Entry Needs'!I73 -> 0 | V90: h/day | AA90: number of persons involved per year | AB90: =ROUNDUP(AB87*AB82*AB86*$U$74,0) ->  | AC90: =ROUNDUP(AC87*AC82*AC86*$U$74,0) ->  | AD90: =ROUNDUP(AD87*AD82*AD86*$U$74,0) ->  | AI90: 9 | AJ90: Loan | AK90: 0 | AM90: Loan | AN90: 0
U91: ='Data Entry Needs'!E73 -> 0 | V91: days/y | AI91: 10 | AJ91: Overhead | AK91: 0 | AM91: Overhead | AN91: 0
AA92: density | AB92: Hammer mill | AC92: Disk mill | AD92: Knife mill | AI92: 11 | AJ92: General & adm | AK92: 0 | AM92: General & adm | AN92: 0
U93: Salary costs | AA93: kg/m3 | AB93: =$U$105*0.87 -> 0 | AC93: =$U$105*0.87 -> 0 | AD93: =$U$105*0.87 -> 0 | AJ93: Total | AK93: =SUM(AK83:AK92) -> 0 | AM93: Total | AN93: =SUM(AN83:AN92) -> 0
U94: ='Data Entry Needs'!E79 -> 0 | V94: USD/h
U96: Rental costs
U97: ='Data Entry Needs'!E98 -> 0 | V97: USD/h
AA98: Costs | AB98: Hammer mill | AC98: Disk mill | AD98: Knife mill
U99: Milling capacity | AA99: Labor Unskilled | AK99: Fuel
T100: Hammer | U100: =PARAMETERS!H48 -> 3 | V100: t/h | AA100: Labor Skilled | AB100: =AB90*AB89*$U$94 ->  | AC100: =AC90*AC89*$U$94 ->  | AD100: =AD90*AD89*$U$94 ->  | AJ100: Fuel | AK100: 0 | AL100: TJ/y | AN100: Country | AO100: ='Data Entry Needs'!E117 -> Please select | AP100: =IFERROR(VLOOKUP($AO$100,$U$152:$V$286,2,FALSE),0) -> 0 | AQ100: gCO2 /kWh
T101: Disk | U101: =PARAMETERS!H49 -> 2 | V101: t/h | AA101: Miscellaneous | AB101: =$AD$113*$U$74*(AB99+AB100) ->  | AC101: =$AD$113*$U$74*(AC99+AC100) ->  | AD101: =$AD$113*$U$74*(AD99+AD100) ->  | AJ101: Electricity | AK101: =IFERROR(HLOOKUP($U$77,$AA$122:$AD$124,3,FALSE),0) -> 0 | AL101: TJ/y
T102: Knife | U102: =PARAMETERS!H50 -> 2 | V102: t/h | AA102: Depreciation | AB102: =AB153*AB82 ->  | AC102: =AC153*AC82 ->  | AD102: =AD153*AD82 ->  | AJ102: Total | AK102: =SUM(AK100:AK101) -> 0 | AL102: TJ/y | AP102: Unskilled | AQ102: 0
AA103: Maintenance | AB103: =AB151*$U$111*U74 -> 0 | AC103: =AC151*$U$111*U74 -> 0 | AD103: =AD151*$U$111*U74 -> 0 | AP103: Skilled | AQ103: =IFERROR(HLOOKUP($U$77,$AA$85:$AD$90,6,FALSE),0) -> 0
U104: Input biomass density | AA104: Fuel | AJ104: kWh/y | AK104: =HLOOKUP($U$77,$AA$122:$AD$124,2,FALSE) -> 
U105: =Allocator!T26 -> 0 | V105: kg/m3 | AA105: Power | AB105: =$W$120*AB76*$U$114 ->  | AC105: =$W$120*AC76*$U$114 ->  | AD105: =$W$120*AD76*$U$114 -> 
AA106: Loan | AB106: =AC118 ->  | AC106: =AD118 ->  | AD106: =AE118 ->  | AK106: GHG emissions
U107: General and adminis | AA107: Overhead | AB107: =$AD$115*$U$74*(AB99+AB100+AB103) ->  | AC107: =$AD$115*$U$74*(AC99+AC100+AC103) ->  | AD107: =$AD$115*$U$74*(AD99+AD100+AD103) ->  | AJ107: GHG emissions
U108: ='Data Entry Needs'!$I$121 -> 0 | AA108: General & adm | AB108: =$U$108*(AB99+AB100+AB103+AB104+AB105)*$U$74 ->  | AC108: =$U$108*(AC99+AC100+AC103+AC104+AC105)*$U$74 ->  | AD108: =$U$108*(AD99+AD100+AD103+AD104+AD105)*$U$74 ->  | AJ108: Fuel | AL108: tCO2eq/y
AA109: Total | AB109: =SUM(AB100:AB108) ->  | AC109: =SUM(AC100:AC108) ->  | AD109: =SUM(AD100:AD108) ->  | AJ109: Electricity | AK109: =IFERROR(AK104*AP100/(1000*1000),0) -> 0 | AL109: tCO2eq/y
U110: Maintenance | AJ110: Total | AK110: =SUM(AK108:AK109) -> 0 | AL110: tCO2eq/y
U111: ='Data Entry Needs'!E122 -> 0 | V111: of machinery rental
AA112: Loan term | AB112: ='Data Entry Needs'!$I$128 -> 0 | AC112: years | AD112: Miscelaneous
U113: Electricity price | AA113: Loan ratio | AB113: ='Data Entry Needs'!$E$128 -> 0 | AD113: ='Data Entry Needs'!$I$122 -> 0
U114: ='Data Entry Needs'!I79 -> 0 | V114: USD/kWh | AA114: Loan interest | AB114: ='Data Entry Needs'!$I$127 -> 0 | AD114: Overhead
AD115: ='Data Entry Needs'!$E$123 -> 0
AA116: Loan | AB116: USD | AC116: =$AB$113*AB151 -> 0 | AD116: =$AB$113*AC151 -> 0 | AE116: =$AB$113*AD151 -> 0
AA117: Monthyly payment | AB117: USD/month | AC117: =(PMT(AB114/12,(12*AB112),AC116))*-1 ->  | AD117: =(PMT(AB114/12,(12*AB112),AD116))*-1 ->  | AE117: =(PMT(AB114/12,(12*AB112),AE116))*-1 -> 
AA118: Annual payment | AB118: USD/y | AC118: =AC117*12*$U$74 ->  | AD118: =AD117*12*$U$74 ->  | AE118: =AE117*12*$U$74 -> 
U119: Biomass type | W119: Energy consumption
U120: ='Data Entry Needs'!E11 ->  | W120: =VLOOKUP($U$120,$U$124:$W$135,3,FALSE) ->  | X120: KWh/tonne
AA121: Electricity consumption
AB122: Hammer mill | AC122: Disk mill | AD122: Knife mill
AA123: kWh/y | AB123: =$W$120*AB76 ->  | AC123: =$W$120*AC76 ->  | AD123: =$W$120*AD76 -> 
V124: kJ/kg | W124: KWh/tonne | AA124: TJ/y | AB124: =AB123*3.6/(1000*1000) ->  | AC124: =AC123*3.6/(1000*1000) ->  | AD124: =AD123*3.6/(1000*1000) -> 
T125: 180 | U125: Barley straw | V125: =T125/2 -> 90 | W125: =V125/3.6 -> 25
T126: 185 | U126: Maize stover | V126: =T126/2 -> 92.5 | W126: =V126/3.6 -> 25.69444444
T127: 185 | U127: Oat straw | V127: 92.5 | W127: 25.69444444
T128: 180 | U128: Rice straw | V128: 90 | W128: 25
T129: 175 | U129: Sorghum straw | V129: 87.5 | W129: 24.30555556
T130: 170 | U130: Wheat straw | V130: 85 | W130: 23.61111111
T131: 190 | U131: Sugarcane bagasse | V131: 95 | W131: 26.38888889 | AB131: Heating value MJ/kg | AC131: Density (kg/L) | AD131: kg CO2e/MJ | AE131: g CO2e/MJ
T132: 195 | U132: Oil palm empty fruit bunch | V132: 97.5 | W132: 27.08333333 | AA132: Please Select
T133: 20 | U133: Pruining | V133: 10 | W133: 2.777777778 | AA133: Gasoline | AB133: 44.3 | AC133: 0.89 | AD133: 0.070985 | AE133: =AD133*1000 -> 70.985
T134: 210 | U134: Wood forest residues | V134: 105 | W134: 29.16666667 | AA134: Diesel Oil | AB134: 43 | AC134: 0.73722 | AD134: 0.0753909 | AE134: =AD134*1000 -> 75.3909
T135: 210 | U135: Wood processing residues | V135: 105 | W135: 29.16666667 | AA135: Waste Oil / Lubrificants | AB135: 40.2 | AC135: 0.95 | AD135: 0.0745909 | AE135: 74.5909
AA136: LPG | AB136: 47.3 | AC136: 0.545 | AD136: 0.064464 | AE136: 64.464
AA137: Natural Gas | AB137: 48 | AC137: 0.65 | AD137: =0.0156 -> 0.0156 | AE137: 15.6
AA138: Peat | AB138: 9.76 | AC138: 0.6823529412 | AD138: 0.000486 | AE138: 0.486
AA139: Butane | AB139: 45.27677204 | AC139: 2 | AD139: 0.01948001062 | AE139: 19.48001062
AA140: Propane | AB140: 46.29553566 | AC140: 1.92 | AD140: 0.01725760354 | AE140: 17.25760354
AA141: Methanol | AB141: 20.09356275 | AC141: 0.7918 | AD141: 0.08642318218 | AE141: 86.42318218
AA142: Ethanol | AB142: 26.95163409 | AC142: 0.789 | AD142: 0.004227793194 | AE142: 4.227793194
AA143: Biodiesel | AB143: =35.7/0.88 -> 40.56818182 | AC143: 0.88 | AD143: 0.004259035631 | AE143: 4.259035631
AB146: Capital costs
AB147: Hammer mill | AC147: Disk mill | AD147: Knife mill
AA148: USD | AB148: 180000 | AC148: 170000 | AD148: 150000
AA149: Base capacity -t/h | AB149: 3 | AC149: 2 | AD149: 2
AA150: new capacity | AB150: =U100 -> 3 | AC150: =U101 -> 2 | AD150: =U102 -> 2
U151: Emission Rates for electricity | V151: gCO2 /kWh | AA151: Scaled costs -USD | AB151: =AB148*(AB150/AB149)^0.6 -> 180000 | AC151: =AC148*(AC150/AC149)^0.6 -> 170000 | AD151: =AD148*(AD150/AD149)^0.6 -> 150000
U152: Please Select | AA152: Lifetime -years | AB152: =PARAMETERS!$H$52 -> 20 | AC152: =PARAMETERS!$H$52 -> 20 | AD152: =PARAMETERS!$H$52 -> 20
U153: Albania | V153: 11 | AA153: Depreciation USD/y | AB153: =AB151/AB152 -> 9000 | AC153: =AC151/AC152 -> 8500 | AD153: =AD151/AD152 -> 7500
U154: Algeria | V154: 576
U155: Angola | V155: 237
U156: Argentina | V156: 355
U157: Armenia | V157: 108
U158: Australia | V158: 853
U159: Austria | V159: 163
U160: Azerbaijan | V160: 443
U161: Bahrain | V161: 665
U162: Bangladesh | V162: 585
U163: Belarus | V163: 302
U164: Belgium | V164: 218
U165: Benin | V165: 725
U166: Bolivia | V166: 393
U167: Bosnia and Herzegovina | V167: 776
U168: Botswana | V168: 2063
U169: Brazil | V169: 64
U170: Brunei Darus salam | V170: 755
U171: Bulgaria | V171: 463
U172: Cambodia | V172: 1151
U173: Cameroon | V173: 243
U174: Chile | V174: 373
U175: Taiwan | V175: 743
U176: Chinese Taipei | V176: 635
U177: Colombia | V177: 175
U178: Congo | V178: 207
U179: Costa Rica | V179: 40
U180: Côted'Ivoire | V180: 426
U181: Croatia | V181: 283
U182: Cuba | V182: 752
U183: Cyprus | V183: 744
U184: Czech Republic | V184: 514
U185: Dem. Rep. of Congo | V185: 3
U186: Denmark | V186: 303
U187: Dominican Republic | V187: 591
U188: DPR of Korea | V188: 499
U189: Ecuador | V189: 290
U190: Egypt | V190: 466
U191: El Salvador | V191: 319
U192: Eritrea | V192: 672
U193: Estonia | V193: 704
U194: Ethiopia | V194: 118
U195: Finland | V195: 205
U196: France | V196: 90
U197: FYR of Macedonia | V197: 710
U198: Gabon | V198: 322
U199: Georgia | V199: 129
U200: Germany | V200: 430
U201: Ghana | V201: 187
U202: Gibraltar | V202: 740
U203: Greece | V203: 722
U204: Guatemala | V204: 349
U205: Haiti | V205: 547
U206: Honduras | V206: 344
U207: HongKong, China | V207: 763
U208: Hungary | V208: 302
U209: Iceland | V209: 0
U210: India | V210: 951
U211: Indonesia | V211: 746
U212: Iraq | V212: 684
U213: Ireland | V213: 465
U214: Islamic Rep. Of Iran | V214: 630
U215: Israel | V215: 695
U216: Italy | V216: 386
U217: Jamaica | V217: 544
U218: Japan | V218: 415
U219: Jordan | V219: 581
U220: Kazakhstan | V220: 480
U221: Kenya | V221: 395
U222: Korea | V222: 498
U223: Kuwait | V223: 870
U224: Kyrgyzstan | V224: 81
U225: Latvia | V225: 153
U226: Lebanon | V226: 717
U227: Libyan Arab Jamahiriya | V227: 872
U228: Lithuania | V228: 111
U229: Luxembourg | V229: 384
U230: Malaysia | V230: 649
U231: Malta | V231: 850
U232: Mongolia | V232: 535
U233: Morocco | V233: 638
U234: Mozambique | V234: 1
U235: Myanmar | V235: 196
U236: Namibia | V236: 237
U237: Nepal | V237: 4
U238: Netherlands | V238: 374
U239: Netherlands Antilles | V239: 707
U240: New Zealand | V240: 167
U241: Nicaragua | V241: 506
U242: Nigeria | V242: 416
U243: Norway | V243: 17
U244: Oman | V244: 842
... 42 more rows

Sheet DENSIFICATION_C (hidden)
C3: =+"CALCULATION OF DENSIFICATION COSTS OF "&UPPER('Data Entry Needs'!$E$11&" ") -> CALCULATION OF DENSIFICATION COSTS OF
C6: Use white cells to input data | E6: Grey cells are used for calculations
C8: Densification technology at the collection centre
C10: =U69 -> Operation not included in sequence. Check data entry
C12: Densification input parameters
C14: =+('Data Entry Needs'!$E$11&" to be densified (t/y)") -> to be densified (t/y) | G14: =U80 -> 0
C15: Initial biomass density (kg/m3) | G15: =U105 -> 0
C17: Densification output parameters per collection site
C19: =+('Data Entry Needs'!$E$11&" densified (t/y)") -> densified (t/y) | G19: =AK77 -> 0
C20: Biomass density (kg/m3) | G20: =AK80 -> 0
C22: Densification costs per collection site
C24: Category | D24: USD/y
C25: Labor Unskilled | D25: =AK82 -> 0
C26: Labor Skilled | D26: 0
C27: Miscellaneous | D27: 0
C28: Depreciation | D28: 0
C29: Maintenance | D29: 0
C30: Fuel | D30: 0
C31: Power | D31: 0
C32: Loan | D32: 0
C33: Overhead | D33: 0
C34: General & adm. | D34: 0
C35: Total | D35: =SUM(D25:D34) -> 0
C37: Densification costs per biomass
H39: Densification costs per t of biomass
C50: Energy consumption and Greenhouse gas emissions
C52: Energy consumption | F52: GHG emissions
U68: Label
U69: =IF(U73=0,"Operation not included in sequence. Check data entry",U76) -> Operation not included in sequence. Check data entry
U70: =IF(U73=0,TRUE, FALSE) -> TRUE
U72: Multiplier
U73: =Allocator!N24 -> 0
U75: Teachnology | AA75: t/y | AB75: Mechanized piston press | AC75: Mechanized pellet mill | AK75: Output to tool
U76: ='Data Entry Needs'!O309 -> Mechanized pellet mill | AA76: Biomass delivered | AB76: =$AK$77 -> 0 | AC76: =$AK$77 -> 0 | AK76: Biomass delivered
AK77: =U83*U80 -> 0 | AL77: t/y
U78: Inputs | AA78: Biomass density | AB78: Mechanized piston press | AC78: Mechanized pellet mill
U79: Biomass to be transported | W79: moisture content | AA79: kg/m3 | AB79: 1100 | AC79: 800 | AK79: Biomass density
U80: =Allocator!P24 -> 0 | V80: t/y | W80: =Allocator!R24 -> 0 | AK80: =IFERROR(HLOOKUP($U$76,$AA$78:$AC$79,2,FALSE)*U73,0) -> 0 | AL80: kg/m3
AA81: Capacity | AB81: Mechanized piston press | AC81: Mechanized pellet mill | AR81: Unskilled | AS81: 0
U82: Biomassrecovery efficiency | AA82: t/h | AB82: =PARAMETERS!H63 -> 4 | AC82: =PARAMETERS!H64 -> 4 | AI82: 2 | AJ82: Labor Unskilled | AK82: =IFERROR(HLOOKUP($U$76,$AA$94:$AD$104,AI82,FALSE),0) -> 0 | AM82: Labor Unskilled | AN82: =IFERROR(AK82/$AK$77,0) -> 0 | AR82: Skilled | AS82: =IFERROR(HLOOKUP($U$76,$AA$86:$AD$91,6,FALSE),0) -> 0
U83: =PARAMETERS!H62 -> 0.99 | AA83: t/y | AB83: =AB82*$U$86*$U$87 -> 0 | AC83: =AC82*$U$86*$U$87 -> 0 | AI83: 3 | AJ83: Labor Skilled | AK83: =IFERROR(HLOOKUP($U$76,$AA$94:$AD$104,AI83,FALSE),0) -> 0 | AM83: Labor Skilled | AN83: =IFERROR(AK83/$AK$77,0) -> 0
AA84: number of machines | AB84: =ROUNDUP(AB76/AB83,0) ->  | AC84: =ROUNDUP(AC76/AC83,0) ->  | AI84: 4 | AJ84: Miscellaneous | AK84: 0 | AM84: Miscellaneous | AN84: 0
U85: Densification | AI85: 5 | AJ85: Depreciation | AK85: 0 | AM85: Depreciation | AN85: 0
U86: ='Data Entry Needs'!I73 -> 0 | V86: h/day | AA86: Labor | AB86: Mechanized piston press | AC86: Mechanized pellet mill | AI86: 6 | AJ86: Maintenance | AK86: 0 | AM86: Maintenance | AN86: 0
U87: ='Data Entry Needs'!E73 -> 0 | V87: day/year | AA87: people per machine | AB87: 0.4 | AC87: 0.4 | AI87: 7 | AJ87: Fuel | AK87: 0 | AM87: Fuel | AN87: 0
AA88: #shifts | AB88: =IF($U$86>8,IF($U$86>16,3,2),1) -> 1 | AC88: =IF($U$86>8,IF($U$86>16,3,2),1) -> 1 | AI88: 8 | AJ88: Power | AK88: 0 | AM88: Power | AN88: 0
U89: Labor | AA89: Working hours per shift | AB89: =$U$86/AB88 -> 0 | AC89: =$U$86/AC88 -> 0 | AI89: 9 | AJ89: Loan | AK89: 0 | AM89: Loan | AN89: 0
U90: ='Data Entry Needs'!E79 -> 0 | V90: USD/h | AA90: hours per working year per man | AB90: =AB89*$U$87 -> 0 | AC90: =AC89*$U$87 -> 0 | AI90: 10 | AJ90: Overhead | AK90: 0 | AM90: Overhead | AN90: 0
AA91: number of persons involved per year | AB91: =ROUNDUP(AB88*AB84*AB87*$U$73,0) ->  | AC91: =ROUNDUP(AC88*AC84*AC87*$U$73,0) ->  | AI91: 11 | AJ91: General & adm | AK91: 0 | AM91: General & adm | AN91: 0
U92: Maintenance | AJ92: Total | AK92: =SUM(AK82:AK91) -> 0 | AM92: Total | AN92: =SUM(AN82:AN91) -> 0
U93: ='Data Entry Needs'!E122 -> 0
AA94: Costs | AB94: Mechanized piston press | AC94: Mechanized pellet mill
AA95: Labor Unskilled | AK95: Fuel | AP95: ='Data Entry Needs'!W357 -> Please select
U96: Electricity consumption | AA96: Labor Skilled | AB96: =AB91*$U$90*AB90 ->  | AC96: =AC91*$U$90*AC90 ->  | AE96: Miscelaneous | AJ96: Fuel | AK96: =0 -> 0 | AL96: TJ/y | AN96: emission factor | AP96: =IFERROR('Data Entry Needs'!X357,0) -> 0 | AQ96: gCO2/kWh
U97: Briquettes | V97: pellets | AA97: Miscellaneous | AB97: =$AE$97*$U$73*(AB95+AB96) ->  | AC97: =$AE$97*$U$73*(AC95+AC96) ->  | AE97: ='Data Entry Needs'!$I$122 -> 0 | AJ97: Electricity | AK97: =IFERROR(HLOOKUP($U$76,$AA$109:$AD$111,3,FALSE),0) -> 0 | AL97: TJ/y
T98: kWh/ton | U98: =57.2*0.7 -> 40.04 | V98: =45.45*0.7 -> 31.815 | AA98: Depreciation | AB98: =AB84*AB124 ->  | AC98: =AC84*AC124 ->  | AE98: Overhead | AJ98: Total | AK98: =SUM(AK96:AK97) -> 0 | AL98: TJ/y | AN98: Electricity | AO98: =IFERROR(HLOOKUP($U$76,$AA$109:$AD$111,2,FALSE),0) -> 0 | AP98: kWh/y
AA99: Maintenance | AB99: =$U$93*AB122*$U$73 -> 0 | AC99: =$U$93*AC122*$U$73 -> 0 | AE99: ='Data Entry Needs'!$E$123 -> 0
AA100: Fuel
U101: electricity price | AA101: Power | AB101: =$U$102*AB110 -> 0 | AC101: =$U$102*AC110 -> 0
U102: ='Data Entry Needs'!I79 -> 0 | V102: USD/kWh | AA102: Loan | AB102: =AI124 ->  | AC102: =AJ124 ->  | AK102: GHG emissions
AA103: Overhead | AB103: =$AE$99*$U$73*(AB99+AB96+AB95) ->  | AC103: =$AE$99*$U$73*(AC99+AC96+AC95) ->  | AJ103: GHG emissions
U104: Initial density | AA104: General & admin | AB104: =$U$109*(AB95+AB96+AB99+AB100+AB101)*$U$73 ->  | AC104: =$U$109*(AC95+AC96+AC99+AC100+AC101)*$U$73 ->  | AJ104: Fuel | AL104: tCO2eq/y
U105: =Allocator!T24 -> 0 | V105: kg/m3 | AA105: Total | AB105: =SUM(AB96:AB104) ->  | AC105: =SUM(AC96:AC104) ->  | AJ105: Electricity | AK105: =IFERROR(AP96*AO98/(1000*1000),0) -> 0 | AL105: tCO2eq/y
AJ106: Total | AK106: =SUM(AK104:AK105) -> 0 | AL106: tCO2eq/y
U108: General and adminis | AA108: Power consumption
U109: ='Data Entry Needs'!$I$121 -> 0 | AB109: Mechanized piston press | AC109: Mechanized pellet mill
AA110: kWh/y | AB110: =U98*AB76 -> 0 | AC110: =V98*AC76 -> 0
AA111: TJ/y | AB111: =AB110*3.6/(1000*1000) -> 0 | AC111: =AC110*3.6/(1000*1000) -> 0
V112: Investment
U113: USD | V113: briquetts | W113: Pellets
U114: Investment (USD) | V114: 900000 | W114: 600000
U115: Building (USD) | V115: 150000 | W115: 120000
U116: Installation (USD)
U117: total | V117: =SUM(V114:V116) -> 1050000 | W117: =SUM(W114:W116) -> 720000 | AB117: Capital costs | AG117: Loan term | AH117: ='Data Entry Needs'!$I$128 -> 0 | AI117: years
AB118: Mechanized piston press | AC118: Mechanized pellet mill | AG118: Loan ratio | AH118: ='Data Entry Needs'!$E$128 -> 0
AA119: USD | AB119: =V117 -> 1050000 | AC119: =W117 -> 720000 | AG119: Loan interest | AH119: ='Data Entry Needs'!$I$127 -> 0
AA120: Base capacity -t/h | AB120: 4 | AC120: 4
AA121: new capacity | AB121: =AB82 -> 4 | AC121: =AC82 -> 4
AA122: Scaled costs -USD | AB122: =AB119*(AB121/AB120)^0.6 -> 1050000 | AC122: =AC119*(AC121/AC120)^0.6 -> 720000 | AG122: Loan | AH122: USD | AI122: =$AH$118*AB122 -> 0 | AJ122: =$AH$118*AC122 -> 0
AA123: Lifetime -years | AB123: =PARAMETERS!$H$65 -> 20 | AC123: =PARAMETERS!$H$65 -> 20 | AG123: Monthyly payment | AH123: USD/month | AI123: =(PMT(AH119/12,(12*AH117),AI122))*-1 ->  | AJ123: =(PMT(AH119/12,(12*AH117),AJ122))*-1 -> 
AA124: Depreciation USD/y | AB124: =AB122/AB123 -> 52500 | AC124: =AC122/AC123 -> 36000 | AG124: Annual payment | AH124: USD/y | AI124: =AI123*12*$U$73 ->  | AJ124: =AJ123*12*$U$73 -> 

Sheet STORAGE_C (hidden)
C3: =+"CALCULATION OF STORAGE COSTS OF "&UPPER('Data Entry Needs'!$E$11&" ") -> CALCULATION OF STORAGE COSTS OF
C6: Use white cells to input data | E6: Grey cells are used for calculations
C8: =S64 -> Operation not included in sequence. Check data entry
C10: Storage input parameters at collection centre
C12: =+('Data Entry Needs'!$E$11&" available (t/year)") -> available (t/year) | G12: =S71 -> 0
C13: =+('Data Entry Needs'!$E$11&" available (t/month)") -> available (t/month) | G13: =S72 -> 0
C14: =+('Data Entry Needs'!$E$11&" available (t/day)") -> available (t/day) | G14: =S73 -> 0
C15: =+('Data Entry Needs'!$E$11&" safety stock rate (t/day)") -> safety stock rate (t/day) | G15: =IFERROR('Data Entry Needs'!E112*Y69,0) -> 0
C17: Biomass safety storage definition
C19: Month Selection | F19: Storage month | G19: Cummulative storage (t) | H19: Storage depletion (t)
C20: January | F20: =+IF($AC27=0,0,IF($AC27>$AC38,1,IF($AC27=$AC38,$F31+1,IF($AC38>$AC27,0)))) -> 1 | G20: =+IF(AND($F$20=1,$F$31=0,$F$21=0),$G$13*$AG27+$G$13*$G$15,IF($F20>0,($AG27*$G$13/$AK27)*$F20+$G$13*$G$15,0)) -> 0 | H20: =IF(AND($F$20=1,$F$31=0,$F$21=0),$G$13*$AG27+$H$31-G13,IF($F20>0,IFERROR(($AG27*$G$13/$AK27)*$F20,"")+$G$13*$G$15,IF($F20=0,H31-G13))) -> 0
C21: February | F21: =+IF($AC28=0,0,IF($AC28>$AC27,1,IF($AC28=$AC27,$F20+1,IF($AC27>$AC28,0)))) -> 2 | G21: 0 | H21: =+IF($F21>0,IFERROR(($AG28*$G$13/$AK28)*$F21,"")+$G$13*$G$15,IF($F21=0,H20-$G$13)) -> 0
C22: March | F22: 3 | G22: 0 | H22: =+IF($F22>0,IFERROR(($AG29*$G$13/$AK29)*$F22,"")+$G$13*$G$15,IF($F22=0,H21-$G$13)) -> 0
C23: April | F23: 4 | G23: 0 | H23: 0
C24: May | F24: 5 | G24: 0 | H24: 0
C25: June | F25: 6 | G25: 0 | H25: 0 | AD25: Depletion time definition
C26: July | F26: 7 | G26: 0 | H26: 0 | AB26: Harvest Period | AC26: Harvest Period | AD26: Depletion term | AE26: Depletion month | AF26: EQ term | AG26: Depletion time | AH26: Storageterm | AI26: Storage month | AJ26: EQ term | AK26: Storage time
C27: August | F27: 8 | G27: 0 | H27: 0 | AA27: Jan | AB27: TRUE | AC27: =+N(AB27) -> 1 | AD27: =+IF(AND(AC28>AC27,AC27=0),"Last"&AF27,"") ->  | AE27: =+IF($AC27=1,0,IF($AC27<$AC38,1,IF($AC27=$AC38,$AE38+1,IF($AC38>$AC27,1)))) -> 0 | AF27: 1 | AG27: =IFERROR(VLOOKUP("LAST"&AF27,$AD$27:$AE$38,2,FALSE),AK27) -> 1 | AH27: =+IF(AND(AI27>AI28,AI28=0),"Last"&AJ27,"") ->  | AI27: =+IF($AC27=0,0,IF($AC27>$AC38,1,IF($AC27=$AC38,$AI38+1,IF($AC38>$AC27,0)))) -> 1 | AJ27: 1 | AK27: =IFERROR(VLOOKUP("LAST"&AJ27,$AH$27:$AI$38,2,FALSE),VLOOKUP("LAST"&1,$AH$27:$AI$38,2,FALSE)) -> 11
C28: September | F28: 9 | G28: 0 | H28: 0 | AA28: Feb | AB28: TRUE | AC28: =+N(AB28) -> 1 | AD28: =+IF(AND(AC29>AC28,AC28=0),"Last"&AF28,"") ->  | AE28: =+IF($AC28=1,0,IF($AC28<$AC27,1,IF($AC28=$AC27,$AE27+1,IF($AC27>$AC28,1)))) -> 0 | AF28: =+IF($AE27>$AE28,$AF27+1,$AF27) -> 1 | AG28: =IFERROR(VLOOKUP("LAST"&AF28,$AD$27:$AE$38,2,FALSE),$AG$27) -> 1 | AH28: =+IF(AND(AI28>AI29,AI29=0),"Last"&AJ28,"") ->  | AI28: =+IF($AC28=0,0,IF($AC28>$AC27,1,IF($AC28=$AC27,$AI27+1,IF($AC27>$AC28,0)))) -> 2 | AJ28: =+IF($AI27>$AI28,$AJ27+1,$AJ27) -> 1 | AK28: 11
C29: October | F29: 10 | G29: 0 | H29: 0 | AA29: Mar | AB29: TRUE | AC29: 1 | AD29: =+IF(AND(AC30>AC29,AC29=0),"Last"&AF29,"") ->  | AE29: 0 | AF29: 1 | AG29: 1 | AH29: =+IF(AND(AI29>AI30,AI30=0),"Last"&AJ29,"") ->  | AI29: 3 | AJ29: 1 | AK29: 11
C30: November | F30: 11 | G30: 0 | H30: 0 | AA30: Apr | AB30: TRUE | AC30: 1 | AD30: =+IF(AND(AC31>AC30,AC30=0),"Last"&AF30,"") ->  | AE30: 0 | AF30: 1 | AG30: 1 | AH30: =+IF(AND(AI30>AI31,AI31=0),"Last"&AJ30,"") ->  | AI30: 4 | AJ30: 1 | AK30: 11
C31: December | F31: 0 | G31: 0 | H31: 0 | AA31: May | AB31: TRUE | AC31: 1 | AE31: 0 | AF31: 1 | AG31: 1 | AH31: =+IF(AND(AI31>AI32,AI32=0),"Last"&AJ31,"") ->  | AI31: 5 | AJ31: 1 | AK31: 11
AA32: Jun | AB32: TRUE | AC32: 1 | AE32: 0 | AF32: 1 | AG32: 1 | AI32: 6 | AJ32: 1 | AK32: 11
C33: Maximum required storage capacity (t) | G33: =IFERROR(ROUNDUP(MAX(G20:G31),0),0) -> 0 | AA33: Jul | AB33: TRUE | AC33: 1 | AE33: 0 | AF33: 1 | AG33: 1 | AI33: 7 | AJ33: 1 | AK33: 11
C34: Maximum safety storage capacity (t) | G34: =IFERROR(ROUNDUP(MIN(H20:H31),0),0) -> 0 | AA34: Aug | AB34: TRUE | AC34: 1 | AE34: 0 | AF34: 1 | AG34: 1 | AI34: 8 | AJ34: 1 | AK34: 11
C35: Storage building required area (m2) | G35: =IFERROR(S107,0) -> 0 | AA35: Sep | AB35: TRUE | AC35: 1 | AE35: 0 | AF35: 1 | AG35: 1 | AI35: 9 | AJ35: 1 | AK35: 11
AA36: Oct | AB36: TRUE | AC36: 1 | AE36: 0 | AF36: 1 | AG36: 1 | AI36: 10 | AJ36: 1 | AK36: 11
AA37: Nov | AB37: TRUE | AC37: 1 | AE37: 0 | AF37: 1 | AG37: 1 | AH37: Last1 | AI37: 11 | AJ37: 1 | AK37: 11
AA38: Dec | AB38: FALSE | AC38: 0 | AD38: =+IF(AND(AC27>AC38,AC38=0),"Last"&AF38,"") -> Last1 | AE38: 1 | AF38: 1 | AG38: 1 | AH38: =+IF(AND(AI38>AI27,AI27=0),"Last"&AJ38,"") ->  | AI38: 0 | AJ38: 2 | AK38: 11
AB42: No. Storage Months | AC42: =+COUNTIF(AC27:AC38,">0") -> 11
AB43: Total Depletion Period | AC43: =12-AC42 -> 1
C52: Storage costs per collection site
C54: Category | D54: USD/y
C55: Labor Unskilled | D55: =Y96 -> 0
C56: Labor Skilled | D56: 0
C57: Miscellaneous | D57: 0
C58: Bulding rental cost | D58: =Y99 -> 0
C59: Machinery rental | D59: 0
C60: Maintenance | D60: 0
C61: Power | D61: 0
C62: Loan | D62: =IFERROR(Y103,0) -> 0 | S62: Label
C63: Overhead | D63: 0
C64: General & administrative | D64: 0 | S64: =IF(Y69=0,"Operation not included in sequence. Check data entry","Storage") -> Operation not included in sequence. Check data entry
C65: Total | D65: =SUM(D55:D64) -> 0 | S65: =IF(Y69=0,TRUE, FALSE) -> TRUE
C67: Storage costs per biomass
Y68: Storage multipliers
H69: Storage costs per t of biomass | S69: Inputs | Y69: =Allocator!N25 -> 0
S70: Biomass to stored
S71: =IFERROR(Allocator!P25*Y69,0) -> 0 | T71: t/y | Y71: Storage capacity
S72: =S71/12 -> 0 | T72: t/month | Y72: =PARAMETERS!H70 -> 5 | Z72: t/h
S73: =S71/365 -> 0 | T73: t/day | Y73: ='Data Entry Needs'!E74 -> 0 | Z73: h/day | AB73: =Y73*Y74 -> 0 | AC73: h/yperson
Y74: 333 | Z74: day/year
S76: =Allocator!R25 -> 0 | T76: Moisture | X76: Storage needs | Y76: t/month | Z76: h/month worked
S77: =Allocator!T25 -> 0 | T77: density | X77: Jan | Y77: =H20 -> 0 | Z77: =Y77/$Y$72 -> 0
X78: Feb | Y78: 0 | Z78: =Y78/$Y$72 -> 0
S79: Recovery | X79: Mar | Y79: 0 | Z79: 0
S80: =PARAMETERS!H69 -> 0.99 | X80: Apr | Y80: 0 | Z80: 0
X81: May | Y81: 0 | Z81: 0
C82: Energy consumption and Greenhouse gas emissions | S82: =S80*S71 -> 0 | T82: t/y | X82: Jun | Y82: 0 | Z82: 0
X83: Jul | Y83: 0 | Z83: 0
C84: Energy consumption | F84: GHG emissions | X84: Aug | Y84: 0 | Z84: 0
S85: electricity consumption | X85: Sep | Y85: 0 | Z85: 0
S86: 8 | T86: kWh/m2.y | X86: Oct | Y86: 0 | Z86: 0
X87: Nov | Y87: 0 | Z87: 0
S88: warehouse height | X88: Dec | Y88: 0 | Z88: 0
S89: =PARAMETERS!H71 -> 10 | T89: m | X89: Total | Y89: =SUM(Y77:Y88) -> 0 | Z89: =SUM(Z77:Z88) -> 0 | AA89: h/year
Z90: 0
S91: Effective distribution in bulding | X91: Number of persons | Z91: =IFERROR(ROUNDUP(Z89*Y69/$AB$73,0),0) -> 0
S92: 0.75
S94: Oversizing for other stuff
S95: =PARAMETERS!H72 -> 0.05 | X95: Costs | AC95: USD/t
X96: Labor Unskilled | AB96: Labor Unskilled | AC96: =IFERROR(Y96/$S$71,0) -> 0
X97: Labor Skilled | Y97: =IFERROR(S99*Z89*Y69,0) -> 0 | AB97: Labor Skilled | AC97: =IFERROR(Y97/$S$71,0) -> 0
S98: USD/h | X98: Miscellaneous | Y98: =$V$103*$Y$69*(Y96+Y97) -> 0 | AB98: Miscellaneous | AC98: 0
S99: ='Data Entry Needs'!E79 -> 0 | X99: Bulding rental cost | Y99: =IFERROR(STORAGE_C!S107*'Data Entry Needs'!E113*12*Y69,0) -> 0 | AB99: Bulding rental cost | AC99: 0
X100: Machinery rental | Y100: =IFERROR(Z89*S110*Y69/2,0) -> 0 | AB100: Machinery rental | AC100: 0
S101: Maximum biomass sotrage | X101: Maintenance | Y101: =IFERROR((S114*Y99+Y100*S113)*Y69,0) -> 0 | AB101: Maintenance | AC101: 0
S102: =IFERROR(G33,0) -> 0 | T102: t | V102: Miscelaneous | X102: Power | Y102: =IFERROR(S86*S107*S118*Y69,0) -> 0 | AB102: Power | AC102: 0
S103: Biomass volume | V103: ='Data Entry Needs'!$I$122 -> 0 | X103: Loan | Y103: =AD122 ->  | AB103: Loan | AC103: 0
S104: =IFERROR(S102*(1/S77)*1000,0) -> 0 | T104: m3 | V104: Overhead | X104: Overhead | Y104: =$V$105*$Y$69*(Y101+Y96+Y97) -> 0 | AB104: Overhead | AC104: 0
V105: ='Data Entry Needs'!$E$123 -> 0 | X105: General and administrative | Y105: =$S$121*(Y96+Y97+Y101+Y102)*$Y$69 -> 0 | AB105: General and administrative | AC105: 0
S106: Area calculation | X106: Total | Y106: =SUM(Y97:Y105) ->  | AB106: Total | AC106: =SUM(AC96:AC105) -> 0
S107: =IFERROR(ROUNDUP(S104*(1+S95)/(S89*S92),0),0) -> 0 | T107: m2
S109: Machinery rental
S110: ='Data Entry Needs'!I112 -> 0 | X110: electricity | Y110: =IFERROR(S86*S107*Y69,0) -> 0 | Z110: kWh/y | AB110: emission factor | AD110: =IFERROR('Data Entry Needs'!$X$357,0) -> 0 | AE110: gCO2/kWh
Y111: Fuel
S112: Maintenance | X112: Fuel | Y112: 0 | Z112: TJ/y
R113: Machinery | S113: ='Data Entry Needs'!E121 -> 0 | X113: Electricity | Y113: =Y110*3.6/(1000*1000) -> 0 | Z113: TJ/y | AB113: Loan
R114: Building | S114: =PARAMETERS!H73 -> 0.0005 | X114: Total | Y114: =SUM(Y112:Y113) -> 0 | Z114: TJ/y
AB115: Loan term | AC115: ='Data Entry Needs'!$I$128 -> 0 | AD115: years
Y116: Fuel | AB116: Loan ratio | AC116: ='Data Entry Needs'!$E$128 -> 0
S117: Electricity price | X117: Fuel | Y117: 0 | Z117: TCO2/y | AB117: Loan interest | AC117: ='Data Entry Needs'!$I$127 -> 0
S118: ='Data Entry Needs'!I79 -> 0 | T118: USD/kWh | X118: Electricity | Y118: =Y110*AD110/(1000*1000) -> 0 | Z118: TCO2/y
X119: Total | Y119: =SUM(Y117:Y118) -> 0 | Z119: TCO2/y
S120: General and adminis | AB120: Loan | AC120: USD | AD120: =$AC$116*Y99*$AC$115+$AC$115*$AC$116*Y100 -> 0
S121: ='Data Entry Needs'!$I$121 -> 0 | AB121: Monthyly payment | AC121: USD/month | AD121: =(PMT(AC117/12,(12*AC115),AD120))*-1 -> 
AB122: Annual payment | AC122: USD/y | AD122: =AD121*12*$Y$69 -> 

Sheet TRANSPORT_C (hidden)
C3: =+"CALCULATION OF TRANSPORT COSTS OF "&UPPER('Data Entry Needs'!$E$11&" ") -> CALCULATION OF TRANSPORT COSTS OF
C6: Use white cells to input data | E6: Grey cells are used for calculations
C8: Truck selected for transport
C10: =U74 -> Operation not included in sequence. Check data entry
C12: Transport input parameters
C14: =+('Data Entry Needs'!$E$11&" to be transported (t/y)") -> to be transported (t/y) | G14: =IFERROR(U85,"") -> 0
C15: Truck max. payload (t) | G15: =IFERROR(AK109*U78,"") -> 0
C16: Truck max. volume (m3) | G16: =IFERROR(TRANSPORT_C!AK110*U78,"") -> 0
C17: Transport distance (km) | G17: =IFERROR(TRANSPORT_C!AK111,"") -> 0
C19: Transport output parameters per collection site
C21: =+('Data Entry Needs'!$E$11&" delivered (t/y)") -> delivered (t/y) | G21: =IFERROR(AK82,"") -> 0
C22: =+('Data Entry Needs'!$E$11&" transported per trip (t)") -> transported per trip (t) | G22: =IFERROR(AK112,0) -> 0
C23: Number of trips per year (trip/y) | G23: =IFERROR(AK113,0) -> 0
C24: Transport hours per year (h/y) | G24: =IFERROR(AK114,0) -> 0
C25: Number of drivers per year (drivers/y) | G25: =IFERROR(AK115,0) -> 0
C27: Milling costs per collection site
C29: Category | D29: USD/y
C30: Labor Unskilled | D30: =AK87 -> 0
C31: Labor Skilled | D31: 0
C32: Miscellaneous | D32: 0
C33: Truck rental | D33: 0
C34: Maintenance | D34: 0
C35: Fuel | D35: 0
C36: Power | D36: 0
C37: Loan | D37: 0
C38: Overhead | D38: 0
C39: General & adm. | D39: 0
C40: Total | D40: =SUM(D30:D39) -> 0
C42: Baling costs per biomass
H44: =+"Transport costs per t of biomass for a distance of "&(TRANSPORT_C!$U$116&" km") -> Transport costs per t of biomass for a distance of 0 km
C55: Energy consumption and Greenhouse gas emissions
C57: Energy consumption | F57: GHG emissions
U73: Label
U74: =IF(U78=0,"Operation not included in sequence. Check data entry",U81) -> Operation not included in sequence. Check data entry
U75: =IF(U78=0,TRUE, FALSE) -> TRUE
U77: Multiplier
U78: =Allocator!N27 -> 0
AA79: t/y | AB79: Small truck capacity | AC79: Medium truck capacity | AD79: Large truck capacity
U80: Teachnology | AA80: Biomass delivered | AB80: =$AK$82 -> 0 | AC80: =$AK$82 -> 0 | AD80: =$AK$82 -> 0 | AK80: Output to tool
U81: ='Data Entry Needs'!O289 -> Small truck capacity | AB81: Truck payloads and volumes | AK81: Biomass delivered
AB82: Small truck capacity | AC82: Medium truck capacity | AD82: Large truck capacity | AK82: =U88*U85 -> 0 | AL82: t/y
U83: Inputs | AA83: payload, tonne | AB83: 20 | AC83: 30 | AD83: 45 | AE83: https://elarum.com/info/references/container-dimensions/
U84: Biomass to be transported | W84: moisture content | AA84: volume, m3 | AB84: 30 | AC84: 50 | AD84: 58 | AK84: Biomass density
U85: =Allocator!P27 -> 0 | V85: t/y | W85: =Allocator!R27 -> 0 | AK85: =HLOOKUP($U$81,$Z$94:$AD$95,2,FALSE) -> 0 | AL85: kg/m3
AB86: Small truck capacity | AC86: Medium truck capacity | AD86: Large truck capacity | AQ86: Labor Unskilled | AR86: 0
U87: Biomassrecovery efficiency | AA87: Transport time on road, h | AB87: =$U$116*(1/$U$119)*2 ->  | AC87: =$U$116*(1/$U$119)*2 ->  | AD87: =$U$116*(1/$U$119)*2 ->  | AE87: assuming round trip returning empty | AI87: 2 | AJ87: Labor Unskilled | AK87: =IFERROR(HLOOKUP($U$81,$AA$115:$AD$125,AI87,FALSE),0) -> 0 | AM87: Labor Unskilled | AN87: =IFERROR(AK87/$AK$82,0) -> 0 | AQ87: Labor Skilled | AR87: =IFERROR(HLOOKUP($U$81,$AA$111:$AD$112,2,FALSE),0) -> 0
U88: =PARAMETERS!H56 -> 0.99 | AA88: Time for loading and unloading, h | AB88: =$U$122*AB87 ->  | AC88: =$U$122*AC87 ->  | AD88: =$U$122*AD87 ->  | AI88: 3 | AJ88: Labor Skilled | AK88: =IFERROR(HLOOKUP($U$81,$AA$115:$AD$125,AI88,FALSE),0) -> 0 | AM88: Labor Skilled | AN88: =IFERROR(AK88/$AK$82,0) -> 0
AA89: time for breaks | AB89: =$U$123*AB87 ->  | AC89: =$U$123*AC87 ->  | AD89: =$U$123*AD87 ->  | AI89: 4 | AJ89: Miscellaneous | AK89: 0 | AM89: Miscellaneous | AN89: 0
U90: Road information | AA90: Total round trip time, h | AB90: =SUM(AB87:AB89) ->  | AC90: =SUM(AC87:AC89) ->  | AD90: =SUM(AD87:AD89) ->  | AI90: 5 | AJ90: Truck rental | AK90: 0 | AM90: Truck rental | AN90: 0
T91: Type | U91: ='Data Entry Needs'!D106 -> Please select | AA91: number of drivers per truck | AB91: 1 | AC91: 1 | AD91: 1 | AI91: 6 | AJ91: Maintenance | AK91: 0 | AM91: Maintenance | AN91: 0
T92: Altimetry | U92: ='Data Entry Needs'!D107 -> Please select | AI92: 7 | AJ92: Fuel | AK92: 0 | AM92: Fuel | AN92: 0
AB93: Calculation of max load | AI93: 8 | AJ93: Power | AK93: 0 | AM93: Power | AN93: 0
T94: fuel consumption small truck | AB94: Small truck capacity | AC94: Medium truck capacity | AD94: Large truck capacity | AI94: 9 | AJ94: Loan | AK94: 0 | AM94: Loan | AN94: 0
T95: road type | U95: =IF($U$91="Highway",16,12) -> 12 | V95: MPG | W95: =U95*1.6093/3.7854 -> 5.101600888 | X95: =1*100/W95 -> 19.60169018 | Z95: Density | AA95: kg/m3 | AB95: =$U$129 -> 0 | AC95: =$U$129 -> 0 | AD95: =$U$129 -> 0 | AI95: 10 | AJ95: Overhead | AK95: 0 | AM95: Overhead | AN95: 0
T96: Altimetry | U96: =IF($U$92="Flat",16,12) -> 12 | V96: MPG | W96: =U96*1.6093/3.7854 -> 5.101600888 | X96: =1*100/W96 -> 19.60169018 | Z96: Load | AA96: t | AB96: =AB95*AB84/1000 -> 0 | AC96: =AC95*AC84/1000 -> 0 | AD96: =AD95*AD84/1000 -> 0 | AI96: 11 | AJ96: General & adm. | AK96: 0 | AM96: General & adm. | AN96: 0
T97: Average | U97: =SUM(U95:U96)/2 -> 12 | V97: MPG | Z97: Volume | AA97: m3 | AB97: =(1/AB95)*AB83*1000 ->  | AC97: =(1/AC95)*AC83*1000 ->  | AD97: =(1/AD95)*AD83*1000 ->  | AJ97: Total | AK97: =SUM(AK87:AK96) -> 0 | AM97: Total | AN97: =SUM(AN87:AN96) -> 0
N98: Small | T98: Average | U98: =U97*1.6093/3.7854 -> 5.101600888 | V98: km/L | AB98: Small truck capacity | AC98: Medium truck capacity | AD98: Large truck capacity
T99: Average | U99: =1/U98 -> 0.1960169018 | V99: L/km | AA99: Limited by volume | AB99: =IF(AB97>AB84,1,0) ->  | AC99: =IF(AC97>AC84,1,0) ->  | AD99: =IF(AD97>AD84,1,0) -> 
AA100: Limited by weight | AB100: =IF(AB96>AB83,1,0) -> 0 | AC100: =IF(AC96>AC83,1,0) -> 0 | AD100: =IF(AD96>AD83,1,0) -> 0
T101: fuel consumption medium truck | AB101: Small truck capacity | AC101: Medium truck capacity | AD101: Large truck capacity
T102: road type | U102: =IF($U$91="Highway",14,8) -> 8 | V102: MPG | W102: =U102*1.6093/3.7854 -> 3.401067258 | X102: =1*100/W102 -> 29.40253526 | Z102: load calculated | AA102: tonne/trip | AB102: =IF(AB99=1,AB96,AB83) ->  | AC102: =IF(AC99=1,AC96,AC83) ->  | AD102: =IF(AD99=1,AD96,AD83) ->  | AK102: GHG emissions | AO102: Fuel
T103: Altimetry | U103: =IF($U$92="Flat",14,8) -> 8 | V103: MPG | W103: =U103*1.6093/3.7854 -> 3.401067258 | X103: =1*100/W103 -> 29.40253526 | AJ103: GHG emissions | AN103: Fuel | AO103: =IFERROR(HLOOKUP($U$81,$AA$132:$AD$134,3,FALSE),0) -> 0 | AP103: TJ/y
T104: Average | U104: =SUM(U102:U103)/2 -> 8 | V104: MPG | AB104: Small truck capacity | AC104: Medium truck capacity | AD104: Large truck capacity | AJ104: Fuel | AK104: =AO103*1000*$AD$146 -> 0 | AL104: tCO2eq/y | AN104: Electricity | AO104: 0 | AP104: TJ/y
T105: Average | U105: =U104*1.6093/3.7854 -> 3.401067258 | V105: km/L | Z105: Biomass transported | AA105: t/y | AB105: =$U$85 -> 0 | AC105: =$U$85 -> 0 | AD105: =$U$85 -> 0 | AJ105: Electricity | AK105: =AK100*AP96/(1000*1000) -> 0 | AL105: tCO2eq/y | AN105: Total | AO105: =SUM(AO103:AO104) -> 0 | AP105: TJ/y
T106: Average | U106: =1/U105 -> 0.2940253526 | V106: L/km | AJ106: Total | AK106: =SUM(AK104:AK105) -> 0 | AL106: tCO2eq/y
Z107: Number of trips needed per year | AA107: trips/year | AB107: =AB105/AB102 ->  | AC107: =AC105/AC102 ->  | AD107: =AD105/AD102 -> 
T108: fuel consumption large truck | Z108: Total hours of trips/year | AA108: h/year | AB108: =AB107*AB90 ->  | AC108: =AC107*AC90 ->  | AD108: =AD107*AD90 -> 
T109: road type | U109: =IF($U$91="Highway",12,7) -> 7 | V109: MPG | W109: =U109*1.6093/3.7854 -> 2.975933851 | X109: =1*100/W109 -> 33.60289744 | AJ109: Payload | AK109: =HLOOKUP($U$81,$AA$82:$AD$84,2,FALSE) -> 20 | AL109: t
T110: Altimetry | U110: =IF($U$92="Flat",12,7) -> 7 | V110: MPG | W110: =U110*1.6093/3.7854 -> 2.975933851 | X110: =1*100/W110 -> 33.60289744 | AB110: Number of workers | AJ110: Volume | AK110: =HLOOKUP($U$81,$AA$82:$AD$84,3,FALSE) -> 30 | AL110: m3
T111: Average | U111: =SUM(U109:U110)/2 -> 7 | V111: MPG | AB111: Small truck capacity | AC111: Medium truck capacity | AD111: Large truck capacity
T112: Average | U112: =U111*1.6093/3.7854 -> 2.975933851 | V112: km/L | AA112: # | AB112: =ROUNDUP(AB108*$U$78/($U$132*$U$133),0) ->  | AC112: =ROUNDUP(AC108*$U$78/($U$132*$U$133),0) ->  | AD112: =ROUNDUP(AD108*$U$78/($U$132*$U$133),0) ->  | AJ112: Transport per trip | AK112: =HLOOKUP($U$81,$AA$101:$AD$102,2,FALSE) ->  | AL112: t
T113: Average | U113: =1/U112 -> 0.3360289744 | V113: L/km | AJ113: trip | AK113: =HLOOKUP($U$81,$AA$104:$AD$108,4,FALSE) -> 
AJ114: hours | AK114: =HLOOKUP($U$81,$AA$104:$AD$108,5,FALSE) ->  | AL114: h/y
U115: Aggregation centre transport distance | AA115: Costs | AB115: Small truck capacity | AC115: Medium truck capacity | AD115: Large truck capacity | AJ115: drivers | AK115: =HLOOKUP($U$81,$AA$111:$AD$112,2,FALSE) -> 
U116: ='Data Entry Needs'!I12 -> 0 | V116: km | AA116: Labor Unskilled
AA117: Labor Skilled | AB117: =AB108*$U$136 ->  | AC117: =AC108*$U$136 ->  | AD117: =AD108*$U$136 -> 
U118: Average tranport speed | AA118: Miscellaneous | AB118: =$AF$120*$U$78*(AB116+AB117) ->  | AC118: =$AF$120*$U$78*(AC116+AC117) ->  | AD118: =$AF$120*$U$78*(AD116+AD117) -> 
U119: ='Data Entry Needs'!I106 -> 0 | V119: km/h | AA119: Truck rental | AB119: =AB108*$U$126 ->  | AC119: =AC108*$U$126 ->  | AD119: =AD108*$U$126 ->  | AF119: Miscelaneous
AA120: Maintenance | AB120: =AB119*$U$139 ->  | AC120: =AC119*$U$139 ->  | AD120: =AD119*$U$139 ->  | AF120: ='Data Entry Needs'!$I$122 -> 0 | AJ120: L/100km | AK120: Small truck capacity | AL120: Medium truck capacity | AM120: Large truck capacity
U121: Extra times | AA121: Fuel | AB121: =AB133*$U$142 ->  | AC121: =AC133*$U$142 ->  | AD121: =AD133*$U$142 ->  | AF121: Overhead | AJ121: road type | AK121: =X95 -> 19.60169018 | AL121: =X102 -> 29.40253526 | AM121: =X109 -> 33.60289744
U122: =PARAMETERS!H57 -> 0.4 | V122: Loading, uploading | AA122: Power | AF122: ='Data Entry Needs'!$E$123 -> 0 | AJ122: altimetry | AK122: =X96 -> 19.60169018 | AL122: =X103 -> 29.40253526 | AM122: =X110 -> 33.60289744
U123: =PARAMETERS!H58 -> 0.1 | V123: Extras | AA123: Loan | AB123: =AL138 ->  | AC123: =AM138 ->  | AD123: =AN138 -> 
AA124: Overhead | AB124: =$AF$122*$U$78*(AB120+AB116+AB117) ->  | AC124: =$AF$122*$U$78*(AC120+AC116+AC117) ->  | AD124: =$AF$122*$U$78*(AD120+AD116+AD117) -> 
U125: Truck rental cost | AA125: General & adm. | AB125: =$U$145*(AB116+AB117+AB120+AB121+AB122)*$U$78 ->  | AC125: =$U$145*(AC116+AC117+AC120+AC121+AC122)*$U$78 ->  | AD125: =$U$145*(AD116+AD117+AD120+AD121+AD122)*$U$78 ->  | AJ125: =U74 -> Operation not included in sequence. Check data entry
U126: ='Data Entry Needs'!I107 -> 0 | V126: USD/h | AA126: Total | AB126: =SUM(AB117:AB122) ->  | AC126: =SUM(AC117:AC122) ->  | AD126: =SUM(AD117:AD122) ->  | AJ126: road type | AK126: =HLOOKUP($AJ$125,AJ120:AM122,2,FALSE) -> 
AJ127: altimetry | AK127: =HLOOKUP($AJ$125,AJ120:AM122,3,FALSE) -> 
U128: Input biomass density | AJ128: Average | AK128: =SUM(AK126:AK127)/2 -> 
U129: =Allocator!T27 -> 0 | V129: kg/m3
U131: working hours per day | AA131: Fuel consumption | AJ131: Loan term | AK131: ='Data Entry Needs'!$I$128 -> 0 | AL131: years
U132: ='Data Entry Needs'!E74 -> 0 | V132: h/day | AB132: Small truck capacity | AC132: Medium truck capacity | AD132: Large truck capacity | AJ132: Loan ratio | AK132: ='Data Entry Needs'!$E$128 -> 0
U133: ='Data Entry Needs'!E73 -> 0 | V133: days/y | AA133: L/y | AB133: =U99*($U$116*2)*AB107 ->  | AC133: =U106*($U$116*2)*AC107 ->  | AD133: =U113*($U$116*2)*AD107 ->  | AJ133: Loan interest | AK133: ='Data Entry Needs'!$I$127 -> 0
AA134: TJ/y | AB134: =AB133*$AC$146*$AB$146/(1000*1000) ->  | AC134: =AC133*$AC$146*$AB$146/(1000*1000) ->  | AD134: =AD133*$AC$146*$AB$146/(1000*1000) -> 
U135: Labor cost
U136: ='Data Entry Needs'!E79 -> 0 | V136: USD/h | AJ136: Loan | AK136: USD | AL136: =$AK$132*$AK$131*AB119 ->  | AM136: =$AK$132*$AK$131*AC119 ->  | AN136: =$AK$132*$AK$131*AD119 -> 
AJ137: Monthyly payment | AK137: USD/month | AL137: =(PMT(AK133/12,(12*AK131),AL136))*-1 ->  | AM137: =(PMT(AK133/12,(12*AK131),AM136))*-1 ->  | AN137: =(PMT(AK133/12,(12*AK131),AN136))*-1 -> 
U138: Maintenance | AJ138: Annual payment | AK138: USD/y | AL138: =AL137*12*$U$78 ->  | AM138: =AM137*12*$U$78 ->  | AN138: =AN137*12*$U$78 -> 
U139: ='Data Entry Needs'!E121 -> 0 | V139: of machinery rental
U141: Fuel price
U142: ='Data Entry Needs'!I78 -> 0
AB143: Heating value MJ/kg | AC143: Density (kg/L) | AD143: kg CO2e/MJ | AE143: g CO2e/MJ
U144: General and adminis | AA144: Please Select
U145: ='Data Entry Needs'!$I$121 -> 0 | AA145: Gasoline | AB145: 44.3 | AC145: 0.89 | AD145: 0.070985 | AE145: =AD145*1000 -> 70.985
AA146: Diesel Oil | AB146: 43 | AC146: 0.73722 | AD146: 0.0753909 | AE146: =AD146*1000 -> 75.3909
AA147: Waste Oil / Lubrificants | AB147: 40.2 | AC147: 0.95 | AD147: 0.0745909 | AE147: 74.5909
AA148: LPG | AB148: 47.3 | AC148: 0.545 | AD148: 0.064464 | AE148: 64.464
AA149: Natural Gas | AB149: 48 | AC149: 0.65 | AD149: =0.0156 -> 0.0156 | AE149: 15.6
AA150: Peat | AB150: 9.76 | AC150: 0.6823529412 | AD150: 0.000486 | AE150: 0.486
AA151: Butane | AB151: 45.27677204 | AC151: 2 | AD151: 0.01948001062 | AE151: 19.48001062
AA152: Propane | AB152: 46.29553566 | AC152: 1.92 | AD152: 0.01725760354 | AE152: 17.25760354
AA153: Methanol | AB153: 20.09356275 | AC153: 0.7918 | AD153: 0.08642318218 | AE153: 86.42318218
AA154: Ethanol | AB154: 26.95163409 | AC154: 0.789 | AD154: 0.004227793194 | AE154: 4.227793194
AA155: Biodiesel | AB155: =35.7/0.88 -> 40.56818182 | AC155: 0.88 | AD155: 0.004259035631 | AE155: 4.259035631
U168: Electricity price
U169: ='Data Entry Needs'!I130 -> 0 | V169: USD/kWh
U174: Biomass type | W174: Energy consumption
U175: ='Data Entry Needs'!E11 ->  | W175: =VLOOKUP($U$175,$U$179:$W$190,3,FALSE) ->  | X175: KWh/tonne
V179: kJ/kg | W179: KWh/tonne
T180: 180 | U180: Barley straw | V180: =T180/2 -> 90 | W180: =V180/3.6 -> 25
T181: 185 | U181: Maize stover | V181: =T181/2 -> 92.5 | W181: =V181/3.6 -> 25.69444444
T182: 185 | U182: Oat straw | V182: 92.5 | W182: 25.69444444
T183: 180 | U183: Rice straw | V183: 90 | W183: 25
T184: 175 | U184: Sorghum straw | V184: 87.5 | W184: 24.30555556
T185: 170 | U185: Wheat straw | V185: 85 | W185: 23.61111111
T186: 190 | U186: Sugarcane bagasse | V186: 95 | W186: 26.38888889
T187: 195 | U187: Oil palm empty fruit bunch | V187: 97.5 | W187: 27.08333333
T188: 20 | U188: Pruining | V188: 10 | W188: 2.777777778
T189: 210 | U189: Wood forest residues | V189: 105 | W189: 29.16666667
T190: 210 | U190: Wood processing residues | V190: 105 | W190: 29.16666667
U206: Emission Rates for electricity | V206: gCO2 /kWh | AB206: Capital costs
U207: Please Select | AB207: Hammer mill | AC207: Disk mill | AD207: Knife mill
U208: Albania | V208: 11 | AA208: USD | AB208: 180000 | AC208: 170000 | AD208: 150000
U209: Algeria | V209: 576 | AA209: Base capacity -t/h | AB209: 3 | AC209: 2 | AD209: 2
U210: Angola | V210: 237 | AA210: new capacity | AB210: =U155 -> 0 | AC210: =U156 -> 0 | AD210: =U157 -> 0
U211: Argentina | V211: 355 | AA211: Scaled costs -USD | AB211: =AB208*(AB210/AB209)^0.6 -> 0 | AC211: =AC208*(AC210/AC209)^0.6 -> 0 | AD211: =AD208*(AD210/AD209)^0.6 -> 0
U212: Armenia | V212: 108 | AA212: Lifetime -years | AB212: 20 | AC212: 20 | AD212: 20
U213: Australia | V213: 853 | AA213: Depreciation USD/y | AB213: =AB211/AB212 -> 0 | AC213: =AC211/AC212 -> 0 | AD213: =AD211/AD212 -> 0
U214: Austria | V214: 163
U215: Azerbaijan | V215: 443
U216: Bahrain | V216: 665
U217: Bangladesh | V217: 585
U218: Belarus | V218: 302
U219: Belgium | V219: 218
U220: Benin | V220: 725
U221: Bolivia | V221: 393
U222: Bosnia and Herzegovina | V222: 776
U223: Botswana | V223: 2063
U224: Brazil | V224: 64
U225: Brunei Darus salam | V225: 755
U226: Bulgaria | V226: 463
U227: Cambodia | V227: 1151
U228: Cameroon | V228: 243
U229: Chile | V229: 373
U230: Taiwan | V230: 743
U231: Chinese Taipei | V231: 635
U232: Colombia | V232: 175
U233: Congo | V233: 207
U234: Costa Rica | V234: 40
U235: Côted'Ivoire | V235: 426
U236: Croatia | V236: 283
U237: Cuba | V237: 752
U238: Cyprus | V238: 744
U239: Czech Republic | V239: 514
U240: Dem. Rep. of Congo | V240: 3
U241: Denmark | V241: 303
U242: Dominican Republic | V242: 591
U243: DPR of Korea | V243: 499
U244: Ecuador | V244: 290
U245: Egypt | V245: 466
U246: El Salvador | V246: 319
U247: Eritrea | V247: 672
U248: Estonia | V248: 704
U249: Ethiopia | V249: 118
U250: Finland | V250: 205
U251: France | V251: 90
U252: FYR of Macedonia | V252: 710
U253: Gabon | V253: 322
U254: Georgia | V254: 129
U255: Germany | V255: 430
U256: Ghana | V256: 187
U257: Gibraltar | V257: 740
U258: Greece | V258: 722
U259: Guatemala | V259: 349
U260: Haiti | V260: 547
U261: Honduras | V261: 344
U262: HongKong, China | V262: 763
U263: Hungary | V263: 302
U264: Iceland | V264: 0
U265: India | V265: 951
U266: Indonesia | V266: 746
U267: Iraq | V267: 684
U268: Ireland | V268: 465
U269: Islamic Rep. Of Iran | V269: 630
U270: Israel | V270: 695
U271: Italy | V271: 386
U272: Jamaica | V272: 544
U273: Japan | V273: 415
U274: Jordan | V274: 581
U275: Kazakhstan | V275: 480
U276: Kenya | V276: 395
U277: Korea | V277: 498
... 64 more rows

Sheet DRYING_A (hidden)
C3: =+"CALCULATION OF DRYING COSTS OF "&UPPER('Data Entry Needs'!$E$11&" ") -> CALCULATION OF DRYING COSTS OF
C6: Use white cells to input data | E6: Grey cells are used for calculations
C8: Drying technology at the collection centre
C10: =S70 -> Operation not included in sequence. Check data entry
C12: Drying input parameters
C14: =+('Data Entry Needs'!$E$11&" to be dried (t/year)") -> to be dried (t/year) | G14: =S85 -> 0
C15: =+"Initial moisture content of "&('Data Entry Needs'!$E$11&" (wt%)") -> Initial moisture content of (wt%) | G15: =U85 -> 0
C17: Drying output results
C19: =+"Dried "&('Data Entry Needs'!$E$11&" (t/year)") -> Dried (t/year) | G19: =AM84 -> 0
C20: =+"Final moisture content of "&('Data Entry Needs'!$E$11&" (wt%)") -> Final moisture content of (wt%) | G20: =IFERROR(S95*S74,0) -> 0
C22: Drying costs per collection site
C24: Category | D24: USD/y
C25: Labor Unskilled | D25: =AM88 -> 0
C26: Labor Skilled | D26: 0
C27: Miscellaneous | D27: 0
C28: Depreciation | D28: 0
C29: Maintenance | D29: 0
C30: Fuel | D30: 0
C31: Power | D31: 0
C32: Loan | D32: 0
C33: Overhead | D33: 0
C34: General & adm. | D34: 0
C35: Total | D35: =SUM(D25:D34) -> 0
C37: Drying costs per biomass dried
G39: Drying costs per t of dried biomass at the desired moisture content
C51: Energy consumption and Greenhouse gas emissions
C53: Energy consumption | F53: GHG emissions
S69: Label
S70: =IF(S74=0,"Operation not included in sequence. Check data entry",S82) -> Operation not included in sequence. Check data entry
S71: =IF(S74=0,TRUE, FALSE) -> TRUE
S73: Multiplier
S74: =Allocator!N42 -> 0
S79: Iput paramaters
S81: Drying method
S82: ='Data Entry Needs'!O318 -> Belt/Coveyor dryer | AC82: Calculations | AM82: Outcome to the tool
AC83: Biomass dried at desired moisture
S84: Biomass to be dryed | U84: Moisture biomass | AC84: Natural drying | AD84: Belt/Coveyor dryer | AE84: Rotary dryer | AK84: Biomass dried | AL84: t/year | AM84: =HLOOKUP($S$82,AB$84:AE$85,2,FALSE) -> 0
S85: =Allocator!P42 -> 0 | T85: t/year | U85: =Allocator!R42 -> 0 | AB85: t/year | AC85: =$S$85*(1-$U$85)*(1-$S$98)/(1-$S$95) -> 0 | AD85: =$S$85*(1-$U$85)*(1-$S$98)/(1-$S$95) -> 0 | AE85: =$S$85*(1-$U$85)*(1-$S$98)/(1-$S$95) -> 0
AM86: Costs
AK87: 1 | AL87: USD/y | AM87: =HLOOKUP($S$82,AB$122:AE$129,AK87,FALSE) -> Belt/Coveyor dryer | AP87: USD/tonne
S88: Biomass water content | AB88: Energy efficieny | AK88: 2 | AL88: Labor Unskilled | AM88: =IFERROR(HLOOKUP($S$82,AB$122:AE$132,AK88,FALSE),0) -> 0 | AP88: Labor Unskilled | AQ88: =IFERROR(AM88/$AM$84,0) -> 0
S89: =S85*U85 -> 0 | T89: t/year | AC89: Natural drying | AD89: Belt/Coveyor dryer | AE89: Rotary dryer | AK89: 3 | AL89: Labor Skilled | AM89: =IFERROR(HLOOKUP($S$82,AB$122:AE$132,AK89,FALSE),0) -> 0 | AP89: Labor Skilled | AQ89: =IFERROR(AM89/$AM$84,0) -> 0
AC90: 1 | AD90: 0.85 | AE90: 0.9 | AK90: 4 | AL90: Miscellaneous | AM90: 0 | AP90: Miscellaneous | AQ90: 0
S91: Biomass bulk density | AB91: energy recovery | AC91: 1 | AD91: 0.75 | AE91: 0.9 | AK91: 5 | AL91: Depreciation | AM91: 0 | AP91: Depreciation | AQ91: 0
S92: =Allocator!T42 -> 0 | T92: kg/m3 | AA92: water to be removed | AC92: Natural drying | AD92: Belt/Coveyor dryer | AE92: Rotary dryer | AK92: 6 | AL92: Maintenance | AM92: 0 | AP92: Maintence | AQ92: 0
AB93: t/year | AC93: =$S$85-AC85 -> 0 | AD93: =$S$85-AD85 -> 0 | AE93: =$S$85-AE85 -> 0 | AK93: 7 | AL93: Fuel | AM93: 0 | AP93: Fuel | AQ93: 0
S94: Desired biomass moisture content | AK94: 8 | AL94: Power | AM94: 0 | AP94: Power | AQ94: 0
S95: ='Data Entry Needs'!E88 -> 0 | AA95: Energy needed including efficiency (primary energy) - assumption gas natural as fuel | AK95: 9 | AL95: Loan | AM95: 0 | AP95: Loan | AQ95: 0
AC96: Natural drying | AD96: Belt/Coveyor dryer | AE96: Rotary dryer | AK96: 10 | AL96: Overhead | AM96: 0 | AP96: Overhead | AQ96: 0
S97: Assumed biomass loss in VOC in dry basis | AB97: GJ/y | AC97: =AC93*$S$101*(1-AC91)*1000/AC90/1000 -> 0 | AD97: =AD93*$S$101*(1-AD91)*1000/AD90/1000 -> 0 | AE97: =AE93*$S$101*(1-AE91)*1000/AE90/1000 -> 0 | AK97: 11 | AL97: General & adm | AM97: 0 | AP97: General & adm | AQ97: 0
S98: 0.005 | AL98: Total | AM98: =SUM(AM88:AM97) -> 0 | AP98: Total | AQ98: =SUM(AQ88:AQ97) -> 0
AA99: Dryer time/capacity | AC99: Drying time -h | AD99: Capacity t/h | AE99: Capacity t/h
S100: Water latent heat | AC100: Natural drying | AD100: Belt/Coveyor dryer | AE100: Rotary dryer
S101: 2.25792 | T101: MJ/kg | AB101: t/h | AC101: =PARAMETERS!H21 -> 2 | AD101: =PARAMETERS!H79 -> 40 | AE101: =PARAMETERS!H80 -> 50 | AO101: Unskilled | AP101: 0
AA102: drying capacity per machine/batch | AB102: t/year | AC102: =AC101*$S$108*$S$104 -> 0 | AD102: =AD101*$S$107*$S$104 -> 0 | AE102: =AE101*$S$107*$S$104 -> 0 | AO102: Skilled | AP102: =IFERROR(HLOOKUP($S$82,AC100:AE106,7,FALSE),0) -> 0
S103: Annual drying operation | AA103: number of mach/batches | AC103: =ROUNDUP(AC85/AC102,0) ->  | AD103: =ROUNDUP(AD85/AD102,0) ->  | AE103: =ROUNDUP(AE85/AE102,0) ->  | AK103: Country | AL103: ='Data Entry Needs'!E117 -> Please select | AM103: =IFERROR(VLOOKUP($AL$103,$AA$149:$AB$283,2,FALSE),0) -> 0 | AN103: gCO2 /kWh
S104: ='Data Entry Needs'!E73 -> 0 | T104: day/year | AA104: number of shifts per day | AC104: =IF(S108=8,1,IF(S108=16,2,3)) -> 3 | AD104: =IF($S$107=8,1,IF($S$107=16,2,3)) -> 3 | AE104: =IF($S$107=8,1,IF($S$107=16,2,3)) -> 3 | AK104: Fuel | AL104: ='Data Entry Needs'!E89 -> Please select | AM104: =IFERROR(VLOOKUP($AL$104,$AE$149:$AI$160,5,FALSE),0) -> 0 | AN104: gCO2 /MJ
AA105: Number of persons per mach | AC105: 1 | AD105: 0.5 | AE105: 0.5
S106: Operating time | AA106: Number of persons | AC106: =ROUNDUP(AC104*AC103*AC105*$S$74,0) ->  | AD106: =ROUNDUP(AD104*AD103*AD105*$S$74,0) ->  | AE106: =ROUNDUP(AE104*AE103*AE105*$S$74,0) ->  | AL106: Fuel | AM106: =IFERROR(HLOOKUP($S$82,$AB$96:$AE$97,2,FALSE),0) -> 0 | AN106: GJ/y
R107: Mech | S107: ='Data Entry Needs'!I73 -> 0 | T107: h/day | AC107: Natural drying | AD107: Belt/Coveyor dryer | AE107: Rotary dryer | AL107: Electricity | AM107: =IFERROR(HLOOKUP($S$82,$AB$113:$AE$117,5,FALSE),0) -> 0 | AN107: kWh/y
R108: Natural | S108: ='Data Entry Needs'!E74 -> 0 | T108: h/day | AA108: investment | AB108: USD | AC108: 0 | AD108: =S124*AD103*(AD101/50)^0.6 ->  | AE108: =S119*AE103*(AE101/50)^0.6 -> 
AA109: Depreciation | AB109: USD/y | AC109: =AC108/$S$113 -> 0 | AD109: =AD108/$S$113 ->  | AE109: =AE108/$S$113 -> 
R110: Labor cost unskilled worker (USD/person-h) | S110: ='Data Entry Needs'!E78 -> 0 | T110: USD/h | AL110: Figure fuel energy consumption | AP110: Emissions
R111: Labor cost skilled worker (USD/person-h) | S111: ='Data Entry Needs'!E79 -> 0 | T111: USD/h | AL111: Fuel | AM111: =IFERROR(AM106/1000,0) -> 0 | AN111: TJ/y | AP111: Fuel | AQ111: =IFERROR(AM106*AM104/1000,0) -> 0 | AR111: t-CO2 eq/y
AA112: Electricity | AL112: Electricity | AM112: =IFERROR(AM107*3.6*(1/1000)*(1/1000),0) -> 0 | AN112: TJ/y | AP112: Electricity | AQ112: =IFERROR(AM107*$AM$103/(1000*1000),0) -> 0 | AR112: t-CO2 eq/y
R113: Depreciation time | S113: =PARAMETERS!H81 -> 20 | T113: years | AC113: Natural drying | AD113: Belt/Coveyor dryer | AE113: Rotary dryer | AL113: Total | AM113: =SUM(AM111:AM112) -> 0 | AN113: TJ/y | AP113: Total | AQ113: =SUM(AQ111:AQ112) -> 0 | AR113: t-CO2 eq/y
AB114: HP | AC114: 0 | AD114: =PARAMETERS!H82*S74 -> 0 | AE114: =PARAMETERS!H83*S74 -> 0
AB115: kJ/h | AC115: 0 | AD115: =0.7457*AD114*3600 -> 0 | AE115: =0.7457*AE114*3600 -> 0
AB116: KWh/h | AC116: 0 | AD116: =AD115*(1/1000)*(1/3.6) -> 0 | AE116: =AE115*(1/1000)*(1/3.6) -> 0
S117: capacity rotary | AB117: kWh/y | AC117: 0 | AD117: =AD116*$S$107*$S$104 -> 0 | AE117: =AE116*$S$107*$S$104 -> 0
S118: 50 tonne/h
R119: Capital | S119: =3800000 + 3800000*2 -> 11400000
AA121: Costs | AC121: USD/year
S122: capital conveyor | AC122: Natural drying | AD122: Belt/Coveyor dryer | AE122: Rotary dryer
S123: 50 tonne/h | AB123: Labor Unskilled | AC123: =S104*S108*AC106*S110 ->  | AD123: 0 | AE123: 0
R124: Capital | S124: =3000000 + 3000000*2 -> 9000000 | AB124: Labor Skilled | AC124: 0 | AD124: =$S$104*($S$107/AD104)*AD106*$S$111 ->  | AE124: =$S$104*($S$107/AE104)*AE106*$S$111 -> 
AB125: Miscellaneous | AC125: =$Z$129*$S$74*(AC123+AC124) ->  | AD125: =$Z$129*$S$74*(AD123+AD124) ->  | AE125: =$Z$129*$S$74*(AE123+AE124) -> 
R126: Maintenance | S126: ='Data Entry Needs'!E122 -> 0 | AB126: Depreciation | AC126: =AC109 -> 0 | AD126: =AD109 ->  | AE126: =AE109 -> 
AB127: Maintenance | AC127: =$S$126*AC108 -> 0 | AD127: =$S$126*AD108 ->  | AE127: =$S$126*AE108 -> 
R128: Fuel price | S128: ='Data Entry Needs'!I89 -> 0 | T128: USD/GJ | Z128: Miscelaneous | AB128: Fuel | AC128: =AC97*$S$128*0 -> 0 | AD128: =AD97*$S$128 -> 0 | AE128: =AE97*$S$128 -> 0
Z129: ='Data Entry Needs'!$I$122 -> 0 | AB129: Power | AC129: 0 | AD129: =AD117*$S$130 -> 0 | AE129: =AE117*$S$130 -> 0
R130: Electricity price | S130: ='Data Entry Needs'!I79 -> 0 | T130: USD/kWh | Z130: Overhead | AB130: Loan | AC130: =AD144 ->  | AD130: =AE144 ->  | AE130: =AF144 -> 
Z131: ='Data Entry Needs'!$E$123 -> 0 | AB131: Overhead | AC131: =$Z$131*$S$74*(AC127+AC124+AC123) ->  | AD131: =$Z$131*$S$74*(AD127+AD124+AD123) ->  | AE131: =$Z$131*$S$74*(AE127+AE124+AE123) -> 
AB132: General & adm | AC132: =$R$139*$S$74*(AC123+AC124+AC127+AC128+AC129) ->  | AD132: =$R$139*$S$74*(AD123+AD124+AD127+AD128+AD129) ->  | AE132: =$R$139*$S$74*(AE123+AE124+AE127+AE128+AE129) -> 
R133: Input density | S133: =Allocator!T42 -> 0 | T133: kg/m3 | AB133: Total | AC133: =SUM(AC123:AC132) ->  | AD133: =SUM(AD123:AD132) ->  | AE133: =SUM(AE123:AE132) -> 
R135: Output density | S135: =S133*1.04 -> 0 | T135: kg/m3
R138: General and adminis | AB138: Loan term | AC138: ='Data Entry Needs'!$I$128 -> 0 | AD138: years
R139: ='Data Entry Needs'!$I$121 -> 0 | AB139: Loan ratio | AC139: ='Data Entry Needs'!$E$128 -> 0
AB140: Loan interest | AC140: ='Data Entry Needs'!$I$127 -> 0
AD141: Small chipper | AE141: Medium chipper | AF141: Large chipper
AB142: Loan | AC142: USD | AD142: =AC108*$AC$139 -> 0 | AE142: =AD108*$AC$139 ->  | AF142: =AE108*$AC$139 -> 
AB143: Monthyly payment | AC143: USD/month | AD143: =(PMT(AC140/12,(12*AC138),AD142))*-1 ->  | AE143: =(PMT(AC140/12,(12*AC138),AE142))*-1 ->  | AF143: =(PMT(AC140/12,(12*AC138),AF142))*-1 -> 
AB144: Annual payment | AC144: USD/y | AD144: =AD143*12*$S$74 ->  | AE144: =AE143*12*$S$74 ->  | AF144: =AF143*12*$S$74 -> 
AA148: Emission Rates for electricity | AB148: gCO2 /kWh | AF148: Heating value | AG148: Density (kg/L) | AH148: kg CO2e/MJ | AI148: g CO2e/MJ
AA149: Please Select | AE149: Please Select
AA150: Albania | AB150: 11 | AE150: Gasoline | AF150: 44.3 | AG150: 0.89 | AH150: 0.070985 | AI150: =AH150*1000 -> 70.985
AA151: Algeria | AB151: 576 | AE151: Diesel Oil | AF151: 43 | AG151: 0.73722 | AH151: 0.0753909 | AI151: =AH151*1000 -> 75.3909
AA152: Angola | AB152: 237 | AE152: Waste Oil / Lubrificants | AF152: 40.2 | AG152: 0.95 | AH152: 0.0745909 | AI152: 74.5909
AA153: Argentina | AB153: 355 | AE153: LPG | AF153: 47.3 | AG153: 0.545 | AH153: 0.064464 | AI153: 64.464
AA154: Armenia | AB154: 108 | AE154: Natural Gas | AF154: 48 | AG154: 0.65 | AH154: =0.0156 -> 0.0156 | AI154: 15.6
AA155: Australia | AB155: 853 | AE155: Peat | AF155: 9.76 | AG155: 0.6823529412 | AH155: 0.000486 | AI155: 0.486
AA156: Austria | AB156: 163 | AE156: Butane | AF156: 45.27677204 | AG156: 2 | AH156: 0.01948001062 | AI156: 19.48001062
AA157: Azerbaijan | AB157: 443 | AE157: Propane | AF157: 46.29553566 | AG157: 1.92 | AH157: 0.01725760354 | AI157: 17.25760354
AA158: Bahrain | AB158: 665 | AE158: Methanol | AF158: 20.09356275 | AG158: 0.7918 | AH158: 0.08642318218 | AI158: 86.42318218
AA159: Bangladesh | AB159: 585 | AE159: Ethanol | AF159: 26.95163409 | AG159: 0.789 | AH159: 0.004227793194 | AI159: 4.227793194
AA160: Belarus | AB160: 302 | AE160: Biodiesel | AF160: =35.7/0.88 -> 40.56818182 | AG160: 0.88 | AH160: 0.004259035631 | AI160: 4.259035631
AA161: Belgium | AB161: 218
AA162: Benin | AB162: 725
AA163: Bolivia | AB163: 393
AA164: Bosnia and Herzegovina | AB164: 776
AA165: Botswana | AB165: 2063
AA166: Brazil | AB166: 64
AA167: Brunei Darus salam | AB167: 755
AA168: Bulgaria | AB168: 463
AA169: Cambodia | AB169: 1151
AA170: Cameroon | AB170: 243
AA171: Chile | AB171: 373
AA172: Taiwan | AB172: 743
AA173: Chinese Taipei | AB173: 635
AA174: Colombia | AB174: 175
AA175: Congo | AB175: 207
AA176: Costa Rica | AB176: 40
AA177: Côted'Ivoire | AB177: 426
AA178: Croatia | AB178: 283
AA179: Cuba | AB179: 752
AA180: Cyprus | AB180: 744
AA181: Czech Republic | AB181: 514
AA182: Dem. Rep. of Congo | AB182: 3
AA183: Denmark | AB183: 303
AA184: Dominican Republic | AB184: 591
AA185: DPR of Korea | AB185: 499
AA186: Ecuador | AB186: 290
AA187: Egypt | AB187: 466
AA188: El Salvador | AB188: 319
AA189: Eritrea | AB189: 672
AA190: Estonia | AB190: 704
AA191: Ethiopia | AB191: 118
AA192: Finland | AB192: 205
AA193: France | AB193: 90
AA194: FYR of Macedonia | AB194: 710
AA195: Gabon | AB195: 322
AA196: Georgia | AB196: 129
AA197: Germany | AB197: 430
AA198: Ghana | AB198: 187
AA199: Gibraltar | AB199: 740
AA200: Greece | AB200: 722
AA201: Guatemala | AB201: 349
AA202: Haiti | AB202: 547
AA203: Honduras | AB203: 344
AA204: HongKong, China | AB204: 763
AA205: Hungary | AB205: 302
AA206: Iceland | AB206: 0
AA207: India | AB207: 951
AA208: Indonesia | AB208: 746
AA209: Iraq | AB209: 684
AA210: Ireland | AB210: 465
AA211: Islamic Rep. Of Iran | AB211: 630
AA212: Israel | AB212: 695
AA213: Italy | AB213: 386
AA214: Jamaica | AB214: 544
AA215: Japan | AB215: 415
AA216: Jordan | AB216: 581
AA217: Kazakhstan | AB217: 480
AA218: Kenya | AB218: 395
AA219: Korea | AB219: 498
AA220: Kuwait | AB220: 870
AA221: Kyrgyzstan | AB221: 81
AA222: Latvia | AB222: 153
AA223: Lebanon | AB223: 717
AA224: Libyan Arab Jamahiriya | AB224: 872
AA225: Lithuania | AB225: 111
AA226: Luxembourg | AB226: 384
AA227: Malaysia | AB227: 649
AA228: Malta | AB228: 850
AA229: Mongolia | AB229: 535
AA230: Morocco | AB230: 638
AA231: Mozambique | AB231: 1
AA232: Myanmar | AB232: 196
AA233: Namibia | AB233: 237
AA234: Nepal | AB234: 4
AA235: Netherlands | AB235: 374
AA236: Netherlands Antilles | AB236: 707
AA237: New Zealand | AB237: 167
AA238: Nicaragua | AB238: 506
AA239: Nigeria | AB239: 416
AA240: Norway | AB240: 17
AA241: Oman | AB241: 842
AA242: Pakistan | AB242: 458
AA243: Panama | AB243: 302
AA244: People's Rep. of China | AB244: 743
AA245: Peru | AB245: 236
AA246: Philippines | AB246: 478
AA247: Poland | AB247: 640
AA248: Portugal | AB248: 368
AA249: Qatar | AB249: 494
AA250: Republic of Moldova | AB250: 400
AA251: Romania | AB251: 414
AA252: Russian Federation | AB252: 317
AA253: Saudi Arabia | AB253: 757
AA254: Senegal | AB254: 614
... 29 more rows

Sheet MILLING_A (hidden)
C3: =+"CALCULATION OF MILLING/GRINDING COSTS OF "&UPPER('Data Entry Needs'!$E$11&" ") -> CALCULATION OF MILLING/GRINDING COSTS OF
C6: Use white cells to input data | E6: Grey cells are used for calculations
C8: Milling technology at the collection centre
C10: =U69 -> Operation not included in sequence. Check data entry
C12: Milling input parameters
C14: =+('Data Entry Needs'!$E$11&" to be milled (t/year)") -> to be milled (t/year) | G14: =U81 -> 0
C15: =+('Data Entry Needs'!$E$11&" average input particle size (mm)") -> average input particle size (mm) | G15: =IFERROR(U88*U73,0) -> 0
C17: Milling output parameters
C19: =+('Data Entry Needs'!$E$11&" milled (t/year)") -> milled (t/year) | G19: =AK78 -> 0
C20: =+('Data Entry Needs'!$E$11&" density (kg/m3)") -> density (kg/m3) | G20: =AK81 -> 0
C21: =+('Data Entry Needs'!$E$11&" average particle size (mm)") -> average particle size (mm) | G21: =IFERROR(U87*U73,0) -> 0
C23: Milling costs per collection site
C25: Category | D25: USD/y
C26: Labor Unskilled | D26: =AK83 -> 0
C27: Labor Skilled | D27: 0
C28: Miscellaneous | D28: 0
C29: Depreciation | D29: 0
C30: Maintenance | D30: 0
C31: Fuel | D31: 0
C32: Power | D32: 0
C33: Loan | D33: 0
C34: Overhead | D34: 0
C35: General & adm. | D35: 0
C36: Total | D36: =SUM(D26:D35) -> 0
C38: Milling costs per biomass
H40: Milling costs per t of biomass
C51: Energy consumption and Greenhouse gas emissions
C53: Energy consumption | F53: GHG emissions
U68: Label
U69: =IF(U73=0,"Operation not included in sequence. Check data entry",U77) -> Operation not included in sequence. Check data entry
U70: =IF(U73=0,TRUE, FALSE) -> TRUE
U72: Multiplier
U73: =Allocator!N43 -> 0
AA75: t/y | AB75: Hammer mill | AC75: Disk mill | AD75: Knife mill
U76: Teachnology | AA76: Biomass baled | AB76: =$AK$78 -> 0 | AC76: =$AK$78 -> 0 | AD76: =$AK$78 -> 0 | AK76: Output to tool
U77: ='Data Entry Needs'!$O$303 -> Hammer mill | AK77: Biomass milled
AA78: Production per miller | AB78: Hammer mill | AC78: Disk mill | AD78: Knife mill | AK78: =U84*U81 -> 0 | AL78: t/y
U79: Inputs | AA79: t/y | AB79: =U100*$U$90*$U$91 -> 0 | AC79: =U101*$U$90*$U$91 -> 0 | AD79: =U102*$U$90*$U$91 -> 0
U80: Biomass to be milled | W80: moisture content | AK80: Biomass density
U81: =Allocator!P43 -> 0 | V81: t/y | W81: =Allocator!R43 -> 0 | AA81: number of millers required | AB81: Hammer mill | AC81: Disk mill | AD81: Knife mill | AK81: =HLOOKUP($U$77,$AA$92:$AD$93,2,FALSE) -> 0 | AL81: kg/m3
AA82: # | AB82: =ROUNDUP(AB76/AB79,0) ->  | AC82: =ROUNDUP(AC76/AC79,0) ->  | AD82: =ROUNDUP(AD76/AD79,0) -> 
U83: Biomass milling recovery efficiency | AI83: 2 | AJ83: Labor Unskilled | AK83: =IFERROR(HLOOKUP($U$77,$AA$98:$AD$108,AI83,FALSE),0) -> 0 | AM83: Labor Unskilled | AN83: =IFERROR(AK83/$AK$78,0) -> 0
U84: =PARAMETERS!H87 -> 0.99 | AB84: Labor | AI84: 3 | AJ84: Labor Skilled | AK84: =IFERROR(HLOOKUP($U$77,$AA$98:$AD$108,AI84,FALSE),0) -> 0 | AM84: Labor Skilled | AN84: =IFERROR(AK84/$AK$78,0) -> 0
AB85: Hammer mill | AC85: Disk mill | AD85: Knife mill | AI85: 4 | AJ85: Miscellaneous | AK85: 0 | AM85: Miscellaneous | AN85: 0
U86: Particle size | AA86: Number of workers per baler /Skilled | AB86: 0.3 | AC86: 0.3 | AD86: 0.3 | AI86: 5 | AJ86: Depreciation | AK86: 0 | AM86: Depreciation | AN86: 0
U87: ='Data Entry Needs'!I102 -> 0 | V87: mm | W87: output | AA87: Number of shifts | AB87: =IF($U$90>8,IF($U$90>16,3,2),1) -> 1 | AC87: =IF($U$90>8,IF($U$90>16,3,2),1) -> 1 | AD87: =IF($U$90>8,IF($U$90>16,3,2),1) -> 1 | AI87: 6 | AJ87: Maintenance | AK87: 0 | AM87: Maintenance | AN87: 0
U88: ='Data Entry Needs'!E102 -> 0 | V88: mm | W88: input | AA88: Working hours per shift | AB88: =$U$90/AB87 -> 0 | AC88: =$U$90/AC87 -> 0 | AD88: =$U$90/AD87 -> 0 | AI88: 7 | AJ88: Fuel | AK88: 0 | AM88: Fuel | AN88: 0
U89: Milling operation | AA89: hours per working year per man | AB89: =AB88*$U$91 -> 0 | AC89: =AC88*$U$91 -> 0 | AD89: =AD88*$U$91 -> 0 | AI89: 8 | AJ89: Power | AK89: 0 | AM89: Power | AN89: 0
U90: ='Data Entry Needs'!I73 -> 0 | V90: h/day | AA90: number of persons involved per year | AB90: =ROUNDUP(AB87*AB82*AB86*$U$73,0) ->  | AC90: =ROUNDUP(AC87*AC82*AC86*$U$73,0) ->  | AD90: =ROUNDUP(AD87*AD82*AD86*$U$73,0) ->  | AI90: 9 | AJ90: Loan | AK90: 0 | AM90: Loan | AN90: 0
U91: ='Data Entry Needs'!E73 -> 0 | V91: days/y | AI91: 10 | AJ91: Overhead | AK91: 0 | AM91: Overhead | AN91: 0
AA92: density | AB92: Hammer mill | AC92: Disk mill | AD92: Knife mill | AI92: 11 | AJ92: General & adm | AK92: 0 | AM92: General & adm | AN92: =IFERROR(AK92/$AK$78,0) -> 0
U93: Salary costs | AA93: kg/m3 | AB93: =$U$105*0.87 -> 0 | AC93: =$U$105*0.87 -> 0 | AD93: =$U$105*0.87 -> 0 | AJ93: Total | AK93: =SUM(AK83:AK92) -> 0 | AM93: Total | AN93: =SUM(AN83:AN92) -> 0
U94: ='Data Entry Needs'!E79 -> 0 | V94: USD/h
U96: Rental costs | AK96: Fuel
U97: ='Data Entry Needs'!E98 -> 0 | V97: USD/h | AJ97: Fuel | AK97: 0 | AL97: TJ/y | AN97: Country | AO97: ='Data Entry Needs'!E117 -> Please select | AP97: =IFERROR(VLOOKUP($AO$97,$U$152:$V$286,2,FALSE),0) -> 0 | AQ97: gCO2 /kWh
AA98: Costs | AB98: Hammer mill | AC98: Disk mill | AD98: Knife mill | AJ98: Electricity | AK98: =IFERROR(HLOOKUP($U$77,$AA$124:$AD$126,3,FALSE),0) -> 0 | AL98: TJ/y
U99: Milling capacity | Z99: 2 | AA99: Labor Unskilled | AJ99: Total | AK99: =SUM(AK97:AK98) -> 0 | AL99: TJ/y
T100: Hammer | U100: =PARAMETERS!H88 -> 15 | V100: t/h | Z100: 3 | AA100: Labor Skilled | AB100: =AB90*AB89*$U$94 ->  | AC100: =AC90*AC89*$U$94 ->  | AD100: =AD90*AD89*$U$94 -> 
T101: Disk | U101: =PARAMETERS!H89 -> 12 | V101: t/h | Z101: 4 | AA101: Miscellaneous | AB101: =$AF$103*$U$73*(AB99+AB100) ->  | AC101: =$AF$103*$U$73*(AC99+AC100) ->  | AD101: =$AF$103*$U$73*(AD99+AD100) ->  | AJ101: kWh/y | AK101: =IFERROR(HLOOKUP($U$77,$AA$124:$AD$126,2,FALSE),0) -> 0
T102: Knife | U102: =PARAMETERS!H90 -> 12 | V102: t/h | Z102: 5 | AA102: Depreciation | AB102: =AB150*AB82 ->  | AC102: =AC150*AC82 ->  | AD102: =AD150*AD82 ->  | AF102: Miscelaneous | AP102: Unskilled | AQ102: 0
Z103: 6 | AA103: Maintenance | AB103: =AB148*$U$111*$U$73 -> 0 | AC103: =AC148*$U$111*$U$73 -> 0 | AD103: =AD148*$U$111*$U$73 -> 0 | AF103: ='Data Entry Needs'!$I$122 -> 0 | AK103: GHG emissions | AP103: Skilled | AQ103: =IFERROR(HLOOKUP($U$77,$AA$85:$AD$90,6,FALSE),0) -> 0
U104: Input biomass density | Z104: 7 | AA104: Fuel | AF104: Overhead | AJ104: GHG emissions
U105: =Allocator!T43 -> 0 | V105: kg/m3 | Z105: 8 | AA105: Power | AB105: =$W$120*AB76*$U$114 ->  | AC105: =$W$120*AC76*$U$114 ->  | AD105: =$W$120*AD76*$U$114 ->  | AF105: ='Data Entry Needs'!$E$123 -> 0 | AJ105: Fuel | AL105: tCO2eq/y
Z106: 9 | AA106: Loan | AB106: =AC119 ->  | AC106: =AD119 ->  | AD106: =AE119 ->  | AJ106: Electricity | AK106: =IFERROR(AK101*AP97/(1000*1000),0) -> 0 | AL106: tCO2eq/y
U107: General and adminis | Z107: 10 | AA107: Overhead | AB107: =$AF$105*$U$73*(AB103+AB99+AB100) ->  | AC107: =$AF$105*$U$73*(AC103+AC99+AC100) ->  | AD107: =$AF$105*$U$73*(AD103+AD99+AD100) ->  | AJ107: Total | AK107: =SUM(AK105:AK106) -> 0 | AL107: tCO2eq/y
U108: ='Data Entry Needs'!$I$121 -> 0 | Z108: 11 | AA108: General & adm | AB108: =$U$108*$U$73*(AB99+AB100+AB103+AB104+AB105) ->  | AC108: =$U$108*$U$73*(AC99+AC100+AC103+AC104+AC105) ->  | AD108: =$U$108*$U$73*(AD99+AD100+AD103+AD104+AD105) -> 
AA109: Total | AB109: =SUM(AB100:AB108) ->  | AC109: =SUM(AC100:AC108) ->  | AD109: =SUM(AD100:AD108) -> 
U110: Maintenance
U111: ='Data Entry Needs'!E122 -> 0 | V111: of machinery rental
AA112: Loan term | AB112: ='Data Entry Needs'!$I$128 -> 0 | AC112: years
U113: Electricity price | AA113: Loan ratio | AB113: ='Data Entry Needs'!$E$128 -> 0
U114: ='Data Entry Needs'!I79 -> 0 | V114: USD/kWh | AA114: Loan interest | AB114: ='Data Entry Needs'!$I$127 -> 0
AA117: Loan | AB117: USD | AC117: =$AB$113*AB148 -> 0 | AD117: =$AB$113*AC148 -> 0 | AE117: =$AB$113*AD148 -> 0
AA118: Monthyly payment | AB118: USD/month | AC118: =(PMT(AB114/12,(12*AB112),AC117))*-1 ->  | AD118: =(PMT(AB114/12,(12*AB112),AD117))*-1 ->  | AE118: =(PMT(AB114/12,(12*AB112),AE117))*-1 -> 
U119: Biomass type | W119: Energy consumption | AA119: Annual payment | AB119: USD/y | AC119: =AC118*12*$U$73 ->  | AD119: =AD118*12*$U$73 ->  | AE119: =AE118*12*$U$73 -> 
U120: ='Data Entry Needs'!E11 ->  | W120: =VLOOKUP($U$120,$U$124:$W$135,3,FALSE) ->  | X120: KWh/tonne
AA123: Electricity consumption
V124: kJ/kg | W124: KWh/tonne | AB124: Hammer mill | AC124: Disk mill | AD124: Knife mill
T125: 180 | U125: Barley straw | V125: =T125/2 -> 90 | W125: =V125/3.6 -> 25 | AA125: kWh/y | AB125: =$W$120*AB76 ->  | AC125: =$W$120*AC76 ->  | AD125: =$W$120*AD76 -> 
T126: 185 | U126: Maize stover | V126: =T126/2 -> 92.5 | W126: =V126/3.6 -> 25.69444444 | AA126: TJ/y | AB126: =AB125*3.6/(1000*1000) ->  | AC126: =AC125*3.6/(1000*1000) ->  | AD126: =AD125*3.6/(1000*1000) -> 
T127: 185 | U127: Oat straw | V127: 92.5 | W127: 25.69444444
T128: 180 | U128: Rice straw | V128: 90 | W128: 25 | AB128: Heating value MJ/kg | AC128: Density (kg/L) | AD128: kg CO2e/MJ | AE128: g CO2e/MJ
T129: 175 | U129: Sorghum straw | V129: 87.5 | W129: 24.30555556 | AA129: Please Select
T130: 170 | U130: Wheat straw | V130: 85 | W130: 23.61111111 | AA130: Gasoline | AB130: 44.3 | AC130: 0.89 | AD130: 0.070985 | AE130: =AD130*1000 -> 70.985
T131: 190 | U131: Sugarcane bagasse | V131: 95 | W131: 26.38888889 | AA131: Diesel Oil | AB131: 43 | AC131: 0.73722 | AD131: 0.0753909 | AE131: =AD131*1000 -> 75.3909
T132: 195 | U132: Oil palm empty fruit bunch | V132: 97.5 | W132: 27.08333333 | AA132: Waste Oil / Lubrificants | AB132: 40.2 | AC132: 0.95 | AD132: 0.0745909 | AE132: 74.5909
T133: 20 | U133: Pruining | V133: 10 | W133: 2.777777778 | AA133: LPG | AB133: 47.3 | AC133: 0.545 | AD133: 0.064464 | AE133: 64.464
T134: 210 | U134: Wood forest residues | V134: 105 | W134: 29.16666667 | AA134: Natural Gas | AB134: 48 | AC134: 0.65 | AD134: =0.0156 -> 0.0156 | AE134: 15.6
T135: 210 | U135: Wood processing residues | V135: 105 | W135: 29.16666667 | AA135: Peat | AB135: 9.76 | AC135: 0.6823529412 | AD135: 0.000486 | AE135: 0.486
AA136: Butane | AB136: 45.27677204 | AC136: 2 | AD136: 0.01948001062 | AE136: 19.48001062
AA137: Propane | AB137: 46.29553566 | AC137: 1.92 | AD137: 0.01725760354 | AE137: 17.25760354
AA138: Methanol | AB138: 20.09356275 | AC138: 0.7918 | AD138: 0.08642318218 | AE138: 86.42318218
AA139: Ethanol | AB139: 26.95163409 | AC139: 0.789 | AD139: 0.004227793194 | AE139: 4.227793194
AA140: Biodiesel | AB140: =35.7/0.88 -> 40.56818182 | AC140: 0.88 | AD140: 0.004259035631 | AE140: 4.259035631
AB143: Capital costs
AB144: Hammer mill | AC144: Disk mill | AD144: Knife mill
AA145: USD | AB145: 180000 | AC145: 170000 | AD145: 150000
AA146: Base capacity -t/h | AB146: 3 | AC146: 2 | AD146: 2
AA147: new capacity | AB147: =U100 -> 15 | AC147: =U101 -> 12 | AD147: =U102 -> 12
AA148: Scaled costs -USD | AB148: =AB145*(AB147/AB146)^0.6 -> 472775.0048 | AC148: =AC145*(AC147/AC146)^0.6 -> 498126.5288 | AD148: =AD145*(AD147/AD146)^0.6 -> 439523.4077
AA149: Lifetime -years | AB149: =PARAMETERS!$H$91 -> 20 | AC149: =PARAMETERS!$H$91 -> 20 | AD149: =PARAMETERS!$H$91 -> 20
AA150: Depreciation USD/y | AB150: =AB148/AB149 -> 23638.75024 | AC150: =AC148/AC149 -> 24906.32644 | AD150: =AD148/AD149 -> 21976.17039
U151: Emission Rates for electricity | V151: gCO2 /kWh
U152: Please Select
U153: Albania | V153: 11
U154: Algeria | V154: 576
U155: Angola | V155: 237
U156: Argentina | V156: 355
U157: Armenia | V157: 108
U158: Australia | V158: 853
U159: Austria | V159: 163
U160: Azerbaijan | V160: 443
U161: Bahrain | V161: 665
U162: Bangladesh | V162: 585
U163: Belarus | V163: 302
U164: Belgium | V164: 218
U165: Benin | V165: 725
U166: Bolivia | V166: 393
U167: Bosnia and Herzegovina | V167: 776
U168: Botswana | V168: 2063
U169: Brazil | V169: 64
U170: Brunei Darus salam | V170: 755
U171: Bulgaria | V171: 463
U172: Cambodia | V172: 1151
U173: Cameroon | V173: 243
U174: Chile | V174: 373
U175: Taiwan | V175: 743
U176: Chinese Taipei | V176: 635
U177: Colombia | V177: 175
U178: Congo | V178: 207
U179: Costa Rica | V179: 40
U180: Côted'Ivoire | V180: 426
U181: Croatia | V181: 283
U182: Cuba | V182: 752
U183: Cyprus | V183: 744
U184: Czech Republic | V184: 514
U185: Dem. Rep. of Congo | V185: 3
U186: Denmark | V186: 303
U187: Dominican Republic | V187: 591
U188: DPR of Korea | V188: 499
U189: Ecuador | V189: 290
U190: Egypt | V190: 466
U191: El Salvador | V191: 319
U192: Eritrea | V192: 672
U193: Estonia | V193: 704
U194: Ethiopia | V194: 118
U195: Finland | V195: 205
U196: France | V196: 90
U197: FYR of Macedonia | V197: 710
U198: Gabon | V198: 322
U199: Georgia | V199: 129
U200: Germany | V200: 430
U201: Ghana | V201: 187
U202: Gibraltar | V202: 740
U203: Greece | V203: 722
U204: Guatemala | V204: 349
U205: Haiti | V205: 547
U206: Honduras | V206: 344
U207: HongKong, China | V207: 763
U208: Hungary | V208: 302
U209: Iceland | V209: 0
U210: India | V210: 951
U211: Indonesia | V211: 746
U212: Iraq | V212: 684
U213: Ireland | V213: 465
U214: Islamic Rep. Of Iran | V214: 630
U215: Israel | V215: 695
U216: Italy | V216: 386
U217: Jamaica | V217: 544
U218: Japan | V218: 415
U219: Jordan | V219: 581
U220: Kazakhstan | V220: 480
U221: Kenya | V221: 395
U222: Korea | V222: 498
U223: Kuwait | V223: 870
U224: Kyrgyzstan | V224: 81
U225: Latvia | V225: 153
U226: Lebanon | V226: 717
U227: Libyan Arab Jamahiriya | V227: 872
U228: Lithuania | V228: 111
U229: Luxembourg | V229: 384
U230: Malaysia | V230: 649
U231: Malta | V231: 850
U232: Mongolia | V232: 535
U233: Morocco | V233: 638
U234: Mozambique | V234: 1
U235: Myanmar | V235: 196
U236: Namibia | V236: 237
U237: Nepal | V237: 4
U238: Netherlands | V238: 374
U239: Netherlands Antilles | V239: 707
U240: New Zealand | V240: 167
U241: Nicaragua | V241: 506
U242: Nigeria | V242: 416
U243: Norway | V243: 17
U244: Oman | V244: 842
U245: Pakistan | V245: 458
U246: Panama | V246: 302
U247: People's Rep. of China | V247: 743
U248: Peru | V248: 236
... 38 more rows

Sheet DENSIFICATION_A (hidden)
C3: =+"CALCULATION OF DENSIFICATION COSTS OF "&UPPER('Data Entry Needs'!$E$11&" ") -> CALCULATION OF DENSIFICATION COSTS OF
C6: Use white cells to input data | E6: Grey cells are used for calculations
C8: Truck selected for transport
C10: =U68 -> Operation not included in sequence. Check data entry
C12: Transport input parameters
C14: =+('Data Entry Needs'!$E$11&" to be densified (t/y)") -> to be densified (t/y) | G14: =U80 -> 0
C15: Initial biomass density (kg/m3) | G15: =U105 -> 0
C17: Transport output parameters per collection site
C19: =+('Data Entry Needs'!$E$11&" densified (t/y)") -> densified (t/y) | G19: =AK77 -> 0
C20: Biomass density (kg/m3) | G20: =AK80 -> 0
C22: Milling costs per collection site
C24: Category | D24: USD/y
C25: Labor Unskilled | D25: =AK82 -> 0
C26: Labor Skilled | D26: 0
C27: Miscellaneous | D27: 0
C28: Depreciation | D28: 0
C29: Maintenance | D29: 0
C30: Fuel | D30: 0
C31: Power | D31: 0
C32: Loan | D32: 0
C33: Overhead | D33: 0
C34: General & adm. | D34: 0
C35: Total | D35: =SUM(D25:D34) -> 0
C37: Baling costs per biomass
H39: Densification costs per t of biomass
C50: Energy consumption and Greenhouse gas emissions
C52: Energy consumption | F52: GHG emissions
U67: Label
U68: =IF(U72=0,"Operation not included in sequence. Check data entry",U76) -> Operation not included in sequence. Check data entry
U69: =IF(U72=0,TRUE, FALSE) -> TRUE
U71: Multiplier
U72: =Allocator!N44 -> 0
U75: Teachnology | AA75: t/y | AB75: Mechanized piston press | AC75: Mechanized pellet mill | AK75: Output to tool
U76: ='Data Entry Needs'!O309 -> Mechanized pellet mill | AA76: Biomass delivered | AB76: =$AK$77 -> 0 | AC76: =$AK$77 -> 0 | AK76: Biomass delivered
AK77: =U83*U80 -> 0 | AL77: t/y
U78: Inputs | AA78: Biomass density | AB78: Mechanized piston press | AC78: Mechanized pellet mill
U79: Biomass to be transported | W79: moisture content | AA79: kg/m3 | AB79: 1100 | AC79: 800 | AK79: Biomass density
U80: =Allocator!P44 -> 0 | V80: t/y | W80: =Allocator!R44 -> 0 | AK80: =IFERROR(HLOOKUP($U$76,$AA$78:$AC$79,2,FALSE)*U72,0) -> 0 | AL80: kg/m3
AA81: Capacity | AB81: Mechanized piston press | AC81: Mechanized pellet mill | AR81: Unskilled | AS81: 0
U82: Biomassrecovery efficiency | AA82: t/h | AB82: =PARAMETERS!H96 -> 12 | AC82: =PARAMETERS!H97 -> 12 | AI82: 2 | AJ82: Labor Unskilled | AK82: =IFERROR(HLOOKUP($U$76,$AA$94:$AD$104,AI82,FALSE),0) -> 0 | AM82: Labor Unskilled | AN82: =IFERROR(AK82/$AK$77,0) -> 0 | AR82: Skilled | AS82: =IFERROR(HLOOKUP($U$76,$AA$86:$AD$91,6,FALSE),0) -> 0
U83: =PARAMETERS!H95 -> 0.99 | AA83: t/y | AB83: =AB82*$U$86*$U$87 -> 0 | AC83: =AC82*$U$86*$U$87 -> 0 | AI83: 3 | AJ83: Labor Skilled | AK83: =IFERROR(HLOOKUP($U$76,$AA$94:$AD$104,AI83,FALSE),0) -> 0 | AM83: Labor Skilled | AN83: =IFERROR(AK83/$AK$77,0) -> 0
AA84: number of machines | AB84: =ROUNDUP(AB76/AB83,0) ->  | AC84: =ROUNDUP(AC76/AC83,0) ->  | AI84: 4 | AJ84: Miscellaneous | AK84: 0 | AM84: Miscellaneous | AN84: 0
U85: Densification | AI85: 5 | AJ85: Depreciation | AK85: 0 | AM85: Depreciation | AN85: 0
U86: ='Data Entry Needs'!I73 -> 0 | V86: h/day | AA86: Labor | AB86: Mechanized piston press | AC86: Mechanized pellet mill | AI86: 6 | AJ86: Maintenance | AK86: 0 | AM86: Maintenance | AN86: 0
U87: ='Data Entry Needs'!E73 -> 0 | V87: day/year | AA87: people per machine | AB87: 0.4 | AC87: 0.4 | AI87: 7 | AJ87: Fuel | AK87: 0 | AM87: Fuel | AN87: 0
AA88: #shifts | AB88: =IF($U$86>8,IF($U$86>16,3,2),1) -> 1 | AC88: =IF($U$86>8,IF($U$86>16,3,2),1) -> 1 | AI88: 8 | AJ88: Power | AK88: 0 | AM88: Power | AN88: 0
U89: Labor | AA89: Working hours per shift | AB89: =$U$86/AB88 -> 0 | AC89: =$U$86/AC88 -> 0 | AI89: 9 | AJ89: Loan | AK89: 0 | AM89: Loan | AN89: 0
U90: ='Data Entry Needs'!E79 -> 0 | V90: USD/h | AA90: hours per working year per man | AB90: =AB89*$U$87 -> 0 | AC90: =AC89*$U$87 -> 0 | AI90: 10 | AJ90: Overhead | AK90: 0 | AM90: Overhead | AN90: 0
AA91: number of persons involved per year | AB91: =ROUNDUP(AB88*AB84*AB87*$U$72,0) ->  | AC91: =ROUNDUP(AC88*AC84*AC87*$U$72,0) ->  | AI91: 11 | AJ91: General & admin | AK91: 0 | AM91: General & admin | AN91: =IFERROR(AK91/$AK$77,0) -> 0
U92: Maintenance | AJ92: Total | AK92: =SUM(AK82:AK91) -> 0 | AM92: Total | AN92: =SUM(AN82:AN91) -> 0
U93: ='Data Entry Needs'!E122 -> 0
AA94: Costs | AB94: Mechanized piston press | AC94: Mechanized pellet mill
AA95: Labor Unskilled | AK95: Fuel | AP95: ='Data Entry Needs'!W357 -> Please select
U96: Electricity consumption | AA96: Labor Skilled | AB96: =AB91*$U$90*AB90 ->  | AC96: =AC91*$U$90*AC90 ->  | AJ96: Fuel | AK96: =0 -> 0 | AL96: TJ/y | AN96: emission factor | AP96: =IFERROR('Data Entry Needs'!X357,0) -> 0 | AQ96: gCO2/kWh
U97: Briquettes | V97: pellets | AA97: Miscellaneous | AB97: =$Y$99*$U$72*(AB95+AB96) ->  | AC97: =$Y$99*$U$72*(AC95+AC96) ->  | AJ97: Electricity | AK97: =IFERROR(HLOOKUP($U$76,$AA$113:$AD$115,3,FALSE),0) -> 0 | AL97: TJ/y
T98: kWh/ton | U98: 57.2 | V98: 45.45 | Y98: Miscelaneous | AA98: Depreciation | AB98: =AB84*AB124 ->  | AC98: =AC84*AC124 ->  | AJ98: Total | AK98: =SUM(AK96:AK97) -> 0 | AL98: TJ/y | AN98: Electricity | AO98: =HLOOKUP($U$76,$AA$113:$AD$115,2,FALSE) -> 0 | AP98: kWh/y
Y99: ='Data Entry Needs'!$I$122 -> 0 | AA99: Maintenance | AB99: =$U$93*AB122*$U$72 -> 0 | AC99: =$U$93*AC122*$U$72 -> 0
Y100: Overhead | AA100: Fuel
U101: electricity price | Y101: ='Data Entry Needs'!$E$123 -> 0 | AA101: Power | AB101: =$U$102*AB114 -> 0 | AC101: =$U$102*AC114 -> 0
U102: ='Data Entry Needs'!I79 -> 0 | V102: USD/kWh | AA102: Loan | AB102: =AI124 ->  | AC102: =AJ124 ->  | AK102: GHG emissions
AA103: Overhead | AB103: =$Y$101*$U$72*(AB99+AB95+AB96) ->  | AC103: =$Y$101*$U$72*(AC99+AC95+AC96) ->  | AJ103: GHG emissions
U104: Initial density | AA104: General & admin | AB104: =$U$109*$U$72*(AB95+AB96+AB99+AB100+AB101) ->  | AC104: =$U$109*$U$72*(AC95+AC96+AC99+AC100+AC101) ->  | AJ104: Fuel | AL104: tCO2eq/y
U105: =Allocator!T44 -> 0 | V105: kg/m3 | AA105: Total | AB105: =SUM(AB96:AB104) ->  | AC105: =SUM(AC96:AC104) ->  | AJ105: Electricity | AK105: =IFERROR(AP96*AO98/(1000*1000),0) -> 0 | AL105: tCO2eq/y
AJ106: Total | AK106: =SUM(AK104:AK105) -> 0 | AL106: tCO2eq/y
U108: General and adminis
U109: ='Data Entry Needs'!$I$121 -> 0
V112: Investment | AA112: Power consumption
U113: USD | V113: briquetts | W113: Pellets | AB113: Mechanized piston press | AC113: Mechanized pellet mill
U114: Investment (USD) | V114: 900000 | W114: 600000 | AA114: kWh/y | AB114: =U98*AB76 -> 0 | AC114: =V98*AC76 -> 0
U115: Building (USD) | V115: 150000 | W115: 120000 | AA115: TJ/y | AB115: =AB114*3.6/(1000*1000) -> 0 | AC115: =AC114*3.6/(1000*1000) -> 0
U116: Installation (USD)
U117: total | V117: =SUM(V114:V116) -> 1050000 | W117: =SUM(W114:W116) -> 720000 | AB117: Capital costs | AG117: Loan term | AH117: ='Data Entry Needs'!$I$128 -> 0 | AI117: years
AB118: Mechanized piston press | AC118: Mechanized pellet mill | AG118: Loan ratio | AH118: ='Data Entry Needs'!$E$128 -> 0
AA119: USD | AB119: =V117 -> 1050000 | AC119: =W117 -> 720000 | AG119: Loan interest | AH119: ='Data Entry Needs'!$I$127 -> 0
AA120: Base capacity -t/h | AB120: 4 | AC120: 4
AA121: new capacity | AB121: =AB82 -> 12 | AC121: =AC82 -> 12
AA122: Scaled costs -USD | AB122: =AB119*(AB121/AB120)^0.6 -> 2029841.147 | AC122: =AC119*(AC121/AC120)^0.6 -> 1391891.072 | AG122: Loan | AH122: USD | AI122: =$AH$118*AB122 -> 0 | AJ122: =$AH$118*AC122 -> 0
AA123: Lifetime -years | AB123: =PARAMETERS!$H$98 -> 20 | AC123: =PARAMETERS!$H$98 -> 20 | AG123: Monthyly payment | AH123: USD/month | AI123: =(PMT(AH119/12,(12*AH117),AI122))*-1 ->  | AJ123: =(PMT(AH119/12,(12*AH117),AJ122))*-1 -> 
AA124: Depreciation USD/y | AB124: =AB122/AB123 -> 101492.0574 | AC124: =AC122/AC123 -> 69594.55362 | AG124: Annual payment | AH124: USD/y | AI124: =AI123*12*$U$72 ->  | AJ124: =AJ123*12*$U$72 -> 

Sheet STORAGE_A (hidden)
C3: =+"CALCULATION OF STORAGE COSTS OF "&UPPER('Data Entry Needs'!$E$11&" ") -> CALCULATION OF STORAGE COSTS OF
C6: Use white cells to input data | E6: Grey cells are used for calculations
C8: =S64 -> Operation not included in sequence. Check data entry
C10: Storage input parameters at aggregation centre
C12: =+('Data Entry Needs'!$E$11&" available (t/year)") -> available (t/year) | G12: =S71 -> 0
C13: =+('Data Entry Needs'!$E$11&" available (t/month)") -> available (t/month) | G13: =S72 -> 0
C14: =+('Data Entry Needs'!$E$11&" available (t/day)") -> available (t/day) | G14: =S73 -> 0
C15: =+('Data Entry Needs'!$E$11&" safety stock rate (t/day)") -> safety stock rate (t/day) | G15: =IFERROR('Data Entry Needs'!E112*Y69,0) -> 0
C17: Biomass safety storage definition
C19: Month Selection | F19: Storage month | G19: Cummulative storage (t) | H19: Storage depletion (t)
C20: January | F20: =+IF($AC27=0,0,IF($AC27>$AC38,1,IF($AC27=$AC38,$F31+1,IF($AC38>$AC27,0)))) -> 0 | G20: =+IF(AND($F$20=1,$F$31=0,$F$21=0),$G$13*$AG27+$G$13*$G$15,IF($F20>0,($AG27*$G$13/$AK27)*$F20+$G$13*$G$15,0)) -> 0 | H20: =IF(AND($F$20=1,$F$31=0,$F$21=0),$G$13*$AG27+$H$31-G13,IF($F20>0,IFERROR(($AG27*$G$13/$AK27)*$F20,"")+$G$13*$G$15,IF($F20=0,H31-G13))) -> 0
C21: February | F21: =+IF($AC28=0,0,IF($AC28>$AC27,1,IF($AC28=$AC27,$F20+1,IF($AC27>$AC28,0)))) -> 1 | G21: 0 | H21: =+IF($F21>0,IFERROR(($AG28*$G$13/$AK28)*$F21,"")+$G$13*$G$15,IF($F21=0,H20-$G$13)) -> 0
C22: March | F22: 2 | G22: 0 | H22: =+IF($F22>0,IFERROR(($AG29*$G$13/$AK29)*$F22,"")+$G$13*$G$15,IF($F22=0,H21-$G$13)) -> 0
C23: April | F23: 3 | G23: 0 | H23: 0
C24: May | F24: 4 | G24: 0 | H24: 0
C25: June | F25: 5 | G25: 0 | H25: 0 | AD25: Depletion time definition
C26: July | F26: 6 | G26: 0 | H26: 0 | AB26: Harvest Period | AC26: Harvest Period | AD26: Depletion term | AE26: Depletion month | AF26: EQ term | AG26: Depletion time | AH26: Storageterm | AI26: Storage month | AJ26: EQ term | AK26: Storage time
C27: August | F27: 7 | G27: 0 | H27: 0 | AA27: Jan | AB27: FALSE | AC27: =+N(AB27) -> 0 | AD27: =+IF(AND(AC28>AC27,AC27=0),"Last"&AF27,"") -> Last1 | AE27: =+IF($AC27=1,0,IF($AC27<$AC38,1,IF($AC27=$AC38,$AE38+1,IF($AC38>$AC27,1)))) -> 1 | AF27: 1 | AG27: =IFERROR(VLOOKUP("LAST"&AF27,$AD$27:$AE$38,2,FALSE),AK27) -> 1 | AH27: =+IF(AND(AI27>AI28,AI28=0),"Last"&AJ27,"") ->  | AI27: =+IF($AC27=0,0,IF($AC27>$AC38,1,IF($AC27=$AC38,$AI38+1,IF($AC38>$AC27,0)))) -> 0 | AJ27: 1 | AK27: =IFERROR(VLOOKUP("LAST"&AJ27,$AH$27:$AI$38,2,FALSE),VLOOKUP("LAST"&1,$AH$27:$AI$38,2,FALSE)) -> 11
C28: September | F28: 8 | G28: 0 | H28: 0 | AA28: Feb | AB28: TRUE | AC28: =+N(AB28) -> 1 | AD28: =+IF(AND(AC29>AC28,AC28=0),"Last"&AF28,"") ->  | AE28: =+IF($AC28=1,0,IF($AC28<$AC27,1,IF($AC28=$AC27,$AE27+1,IF($AC27>$AC28,1)))) -> 0 | AF28: =+IF($AE27>$AE28,$AF27+1,$AF27) -> 2 | AG28: =IFERROR(VLOOKUP("LAST"&AF28,$AD$27:$AE$38,2,FALSE),$AG$27) -> 1 | AH28: =+IF(AND(AI28>AI29,AI29=0),"Last"&AJ28,"") ->  | AI28: =+IF($AC28=0,0,IF($AC28>$AC27,1,IF($AC28=$AC27,$AI27+1,IF($AC27>$AC28,0)))) -> 1 | AJ28: =+IF($AI27>$AI28,$AJ27+1,$AJ27) -> 1 | AK28: 11
C29: October | F29: 9 | G29: 0 | H29: 0 | AA29: Mar | AB29: TRUE | AC29: 1 | AD29: =+IF(AND(AC30>AC29,AC29=0),"Last"&AF29,"") ->  | AE29: 0 | AF29: 2 | AG29: 1 | AH29: =+IF(AND(AI29>AI30,AI30=0),"Last"&AJ29,"") ->  | AI29: 2 | AJ29: 1 | AK29: 11
C30: November | F30: 10 | G30: 0 | H30: 0 | AA30: Apr | AB30: TRUE | AC30: 1 | AD30: =+IF(AND(AC31>AC30,AC30=0),"Last"&AF30,"") ->  | AE30: 0 | AF30: 2 | AG30: 1 | AH30: =+IF(AND(AI30>AI31,AI31=0),"Last"&AJ30,"") ->  | AI30: 3 | AJ30: 1 | AK30: 11
C31: December | F31: 11 | G31: 0 | H31: 0 | AA31: May | AB31: TRUE | AC31: 1 | AE31: 0 | AF31: 2 | AG31: 1 | AH31: =+IF(AND(AI31>AI32,AI32=0),"Last"&AJ31,"") ->  | AI31: 4 | AJ31: 1 | AK31: 11
AA32: Jun | AB32: TRUE | AC32: 1 | AE32: 0 | AF32: 2 | AG32: 1 | AI32: 5 | AJ32: 1 | AK32: 11
C33: Maximum required storage capacity (t) | G33: =IFERROR(ROUNDUP(MAX(G20:G31),0),0) -> 0 | AA33: Jul | AB33: TRUE | AC33: 1 | AE33: 0 | AF33: 2 | AG33: 1 | AI33: 6 | AJ33: 1 | AK33: 11
C34: Maximum safety storage capacity (t) | G34: =IFERROR(ROUNDUP(MIN(H20:H31),0),0) -> 0 | AA34: Aug | AB34: TRUE | AC34: 1 | AE34: 0 | AF34: 2 | AG34: 1 | AI34: 7 | AJ34: 1 | AK34: 11
C35: Storage building required area (m2) | G35: =IFERROR(S107,0) -> 0 | AA35: Sep | AB35: TRUE | AC35: 1 | AE35: 0 | AF35: 2 | AG35: 1 | AI35: 8 | AJ35: 1 | AK35: 11
AA36: Oct | AB36: TRUE | AC36: 1 | AE36: 0 | AF36: 2 | AG36: 1 | AI36: 9 | AJ36: 1 | AK36: 11
AA37: Nov | AB37: TRUE | AC37: 1 | AE37: 0 | AF37: 2 | AG37: 1 | AI37: 10 | AJ37: 1 | AK37: 11
AA38: Dec | AB38: TRUE | AC38: 1 | AD38: =+IF(AND(AC27>AC38,AC38=0),"Last"&AF38,"") ->  | AE38: 0 | AF38: 2 | AG38: 1 | AH38: =+IF(AND(AI38>AI27,AI27=0),"Last"&AJ38,"") -> Last1 | AI38: 11 | AJ38: 1 | AK38: 11
AB42: No. Storage Months | AC42: =+COUNTIF(AC27:AC38,">0") -> 11
AB43: Total Depletion Period | AC43: =12-AC42 -> 1
C52: Storage costs per aggregation centre
C54: Category | D54: USD/y
C55: Labor Unskilled | D55: =Y96 -> 0
C56: Labor Skilled | D56: 0
C57: Miscellaneous | D57: 0
C58: Bulding rental cost | D58: 0
C59: Machinery rental | D59: 0
C60: Maintenance | D60: 0
C61: Power | D61: 0
C62: Loan | D62: =IFERROR(Y103,0) -> 0 | S62: Label
C63: Overhead | D63: 0
C64: General & administrative | D64: 0 | S64: =IF(Y69=0,"Operation not included in sequence. Check data entry","Storage") -> Operation not included in sequence. Check data entry
C65: Total | D65: =SUM(D55:D64) -> 0 | S65: =IF(Y69=0,TRUE, FALSE) -> TRUE
C67: Storage costs per biomass
Y68: Storage multipliers
H69: Storage costs per t of biomass | S69: Inputs | Y69: =Allocator!N45 -> 0
S70: Biomass to stored
S71: =Allocator!P45 -> 0 | T71: t/y | Y71: Storage capacity
S72: =S71/12 -> 0 | T72: t/month | Y72: =PARAMETERS!H103 -> 15 | Z72: t/h
S73: =S71/365 -> 0 | T73: t/day | Y73: ='Data Entry Needs'!E74 -> 0 | Z73: h/day | AB73: =Y73*Y74 -> 0 | AC73: h/yperson
Y74: 333 | Z74: day/year
S76: =Allocator!R45 -> 0 | T76: Moisture | X76: Storage needs | Y76: t/month | Z76: h/month worked
S77: =Allocator!T45 -> 0 | T77: density | X77: Jan | Y77: =H20 -> 0 | Z77: =Y77/$Y$72 -> 0
X78: Feb | Y78: 0 | Z78: =Y78/$Y$72 -> 0
S79: Recovery | X79: Mar | Y79: 0 | Z79: 0
S80: =PARAMETERS!H102 -> 0.99 | X80: Apr | Y80: 0 | Z80: 0
X81: May | Y81: 0 | Z81: 0
C82: Energy consumption and Greenhouse gas emissions | S82: =S80*S71 -> 0 | T82: t/y | X82: Jun | Y82: 0 | Z82: 0
X83: Jul | Y83: 0 | Z83: 0
C84: Energy consumption | F84: GHG emissions | X84: Aug | Y84: 0 | Z84: 0
S85: electricity consumption | X85: Sep | Y85: 0 | Z85: 0
S86: 8 | T86: kWh/m2.y | X86: Oct | Y86: 0 | Z86: 0
X87: Nov | Y87: 0 | Z87: 0
S88: warehouse height | X88: Dec | Y88: 0 | Z88: 0
S89: =PARAMETERS!H104 -> 9 | T89: m | X89: Total | Y89: =SUM(Y77:Y88) -> 0 | Z89: =SUM(Z77:Z88) -> 0 | AA89: h/year
Z90: 0
S91: Effective distribution in bulding | X91: Number of persons | Z91: =ROUNDUP(Z89*Y69/$AB$73,0) -> 
S92: 0.8
S94: Oversizing for other stuff
S95: =PARAMETERS!H105 -> 0.02 | X95: Costs | AC95: USD/t
X96: Labor Unskilled | AB96: Labor Unskilled | AC96: =IFERROR(Y96/$S$71,0) -> 0
X97: Labor Skilled | Y97: =IFERROR(S99*Z89*Y69,0) -> 0 | AB97: Labor Skilled | AC97: =IFERROR(Y97/$S$71,0) -> 0
S98: USD/h | V98: Miscelaneous | X98: Miscellaneous | Y98: =$V$99*$Y$69*(Y96+Y97) -> 0 | AB98: Miscellaneous | AC98: 0
S99: ='Data Entry Needs'!E79 -> 0 | V99: ='Data Entry Needs'!$I$122 -> 0 | X99: Bulding rental cost | Y99: =IFERROR(STORAGE_A!S107*'Data Entry Needs'!E113*12*Y69,0) -> 0 | AB99: Bulding rental cost | AC99: 0
V100: Overhead | X100: Machinery rental | Y100: =IFERROR(Z89*S110*Y69/2,0) -> 0 | AB100: Machinery rental | AC100: 0
S101: Maximum biomass sotrage | V101: ='Data Entry Needs'!$E$123 -> 0 | X101: Maintenance | Y101: =IFERROR((S114*Y99+Y100*S113)*Y69,0) -> 0 | AB101: Maintenance | AC101: 0
S102: =IFERROR(G33,0) -> 0 | T102: t | X102: Power | Y102: =IFERROR(S86*S107*S118*Y69,0) -> 0 | AB102: Power | AC102: 0
S103: Biomass volume | X103: Loan | Y103: =AD122 ->  | AB103: Loan | AC103: 0
S104: =IFERROR(S102*(1/S77)*1000,0) -> 0 | T104: m3 | X104: Overhead | Y104: =$V$101*$Y$69*(Y101+Y96+Y97) -> 0 | AB104: Overhead | AC104: 0
X105: General and administrative | Y105: =$S$121*(Y96+Y97+Y101+Y102)*$Y$69 -> 0 | AB105: General and administrative | AC105: =IFERROR(Y105/$S$71,0) -> 0
S106: Area calculation | X106: Total | Y106: =SUM(Y97:Y105) ->  | AB106: total | AC106: =SUM(AC96:AC105) -> 0
S107: =IFERROR(ROUNDUP(S104*(1+S95)/(S89*S92),0),0) -> 0 | T107: m2
S109: Machinery rental | X109: electricity | Y109: =IFERROR(S86*S107*Y69,0) -> 0 | Z109: kWh/y
S110: ='Data Entry Needs'!I112 -> 0 | Y110: Fuel | AB110: emission factor | AD110: =IFERROR('Data Entry Needs'!$X$357,0) -> 0 | AE110: gCO2/kWh
X111: Fuel | Y111: 0 | Z111: TJ/y
S112: Maintenance | X112: Electricity | Y112: =Y109*3.6/(1000*1000) -> 0 | Z112: TJ/y
R113: Machinery | S113: ='Data Entry Needs'!E121 -> 0 | X113: Total | Y113: =SUM(Y111:Y112) -> 0 | Z113: TJ/y | AB113: Loan
R114: Building | S114: =PARAMETERS!H106 -> 0.0005
AB115: Loan term | AC115: ='Data Entry Needs'!$I$128 -> 0 | AD115: years
Y116: Fuel | AB116: Loan ratio | AC116: ='Data Entry Needs'!$E$128 -> 0
S117: Electricity price | X117: Fuel | Y117: 0 | Z117: TCO2/y | AB117: Loan interest | AC117: ='Data Entry Needs'!$I$127 -> 0
S118: ='Data Entry Needs'!I79 -> 0 | T118: USD/kWh | X118: Electricity | Y118: =Y109*AD110/(1000*1000) -> 0 | Z118: TCO2/y
X119: Total | Y119: =SUM(Y117:Y118) -> 0 | Z119: TCO2/y
S120: General and adminis | AB120: Loan | AC120: USD | AD120: =$AC$116*Y99*$AC$115+$AC$115*$AC$116*Y100 -> 0
S121: ='Data Entry Needs'!$I$121 -> 0 | AB121: Monthyly payment | AC121: USD/month | AD121: =(PMT(AC117/12,(12*AC115),AD120))*-1 -> 
AB122: Annual payment | AC122: USD/y | AD122: =AD121*12*$Y$69 -> 
